Department,Entity,Transaction Date,Expense Type,Expense Area,PES Category,Supplier,Transaction No.,Amount
DEPARTMENT OF ENERGY AND CLIMATE CHANGE,THE COAL AUTHORITY,22/10/2015,FARES - RAIL,BOARD,TRAVEL&EVENTS-RAIL,STAFF EXPENSES CONTROL,0000223784,537.90
DEPARTMENT OF ENERGY AND CLIMATE CHANGE,THE COAL AUTHORITY,30/09/2015,HOTEL ACCOMMODATION,BOARD,TRAVEL&EVENTS-HOTELS,REDFERN TRAVEL LTD,0000223446,317.88
DEPARTMENT OF ENERGY AND CLIMATE CHANGE,THE COAL AUTHORITY,22/10/2015,INCIDENTALS,BOARD,VEHICLES-FLEET MANAGEMENT,STAFF EXPENSES CONTROL,0000223784,57.15
DEPARTMENT OF ENERGY AND CLIMATE CHANGE,THE COAL AUTHORITY,27/07/2015,MEETINGS,BOARD,TRAVEL&EVENTS-EVENT ORGNSTN,DOUBLETREE BY HILTON,0000223741,1188.00
DEPARTMENT OF ENERGY AND CLIMATE CHANGE,THE COAL AUTHORITY,22/10/2015,MILEAGE PAYMENTS,BOARD,FUELS/LUBRCNT/GAS-FUELS,STAFF EXPENSES CONTROL,0000223784,376.65
DEPARTMENT OF ENERGY AND CLIMATE CHANGE,THE COAL AUTHORITY,08/10/2015,SUBSISTENCE ALLOWANCES,BOARD,FACILITIES - FOOD,COMPANY BARCLAYCARD,0000223677,79.50
DEPARTMENT OF ENERGY AND CLIMATE CHANGE,THE COAL AUTHORITY,14/10/2015,CENTRAL TRAINING BUDGET,BOSS PROGRAMME,PROF SER LRNG&DEV-STAFF TRNING,EASTWOOD HALL,0000223735,725.00
DEPARTMENT OF ENERGY AND CLIMATE CHANGE,THE COAL AUTHORITY,01/10/2015,CHILDCARE VOUCHERS,BOSS PROGRAMME,PERSONNEL RLTD-STAFF CHILDCARE,FIDELITI LIMITED,0000223287,124.00
DEPARTMENT OF ENERGY AND CLIMATE CHANGE,THE COAL AUTHORITY,19/08/2015,CURR YR ADD-INTNGBLE INFO TECH,BOSS PROGRAMME,PROF SER CNSLTNCY-FINANCE,WAX DIGITAL LTD,0000222362,14450.00
DEPARTMENT OF ENERGY AND CLIMATE CHANGE,THE COAL AUTHORITY,17/09/2015,CURR YR ADD-INTNGBLE INFO TECH,BOSS PROGRAMME,ICT-SYSTEMS DELIVERY,SAPPHIRE SYSTEMS PLC,0000223211,370.00
DEPARTMENT OF ENERGY AND CLIMATE CHANGE,THE COAL AUTHORITY,30/09/2015,CURR YR ADD-INTNGBLE INFO TECH,BOSS PROGRAMME,ICT-SYSTEMS DELIVERY,SAPPHIRE SYSTEMS PLC,0000223421,2802.80
DEPARTMENT OF ENERGY AND CLIMATE CHANGE,THE COAL AUTHORITY,30/09/2015,CURR YR ADD-INTNGBLE INFO TECH,BOSS PROGRAMME,ICT-SYSTEMS DELIVERY,SAPPHIRE SYSTEMS PLC,0000223422,1850.00
DEPARTMENT OF ENERGY AND CLIMATE CHANGE,THE COAL AUTHORITY,13/10/2015,CURR YR ADD-INTNGBLE INFO TECH,BOSS PROGRAMME,ICT-SYSTEMS DELIVERY,SAPPHIRE SYSTEMS PLC,0000223507,925.00
DEPARTMENT OF ENERGY AND CLIMATE CHANGE,THE COAL AUTHORITY,13/10/2015,CURR YR ADD-INTNGBLE INFO TECH,BOSS PROGRAMME,PROF SER CNSLTNCY-FINANCE,WAX DIGITAL LTD,0000223511,425.00
DEPARTMENT OF ENERGY AND CLIMATE CHANGE,THE COAL AUTHORITY,21/10/2015,CURR YR ADD-INTNGBLE INFO TECH,BOSS PROGRAMME,ICT-SYSTEMS DELIVERY,SAPPHIRE SYSTEMS PLC,0000223732,98.40
DEPARTMENT OF ENERGY AND CLIMATE CHANGE,THE COAL AUTHORITY,24/09/2015,PAYMENTS TO AGENCIES FOR TEMPS,BOSS PROGRAMME,PROF SER TMP STFF-SPCLST CNTRT,HAYS,0000223215,576.00
DEPARTMENT OF ENERGY AND CLIMATE CHANGE,THE COAL AUTHORITY,30/09/2015,PAYMENTS TO AGENCIES FOR TEMPS,BOSS PROGRAMME,PROF SER TMP STFF-SPCLST CNTRT,HAYS,0000223375,1440.00
DEPARTMENT OF ENERGY AND CLIMATE CHANGE,THE COAL AUTHORITY,07/10/2015,PAYMENTS TO AGENCIES FOR TEMPS,BOSS PROGRAMME,PROF SER TMP STFF-SPCLST CNTRT,HAYS,0000223506,1440.00
DEPARTMENT OF ENERGY AND CLIMATE CHANGE,THE COAL AUTHORITY,15/10/2015,PAYMENTS TO AGENCIES FOR TEMPS,BOSS PROGRAMME,PROF SER TMP STFF-SPCLST CNTRT,HAYS,0000223633,1440.00
DEPARTMENT OF ENERGY AND CLIMATE CHANGE,THE COAL AUTHORITY,22/10/2015,PAYMENTS TO AGENCIES FOR TEMPS,BOSS PROGRAMME,PROF SER TMP STFF-SPCLST CNTRT,HAYS,0000223847,1440.00
DEPARTMENT OF ENERGY AND CLIMATE CHANGE,THE COAL AUTHORITY,03/09/2015,CONSULTANCY,BUSINESS DEVELOPMENT,PROF SER CNSLTNCY-MRKTNG&CMTN,CROCSTAR,0000223289,2700.00
DEPARTMENT OF ENERGY AND CLIMATE CHANGE,THE COAL AUTHORITY,22/10/2015,FARES - PUBLIC TRANSPORT,BUSINESS DEVELOPMENT,TRAVEL&EVENTS-TAXI,STAFF EXPENSES CONTROL,0000223789,12.00
DEPARTMENT OF ENERGY AND CLIMATE CHANGE,THE COAL AUTHORITY,23/10/2015,FARES - RAIL,BUSINESS DEVELOPMENT,TRAVEL&EVENTS-RAIL,STAFF EXPENSES CONTROL,0000223801,4.00
DEPARTMENT OF ENERGY AND CLIMATE CHANGE,THE COAL AUTHORITY,30/09/2015,HOTEL ACCOMMODATION,BUSINESS DEVELOPMENT,TRAVEL&EVENTS-HOTELS,REDFERN TRAVEL LTD,0000223446,57.17
DEPARTMENT OF ENERGY AND CLIMATE CHANGE,THE COAL AUTHORITY,23/10/2015,HOTEL ACCOMMODATION,BUSINESS DEVELOPMENT,TRAVEL&EVENTS-HOTELS,STAFF EXPENSES CONTROL,0000223802,430.05
DEPARTMENT OF ENERGY AND CLIMATE CHANGE,THE COAL AUTHORITY,22/10/2015,INCIDENTALS,BUSINESS DEVELOPMENT,VEHICLES-FLEET MANAGEMENT,STAFF EXPENSES CONTROL,0000223789,25.16
DEPARTMENT OF ENERGY AND CLIMATE CHANGE,THE COAL AUTHORITY,23/10/2015,INCIDENTALS,BUSINESS DEVELOPMENT,VEHICLES-FLEET MANAGEMENT,STAFF EXPENSES CONTROL,0000223801,28.25
DEPARTMENT OF ENERGY AND CLIMATE CHANGE,THE COAL AUTHORITY,22/10/2015,MILEAGE PAYMENTS,BUSINESS DEVELOPMENT,FUELS/LUBRCNT/GAS-FUELS,STAFF EXPENSES CONTROL,0000223789,28.35
DEPARTMENT OF ENERGY AND CLIMATE CHANGE,THE COAL AUTHORITY,22/10/2015,MILEAGE PAYMENTS,BUSINESS DEVELOPMENT,FUELS/LUBRCNT/GAS-FUELS,STAFF EXPENSES CONTROL,0000223793,75.60
DEPARTMENT OF ENERGY AND CLIMATE CHANGE,THE COAL AUTHORITY,08/10/2015,SUBSISTENCE ALLOWANCES,BUSINESS DEVELOPMENT,FACILITIES - FOOD,COMPANY BARCLAYCARD,0000223650,22.22
DEPARTMENT OF ENERGY AND CLIMATE CHANGE,THE COAL AUTHORITY,22/10/2015,SUBSISTENCE ALLOWANCES,BUSINESS DEVELOPMENT,FACILITIES - FOOD,STAFF EXPENSES CONTROL,0000223789,10.81
DEPARTMENT OF ENERGY AND CLIMATE CHANGE,THE COAL AUTHORITY,23/10/2015,SUBSISTENCE ALLOWANCES,BUSINESS DEVELOPMENT,FACILITIES - FOOD,STAFF EXPENSES CONTROL,0000223801,10.09
DEPARTMENT OF ENERGY AND CLIMATE CHANGE,THE COAL AUTHORITY,22/10/2015,FARES - PUBLIC TRANSPORT,CHIEF EXECUTIVE,TRAVEL&EVENTS-TAXI,STAFF EXPENSES CONTROL,0000223791,20.00
DEPARTMENT OF ENERGY AND CLIMATE CHANGE,THE COAL AUTHORITY,30/09/2015,FARES - RAIL,CHIEF EXECUTIVE,TRAVEL&EVENTS-RAIL,REDFERN TRAVEL LTD,0000223444,891.68
DEPARTMENT OF ENERGY AND CLIMATE CHANGE,THE COAL AUTHORITY,22/10/2015,FARES - RAIL,CHIEF EXECUTIVE,TRAVEL&EVENTS-RAIL,STAFF EXPENSES CONTROL,0000223791,80.50
DEPARTMENT OF ENERGY AND CLIMATE CHANGE,THE COAL AUTHORITY,30/09/2015,HOTEL ACCOMMODATION,CHIEF EXECUTIVE,TRAVEL&EVENTS-HOTELS,REDFERN TRAVEL LTD,0000223446,967.85
DEPARTMENT OF ENERGY AND CLIMATE CHANGE,THE COAL AUTHORITY,08/10/2015,HOTEL ACCOMMODATION,CHIEF EXECUTIVE,TRAVEL&EVENTS-HOTELS,COMPANY BARCLAYCARD,0000223751,826.07
DEPARTMENT OF ENERGY AND CLIMATE CHANGE,THE COAL AUTHORITY,08/10/2015,HOTEL ACCOMMODATION,CHIEF EXECUTIVE,TRAVEL&EVENTS-HOTELS,COMPANY BARCLAYCARD,0000223914,175.00
DEPARTMENT OF ENERGY AND CLIMATE CHANGE,THE COAL AUTHORITY,22/10/2015,INCIDENTALS,CHIEF EXECUTIVE,VEHICLES-FLEET MANAGEMENT,STAFF EXPENSES CONTROL,0000223791,29.16
DEPARTMENT OF ENERGY AND CLIMATE CHANGE,THE COAL AUTHORITY,08/10/2015,INCIDENTALS,CHIEF EXECUTIVE,VEHICLES-FLEET MANAGEMENT,COMPANY BARCLAYCARD,0000223914,45.67
DEPARTMENT OF ENERGY AND CLIMATE CHANGE,THE COAL AUTHORITY,08/10/2015,MEETINGS,CHIEF EXECUTIVE,FACILITIES - FOOD,COMPANY BARCLAYCARD,0000223751,115.91
DEPARTMENT OF ENERGY AND CLIMATE CHANGE,THE COAL AUTHORITY,08/10/2015,MEETINGS,CHIEF EXECUTIVE,FACILITIES - FOOD,COMPANY BARCLAYCARD,0000223914,27.50
DEPARTMENT OF ENERGY AND CLIMATE CHANGE,THE COAL AUTHORITY,27/10/2015,MILEAGE PAYMENTS,CHIEF EXECUTIVE,FUELS/LUBRCNT/GAS-FUELS,STAFF EXPENSES CONTROL,0000223848,36.18
DEPARTMENT OF ENERGY AND CLIMATE CHANGE,THE COAL AUTHORITY,08/10/2015,STAFF EVENTS,CHIEF EXECUTIVE,FACILITIES - FOOD,COMPANY BARCLAYCARD,0000223745,123.82
DEPARTMENT OF ENERGY AND CLIMATE CHANGE,THE COAL AUTHORITY,22/10/2015,SUBSISTENCE ALLOWANCES,CHIEF EXECUTIVE,FACILITIES - FOOD,STAFF EXPENSES CONTROL,0000223791,90.64
DEPARTMENT OF ENERGY AND CLIMATE CHANGE,THE COAL AUTHORITY,23/10/2015,SUBSISTENCE ALLOWANCES,CHIEF EXECUTIVE,FACILITIES - FOOD,STAFF EXPENSES CONTROL,0000223801,6.26
DEPARTMENT OF ENERGY AND CLIMATE CHANGE,THE COAL AUTHORITY,08/10/2015,SUBSISTENCE ALLOWANCES,CHIEF EXECUTIVE,FACILITIES - FOOD,COMPANY BARCLAYCARD,0000223914,47.77
DEPARTMENT OF ENERGY AND CLIMATE CHANGE,THE COAL AUTHORITY,12/10/2015,TRAINING AND EDUCATION,CHIEF EXECUTIVE,PROF SER LRNG&DEV-STAFF TRNING,ACE CONFERENCE FEE,0000223307,180.00
DEPARTMENT OF ENERGY AND CLIMATE CHANGE,THE COAL AUTHORITY,29/09/2015,APPRENTICE COSTS,CORPORATE MANAGEMENT,PROF SER TMP STFF-TEMP WRKERS,FUTURES ADVICE SKILLS & E,0000223209,1191.34
DEPARTMENT OF ENERGY AND CLIMATE CHANGE,THE COAL AUTHORITY,30/09/2015,HOTEL ACCOMMODATION,CORPORATE MANAGEMENT,TRAVEL&EVENTS-HOTELS,REDFERN TRAVEL LTD,0000223446,1090.22
DEPARTMENT OF ENERGY AND CLIMATE CHANGE,THE COAL AUTHORITY,30/09/2015,PUBLIC RELATIONS,CORPORATE MANAGEMENT,MARKETING & MEDIA-PROMOTION,GORKANA GROUP LTD,0000223423,182.99
DEPARTMENT OF ENERGY AND CLIMATE CHANGE,THE COAL AUTHORITY,30/09/2015,PUBLIC RELATIONS,CORPORATE MANAGEMENT,MARKETING & MEDIA-PROMOTION,GORKANA GROUP LTD,0000223424,462.86
DEPARTMENT OF ENERGY AND CLIMATE CHANGE,THE COAL AUTHORITY,08/10/2015,SUBSISTENCE ALLOWANCES,CORPORATE MANAGEMENT,FACILITIES - FOOD,COMPANY BARCLAYCARD,0000223722,27.11
DEPARTMENT OF ENERGY AND CLIMATE CHANGE,THE COAL AUTHORITY,21/09/2015,CURR YR ADD-INTNGBLE INFO TECH,CORPORATE PROJECT OFFICE,PROF SER LRNG&DEV-STAFF TRNING,WELLINGTONE LIMITED,0000223412,1230.00
DEPARTMENT OF ENERGY AND CLIMATE CHANGE,THE COAL AUTHORITY,23/10/2015,MILEAGE PAYMENTS,CORPORATE PROJECT OFFICE,FUELS/LUBRCNT/GAS-FUELS,STAFF EXPENSES CONTROL,0000223803,74.70
DEPARTMENT OF ENERGY AND CLIMATE CHANGE,THE COAL AUTHORITY,25/09/2015,PAYMENTS TO AGENCIES FOR TEMPS,CORPORATE PROJECT OFFICE,PROF SER TMP STFF-SPCLST CNTRT,KEY PERSONNEL SOLUTIONS L,0000223196,1375.45
DEPARTMENT OF ENERGY AND CLIMATE CHANGE,THE COAL AUTHORITY,02/10/2015,PAYMENTS TO AGENCIES FOR TEMPS,CORPORATE PROJECT OFFICE,PROF SER TMP STFF-SPCLST CNTRT,KEY PERSONNEL SOLUTIONS L,0000223358,825.27
DEPARTMENT OF ENERGY AND CLIMATE CHANGE,THE COAL AUTHORITY,16/10/2015,PAYMENTS TO AGENCIES FOR TEMPS,CORPORATE PROJECT OFFICE,PROF SER TMP STFF-SPCLST CNTRT,KEY PERSONNEL SOLUTIONS L,0000223645,1237.91
DEPARTMENT OF ENERGY AND CLIMATE CHANGE,THE COAL AUTHORITY,23/10/2015,PAYMENTS TO AGENCIES FOR TEMPS,CORPORATE PROJECT OFFICE,PROF SER TMP STFF-SPCLST CNTRT,KEY PERSONNEL SOLUTIONS L,0000223846,1100.36
DEPARTMENT OF ENERGY AND CLIMATE CHANGE,THE COAL AUTHORITY,07/09/2015,TRAINING AND EDUCATION,CORPORATE PROJECT OFFICE,PROF SER LRNG&DEV-STAFF TRNING,ACADEMY OF HIGH ACHIEVERS,0000222781,550.00
DEPARTMENT OF ENERGY AND CLIMATE CHANGE,THE COAL AUTHORITY,22/09/2015,TRAINING AND EDUCATION,CORPORATE PROJECT OFFICE,PROF SER LRNG&DEV-STAFF TRNING,BSI,0000223137,795.00
DEPARTMENT OF ENERGY AND CLIMATE CHANGE,THE COAL AUTHORITY,08/10/2015,TRAINING AND EDUCATION,CORPORATE PROJECT OFFICE,PROF SER LRNG&DEV-STAFF TRNING,COMPANY BARCLAYCARD,0000223688,216.66
DEPARTMENT OF ENERGY AND CLIMATE CHANGE,THE COAL AUTHORITY,20/10/2015,TRAINING AND EDUCATION,CORPORATE PROJECT OFFICE,PROF SER LRNG&DEV-STAFF TRNING,THE KNOWLEDGE ACADEMY LTD,0000223730,879.00
DEPARTMENT OF ENERGY AND CLIMATE CHANGE,THE COAL AUTHORITY,30/09/2015,FARES - PUBLIC TRANSPORT,CUSTOMER SERVICES,TRAVEL&EVENTS-TAXI,ACE OF MANSFIELD LTD,0000223278,201.00
DEPARTMENT OF ENERGY AND CLIMATE CHANGE,THE COAL AUTHORITY,30/09/2015,CONTRACTORS AND CLAIM COSTS,DAW MILL,PROF SER-OPERATIONAL SERVICES,PROFESSIONAL FEES  HIGH A,0000223202,816.07
DEPARTMENT OF ENERGY AND CLIMATE CHANGE,THE COAL AUTHORITY,30/09/2015,CONTRACTORS AND CLAIM COSTS,DAW MILL,PROF SER-OPERATIONAL SERVICES,CONTRIBUTION TO AGENTS FE,0000223216,3480.24
DEPARTMENT OF ENERGY AND CLIMATE CHANGE,THE COAL AUTHORITY,23/09/2015,CONTRACTORS AND CLAIM COSTS,DAW MILL,CONSTRUCTION-MAIN CONTRACTORS,D S WILLIAMS PAINTERS & D,0000223220,23228.70
DEPARTMENT OF ENERGY AND CLIMATE CHANGE,THE COAL AUTHORITY,21/09/2015,CONTRACTORS AND CLAIM COSTS,DAW MILL,CONSTRUCTION-MAIN CONTRACTORS,PRIORITY BUILDERS LTD,0000223221,10000.00
DEPARTMENT OF ENERGY AND CLIMATE CHANGE,THE COAL AUTHORITY,21/09/2015,CONTRACTORS AND CLAIM COSTS,DAW MILL,CONSTRUCTION-MAIN CONTRACTORS,PRIORITY BUILDERS LTD,0000223222,10000.00
DEPARTMENT OF ENERGY AND CLIMATE CHANGE,THE COAL AUTHORITY,21/09/2015,CONTRACTORS AND CLAIM COSTS,DAW MILL,CONSTRUCTION-MAIN CONTRACTORS,PRIORITY BUILDERS LTD,0000223223,1285.28
DEPARTMENT OF ENERGY AND CLIMATE CHANGE,THE COAL AUTHORITY,21/09/2015,CONTRACTORS AND CLAIM COSTS,DAW MILL,CONSTRUCTION-MAIN CONTRACTORS,PRIORITY BUILDERS LTD,0000223224,2964.50
DEPARTMENT OF ENERGY AND CLIMATE CHANGE,THE COAL AUTHORITY,21/09/2015,CONTRACTORS AND CLAIM COSTS,DAW MILL,CONSTRUCTION-MAIN CONTRACTORS,PRIORITY BUILDERS LTD,0000223225,10000.00
DEPARTMENT OF ENERGY AND CLIMATE CHANGE,THE COAL AUTHORITY,21/09/2015,CONTRACTORS AND CLAIM COSTS,DAW MILL,CONSTRUCTION-MAIN CONTRACTORS,PRIORITY BUILDERS LTD,0000223226,5000.00
DEPARTMENT OF ENERGY AND CLIMATE CHANGE,THE COAL AUTHORITY,21/09/2015,CONTRACTORS AND CLAIM COSTS,DAW MILL,CONSTRUCTION-MAIN CONTRACTORS,PRIORITY BUILDERS LTD,0000223227,10000.00
DEPARTMENT OF ENERGY AND CLIMATE CHANGE,THE COAL AUTHORITY,01/10/2015,CONTRACTORS AND CLAIM COSTS,DAW MILL,PROF SER-OPERATIONAL SERVICES,IDRS LIMITED,0000223256,1435.50
DEPARTMENT OF ENERGY AND CLIMATE CHANGE,THE COAL AUTHORITY,30/09/2015,CONTRACTORS AND CLAIM COSTS,DAW MILL,CONSTRUCTION-CNSTRN SER PROVDR,INTERLOCK SURVEYS,0000223290,715.00
DEPARTMENT OF ENERGY AND CLIMATE CHANGE,THE COAL AUTHORITY,12/10/2015,CONTRACTORS AND CLAIM COSTS,DAW MILL,PROF SER-OPERATIONAL SERVICES,PLANNING FEE SPRINGFIELD,0000223304,385.00
DEPARTMENT OF ENERGY AND CLIMATE CHANGE,THE COAL AUTHORITY,12/10/2015,CONTRACTORS AND CLAIM COSTS,DAW MILL,PROF SER-OPERATIONAL SERVICES,AGENTS FEES,0000223309,579.04
DEPARTMENT OF ENERGY AND CLIMATE CHANGE,THE COAL AUTHORITY,08/10/2015,CONTRACTORS AND CLAIM COSTS,DAW MILL,CONSTRUCTION-CNSTRN SER PROVDR,SWS ENVIRONMENTAL SERVICE,0000223361,200.00
DEPARTMENT OF ENERGY AND CLIMATE CHANGE,THE COAL AUTHORITY,30/09/2015,CONTRACTORS AND CLAIM COSTS,DAW MILL,CONSTRUCTION-MAIN CONTRACTORS,HARDYMAN & CO LTD,0000223457,13000.00
DEPARTMENT OF ENERGY AND CLIMATE CHANGE,THE COAL AUTHORITY,08/10/2015,CONTRACTORS AND CLAIM COSTS,DAW MILL,CONSTRUCTION-MAIN CONTRACTORS,HARDYMAN & CO LTD,0000223458,14000.00
DEPARTMENT OF ENERGY AND CLIMATE CHANGE,THE COAL AUTHORITY,30/09/2015,CONTRACTORS AND CLAIM COSTS,DAW MILL,CONSTRUCTION-MAIN CONTRACTORS,HARDYMAN & CO LTD,0000223510,10000.00
DEPARTMENT OF ENERGY AND CLIMATE CHANGE,THE COAL AUTHORITY,16/10/2015,CONTRACTORS AND CLAIM COSTS,DAW MILL,"CONSTRUCTION-BLD,REPR&MAINTNCE",REIMBURSE SECESSFUL CLAIM,0000223611,4185.87
DEPARTMENT OF ENERGY AND CLIMATE CHANGE,THE COAL AUTHORITY,20/10/2015,CONTRACTORS AND CLAIM COSTS,DAW MILL,"CONSTRUCTION-BLD,REPR&MAINTNCE",SECTION 28 REIMBURSE SUCE,0000223643,2938.97
DEPARTMENT OF ENERGY AND CLIMATE CHANGE,THE COAL AUTHORITY,20/10/2015,CONTRACTORS AND CLAIM COSTS,DAW MILL,"CONSTRUCTION-BLD,REPR&MAINTNCE",SECTION 28 REIMBURSMENT S,0000223644,3030.52
DEPARTMENT OF ENERGY AND CLIMATE CHANGE,THE COAL AUTHORITY,28/10/2015,CONTRACTORS AND CLAIM COSTS,DAW MILL,CONSTRUCTION-CNSTRN SER PROVDR,RICHARD S BAILY,0000223938,10750.00
DEPARTMENT OF ENERGY AND CLIMATE CHANGE,THE COAL AUTHORITY,27/10/2015,CONTRACTORS AND CLAIM COSTS,DAW MILL,CONSTRUCTION-MAIN CONTRACTORS,D S WILLIAMS PAINTERS & D,0000223939,10000.00
DEPARTMENT OF ENERGY AND CLIMATE CHANGE,THE COAL AUTHORITY,18/09/2015,M/W CHEMICAL OPERATIONAL,DEFRA - WHEAL JANE,ENGRNG GOODS-NON-MDICL CHMCLS,VEOLIA WATER IND OUTSOURC,0000223028,4940.00
DEPARTMENT OF ENERGY AND CLIMATE CHANGE,THE COAL AUTHORITY,18/09/2015,M/W CONTRCTR OPRNTL MTHLY MAIN,DEFRA - WHEAL JANE,CONSTRUCTION-CNSTRN SER PROVDR,VEOLIA WATER IND OUTSOURC,0000223028,32834.07
DEPARTMENT OF ENERGY AND CLIMATE CHANGE,THE COAL AUTHORITY,18/09/2015,M/W POWER COSTS,DEFRA - WHEAL JANE,ENERGY&UTILITIES-ELECTRICITY,VEOLIA WATER IND OUTSOURC,0000223028,333.38
DEPARTMENT OF ENERGY AND CLIMATE CHANGE,THE COAL AUTHORITY,05/10/2015,M/W POWER COSTS,DEFRA - WHEAL JANE,ENERGY&UTILITIES-ELECTRICITY,EDF ENERGY,0000223436,21958.80
DEPARTMENT OF ENERGY AND CLIMATE CHANGE,THE COAL AUTHORITY,30/06/2015,M/W SCOPING/FEASIBILITY/CONCEP,DEFRA - WHEAL JANE,PROF SER TECH-ENGINEERING SER,MOTT MACDONALD LTD,0000223355,2707.20
DEPARTMENT OF ENERGY AND CLIMATE CHANGE,THE COAL AUTHORITY,18/09/2015,M/W SLUDGE DISPOSAL,DEFRA - WHEAL JANE,CONSTRUCTION-CNSTRN SER PROVDR,VEOLIA WATER IND OUTSOURC,0000223028,27083.34
DEPARTMENT OF ENERGY AND CLIMATE CHANGE,THE COAL AUTHORITY,12/10/2015,CURR YR ADDNS NON COAL MINES,DEFRA PROGRAMME,CONSTRUCTION-MAIN CONTRACTORS,J N BENTLEY LIMITED,0000223452,4277.33
DEPARTMENT OF ENERGY AND CLIMATE CHANGE,THE COAL AUTHORITY,13/10/2015,CURR YR ADDNS NON COAL MINES,DEFRA PROGRAMME,CONSTRUCTION-MAIN CONTRACTORS,J N BENTLEY LIMITED,0000223487,1452.10
DEPARTMENT OF ENERGY AND CLIMATE CHANGE,THE COAL AUTHORITY,13/10/2015,CURR YR ADDNS NON COAL MINES,DEFRA PROGRAMME,CONSTRUCTION-MAIN CONTRACTORS,J N BENTLEY LIMITED,0000223488,1089.07
DEPARTMENT OF ENERGY AND CLIMATE CHANGE,THE COAL AUTHORITY,08/10/2015,INCIDENTALS,DEFRA PROGRAMME,VEHICLES-FLEET MANAGEMENT,COMPANY BARCLAYCARD,0000223663,28.75
DEPARTMENT OF ENERGY AND CLIMATE CHANGE,THE COAL AUTHORITY,30/10/2015,M/W CNTRCTR-OPRTNL MNTLY TSKS,DEFRA PROGRAMME,CONSTRUCTION-MAIN CONTRACTORS,SEVERN TRENT WATER,0000223836,76.19
DEPARTMENT OF ENERGY AND CLIMATE CHANGE,THE COAL AUTHORITY,30/10/2015,M/W CNTRCTR-OPRTNL MNTLY TSKS,DEFRA PROGRAMME,CONSTRUCTION-MAIN CONTRACTORS,SEVERN TRENT WATER,0000223836,861.38
DEPARTMENT OF ENERGY AND CLIMATE CHANGE,THE COAL AUTHORITY,30/10/2015,M/W CNTRCTR-OPRTNL MNTLY TSKS,DEFRA PROGRAMME,CONSTRUCTION-MAIN CONTRACTORS,SEVERN TRENT WATER,0000223836,71.28
DEPARTMENT OF ENERGY AND CLIMATE CHANGE,THE COAL AUTHORITY,30/10/2015,M/W CONTRCTR OPRNTL MTHLY MAIN,DEFRA PROGRAMME,CONSTRUCTION-MAIN CONTRACTORS,SEVERN TRENT WATER,0000223836,26.67
DEPARTMENT OF ENERGY AND CLIMATE CHANGE,THE COAL AUTHORITY,30/10/2015,M/W CONTRCTR OPRNTL MTHLY MAIN,DEFRA PROGRAMME,CONSTRUCTION-MAIN CONTRACTORS,SEVERN TRENT WATER,0000223836,22.86
DEPARTMENT OF ENERGY AND CLIMATE CHANGE,THE COAL AUTHORITY,30/10/2015,M/W CONTRCTR OPRNTL MTHLY MAIN,DEFRA PROGRAMME,CONSTRUCTION-MAIN CONTRACTORS,SEVERN TRENT WATER,0000223836,481.89
DEPARTMENT OF ENERGY AND CLIMATE CHANGE,THE COAL AUTHORITY,30/10/2015,M/W CONTRCTR OPRNTL MTHLY MAIN,DEFRA PROGRAMME,CONSTRUCTION-MAIN CONTRACTORS,SEVERN TRENT WATER,0000223836,128.76
DEPARTMENT OF ENERGY AND CLIMATE CHANGE,THE COAL AUTHORITY,30/10/2015,M/W CONTRCTR OPRNTL MTHLY MAIN,DEFRA PROGRAMME,CONSTRUCTION-MAIN CONTRACTORS,SEVERN TRENT WATER,0000223836,22.86
DEPARTMENT OF ENERGY AND CLIMATE CHANGE,THE COAL AUTHORITY,30/10/2015,M/W CONTRCTR OPRNTL MTHLY MAIN,DEFRA PROGRAMME,CONSTRUCTION-MAIN CONTRACTORS,SEVERN TRENT WATER,0000223836,227.40
DEPARTMENT OF ENERGY AND CLIMATE CHANGE,THE COAL AUTHORITY,30/10/2015,M/W CONTRCTR OPRNTL MTHLY MAIN,DEFRA PROGRAMME,CONSTRUCTION-MAIN CONTRACTORS,SEVERN TRENT WATER,0000223836,38.09
DEPARTMENT OF ENERGY AND CLIMATE CHANGE,THE COAL AUTHORITY,30/10/2015,M/W CONTRCTR OPRNTL MTHLY MAIN,DEFRA PROGRAMME,CONSTRUCTION-MAIN CONTRACTORS,SEVERN TRENT WATER,0000223836,26.67
DEPARTMENT OF ENERGY AND CLIMATE CHANGE,THE COAL AUTHORITY,01/10/2015,M/W LAND AGENTS (AQUISITIONS),DEFRA PROGRAMME,PROF SER-OPERATIONAL SERVICES,GROND INVESTIGATION LICEN,0000223257,250.00
DEPARTMENT OF ENERGY AND CLIMATE CHANGE,THE COAL AUTHORITY,30/09/2015,M/W LAND AGENTS (AQUISITIONS),DEFRA PROGRAMME,PROF SER TECH-ENGINEERING SER,MARK N CAREY LIMITED,0000223545,65.00
DEPARTMENT OF ENERGY AND CLIMATE CHANGE,THE COAL AUTHORITY,30/09/2015,M/W LAND AGENTS (AQUISITIONS),DEFRA PROGRAMME,PROF SER TECH-ENGINEERING SER,MARK N CAREY LIMITED,0000223547,565.00
DEPARTMENT OF ENERGY AND CLIMATE CHANGE,THE COAL AUTHORITY,30/09/2015,M/W LAND AGENTS (AQUISITIONS),DEFRA PROGRAMME,PROF SER TECH-ENGINEERING SER,MARK N CAREY LIMITED,0000223548,1079.00
DEPARTMENT OF ENERGY AND CLIMATE CHANGE,THE COAL AUTHORITY,30/09/2015,M/W LAND AGENTS (AQUISITIONS),DEFRA PROGRAMME,PROF SER TECH-ENGINEERING SER,MARK N CAREY LIMITED,0000223549,279.50
DEPARTMENT OF ENERGY AND CLIMATE CHANGE,THE COAL AUTHORITY,30/09/2015,M/W LAND AGENTS (AQUISITIONS),DEFRA PROGRAMME,PROF SER TECH-ENGINEERING SER,MARK N CAREY LIMITED,0000223550,65.00
DEPARTMENT OF ENERGY AND CLIMATE CHANGE,THE COAL AUTHORITY,30/09/2015,M/W LAND AGENTS (AQUISITIONS),DEFRA PROGRAMME,PROF SER TECH-ENGINEERING SER,MARK N CAREY LIMITED,0000223551,682.50
DEPARTMENT OF ENERGY AND CLIMATE CHANGE,THE COAL AUTHORITY,26/10/2015,M/W LAND AGENTS (AQUISITIONS),DEFRA PROGRAMME,PROF SER TECH-ENGINEERING SER,ATKINS LIMITED,0000223877,637.50
DEPARTMENT OF ENERGY AND CLIMATE CHANGE,THE COAL AUTHORITY,01/10/2015,M/W POWER COSTS,DEFRA PROGRAMME,ENERGY&UTILITIES-ELECTRICITY,EDF ENERGY CUSTOMERS PLC,0000223439,2115.13
DEPARTMENT OF ENERGY AND CLIMATE CHANGE,THE COAL AUTHORITY,30/10/2015,M/W POWER COSTS,DEFRA PROGRAMME,CONSTRUCTION-MAIN CONTRACTORS,SEVERN TRENT WATER,0000223836,142.57
DEPARTMENT OF ENERGY AND CLIMATE CHANGE,THE COAL AUTHORITY,03/10/2015,M/W RENTS PAYABLE,DEFRA PROGRAMME,FACILITIES-BUILDING MANAGEMENT,WHARTON ESTATES,0000223581,7075.39
DEPARTMENT OF ENERGY AND CLIMATE CHANGE,THE COAL AUTHORITY,03/10/2015,M/W RENTS PAYABLE,DEFRA PROGRAMME,FACILITIES-BUILDING MANAGEMENT,WHARTON ESTATES,0000223582,866.25
DEPARTMENT OF ENERGY AND CLIMATE CHANGE,THE COAL AUTHORITY,15/09/2015,M/W SCOPING/FEASIBILITY/CONCEP,DEFRA PROGRAMME,PROF SER TECH-ENGINEERING SER,ATKINS LIMITED,0000222916,611.52
DEPARTMENT OF ENERGY AND CLIMATE CHANGE,THE COAL AUTHORITY,15/09/2015,M/W SCOPING/FEASIBILITY/CONCEP,DEFRA PROGRAMME,PROF SER TECH-ENGINEERING SER,ATKINS LIMITED,0000222917,713.04
DEPARTMENT OF ENERGY AND CLIMATE CHANGE,THE COAL AUTHORITY,30/09/2015,M/W SCOPING/FEASIBILITY/CONCEP,DEFRA PROGRAMME,PROF SER TECH-ENGINEERING SER,MOUCHEL LTD,0000223242,5458.40
DEPARTMENT OF ENERGY AND CLIMATE CHANGE,THE COAL AUTHORITY,30/09/2015,M/W SCOPING/FEASIBILITY/CONCEP,DEFRA PROGRAMME,PROF SER TECH-ENGINEERING SER,MOUCHEL LTD,0000223243,5503.63
DEPARTMENT OF ENERGY AND CLIMATE CHANGE,THE COAL AUTHORITY,26/09/2015,M/W SCOPING/FEASIBILITY/CONCEP,DEFRA PROGRAMME,PROF SER TECH-ENGINEERING SER,GOLDER ASSOCIATES (UK) LT,0000223293,9463.00
DEPARTMENT OF ENERGY AND CLIMATE CHANGE,THE COAL AUTHORITY,28/10/2015,M/W SCOPING/FEASIBILITY/CONCEP,DEFRA PROGRAMME,CONSTRUCTION-CNSTRN SER PROVDR,CORNERSTONE  PROJECTS LTD,0000223916,375.44
DEPARTMENT OF ENERGY AND CLIMATE CHANGE,THE COAL AUTHORITY,28/10/2015,M/W SCOPING/FEASIBILITY/CONCEP,DEFRA PROGRAMME,CONSTRUCTION-CNSTRN SER PROVDR,CORNERSTONE  PROJECTS LTD,0000223917,322.44
DEPARTMENT OF ENERGY AND CLIMATE CHANGE,THE COAL AUTHORITY,08/10/2015,MILEAGE PAYMENTS,DEFRA PROGRAMME,FACILITIES - FOOD,COMPANY BARCLAYCARD,0000223663,11.86
DEPARTMENT OF ENERGY AND CLIMATE CHANGE,THE COAL AUTHORITY,24/09/2015,R&D-EXTERNAL COSTS,DEFRA PROGRAMME,PROF SER TECH-ENGINEERING SER,REMEDIOS LIMITED,0000223107,44469.60
DEPARTMENT OF ENERGY AND CLIMATE CHANGE,THE COAL AUTHORITY,09/10/2015,R&D-EXTERNAL COSTS,DEFRA PROGRAMME,PROF SER TECH-FORENSIC/LAB SER,ENVIRONMENTAL SCIENTIFICS,0000223603,307.68
DEPARTMENT OF ENERGY AND CLIMATE CHANGE,THE COAL AUTHORITY,13/10/2015,R&D-EXTERNAL COSTS,DEFRA PROGRAMME,PROF SER TECH-ENGINEERING SER,DE MONTFORT UNIVERSITY,0000223608,2640.72
DEPARTMENT OF ENERGY AND CLIMATE CHANGE,THE COAL AUTHORITY,30/10/2015,R&D-EXTERNAL COSTS,DEFRA PROGRAMME,CONSTRUCTION-MAIN CONTRACTORS,SEVERN TRENT WATER,0000223836,422.84
DEPARTMENT OF ENERGY AND CLIMATE CHANGE,THE COAL AUTHORITY,30/10/2015,R&D-EXTERNAL COSTS,DEFRA PROGRAMME,CONSTRUCTION-MAIN CONTRACTORS,SEVERN TRENT WATER,0000223836,1284.44
DEPARTMENT OF ENERGY AND CLIMATE CHANGE,THE COAL AUTHORITY,08/10/2015,SUBSISTENCE ALLOWANCES,DEFRA PROGRAMME,FACILITIES - FOOD,COMPANY BARCLAYCARD,0000223682,6.63
DEPARTMENT OF ENERGY AND CLIMATE CHANGE,THE COAL AUTHORITY,08/10/2015,SUBSISTENCE ALLOWANCES,DEFRA PROGRAMME,FACILITIES - FOOD,COMPANY BARCLAYCARD,0000223692,63.83
DEPARTMENT OF ENERGY AND CLIMATE CHANGE,THE COAL AUTHORITY,08/10/2015,SUBSISTENCE ALLOWANCES,DEFRA PROGRAMME,FACILITIES - FOOD,COMPANY BARCLAYCARD,0000223692,41.29
DEPARTMENT OF ENERGY AND CLIMATE CHANGE,THE COAL AUTHORITY,08/10/2015,SUBSISTENCE ALLOWANCES,DEFRA PROGRAMME,FACILITIES - FOOD,COMPANY BARCLAYCARD,0000223744,18.30
DEPARTMENT OF ENERGY AND CLIMATE CHANGE,THE COAL AUTHORITY,08/10/2015,SUBSISTENCE ALLOWANCES,DEFRA PROGRAMME,FACILITIES - FOOD,COMPANY BARCLAYCARD,0000223744,7.32
DEPARTMENT OF ENERGY AND CLIMATE CHANGE,THE COAL AUTHORITY,22/10/2015,SUBSISTENCE ALLOWANCES,DEFRA PROGRAMME,FACILITIES - FOOD,STAFF EXPENSES CONTROL,0000223785,7.37
DEPARTMENT OF ENERGY AND CLIMATE CHANGE,THE COAL AUTHORITY,30/10/2015,WATER SAMPLING - OPERATIONAL,DEFRA PROGRAMME,CONSTRUCTION-MAIN CONTRACTORS,SEVERN TRENT WATER,0000223836,19.77
DEPARTMENT OF ENERGY AND CLIMATE CHANGE,THE COAL AUTHORITY,30/10/2015,WATER SAMPLING - OPERATIONAL,DEFRA PROGRAMME,CONSTRUCTION-MAIN CONTRACTORS,SEVERN TRENT WATER,0000223836,129.62
DEPARTMENT OF ENERGY AND CLIMATE CHANGE,THE COAL AUTHORITY,30/10/2015,WATER SAMPLING - OPERATIONAL,DEFRA PROGRAMME,CONSTRUCTION-MAIN CONTRACTORS,SEVERN TRENT WATER,0000223836,129.62
DEPARTMENT OF ENERGY AND CLIMATE CHANGE,THE COAL AUTHORITY,30/10/2015,WATER SAMPLING - OPERATIONAL,DEFRA PROGRAMME,CONSTRUCTION-MAIN CONTRACTORS,SEVERN TRENT WATER,0000223836,129.62
DEPARTMENT OF ENERGY AND CLIMATE CHANGE,THE COAL AUTHORITY,30/10/2015,WATER SAMPLING - OPERATIONAL,DEFRA PROGRAMME,CONSTRUCTION-MAIN CONTRACTORS,SEVERN TRENT WATER,0000223836,194.43
DEPARTMENT OF ENERGY AND CLIMATE CHANGE,THE COAL AUTHORITY,30/10/2015,WATER SAMPLING - OPERATIONAL,DEFRA PROGRAMME,CONSTRUCTION-MAIN CONTRACTORS,SEVERN TRENT WATER,0000223836,772.60
DEPARTMENT OF ENERGY AND CLIMATE CHANGE,THE COAL AUTHORITY,30/10/2015,WATER SAMPLING - OPERATIONAL,DEFRA PROGRAMME,CONSTRUCTION-MAIN CONTRACTORS,SEVERN TRENT WATER,0000223836,69.50
DEPARTMENT OF ENERGY AND CLIMATE CHANGE,THE COAL AUTHORITY,30/10/2015,WATER SAMPLING - OPERATIONAL,DEFRA PROGRAMME,CONSTRUCTION-MAIN CONTRACTORS,SEVERN TRENT WATER,0000223836,759.06
DEPARTMENT OF ENERGY AND CLIMATE CHANGE,THE COAL AUTHORITY,30/10/2015,WATER SAMPLING - OPERATIONAL,DEFRA PROGRAMME,CONSTRUCTION-MAIN CONTRACTORS,SEVERN TRENT WATER,0000223836,777.72
DEPARTMENT OF ENERGY AND CLIMATE CHANGE,THE COAL AUTHORITY,30/10/2015,WATER SAMPLING - OPERATIONAL,DEFRA PROGRAMME,CONSTRUCTION-MAIN CONTRACTORS,SEVERN TRENT WATER,0000223836,64.81
DEPARTMENT OF ENERGY AND CLIMATE CHANGE,THE COAL AUTHORITY,30/10/2015,WATER SAMPLING - OPERATIONAL,DEFRA PROGRAMME,CONSTRUCTION-MAIN CONTRACTORS,SEVERN TRENT WATER,0000223836,64.81
DEPARTMENT OF ENERGY AND CLIMATE CHANGE,THE COAL AUTHORITY,22/09/2015,CAR HIRE,ENVIRONMENT - ZERO COST PROG,TRAVEL&EVENTS-VEHICLE HIRE,ENTERPRISE RENT A CAR,0000223362,85.96
DEPARTMENT OF ENERGY AND CLIMATE CHANGE,THE COAL AUTHORITY,30/09/2015,FARES - RAIL,ENVIRONMENT - ZERO COST PROG,TRAVEL&EVENTS-RAIL,REDFERN TRAVEL LTD,0000223444,139.59
DEPARTMENT OF ENERGY AND CLIMATE CHANGE,THE COAL AUTHORITY,30/09/2015,FARES - RAIL,ENVIRONMENT - ZERO COST PROG,TRAVEL&EVENTS-RAIL,REDFERN TRAVEL LTD,0000223445,-160.87
DEPARTMENT OF ENERGY AND CLIMATE CHANGE,THE COAL AUTHORITY,08/10/2015,FUEL (VEHICLE),ENVIRONMENT - ZERO COST PROG,FUELS/LUBRCNT/GAS-FUELS,COMPANY BARCLAYCARD,0000223723,68.91
DEPARTMENT OF ENERGY AND CLIMATE CHANGE,THE COAL AUTHORITY,30/09/2015,HOTEL ACCOMMODATION,ENVIRONMENT - ZERO COST PROG,TRAVEL&EVENTS-HOTELS,REDFERN TRAVEL LTD,0000223446,1.71
DEPARTMENT OF ENERGY AND CLIMATE CHANGE,THE COAL AUTHORITY,08/10/2015,INCIDENTALS,ENVIRONMENT - ZERO COST PROG,VEHICLES-FLEET MANAGEMENT,COMPANY BARCLAYCARD,0000223665,6.25
DEPARTMENT OF ENERGY AND CLIMATE CHANGE,THE COAL AUTHORITY,08/10/2015,INCIDENTALS,ENVIRONMENT - ZERO COST PROG,VEHICLES-FLEET MANAGEMENT,COMPANY BARCLAYCARD,0000223723,29.66
DEPARTMENT OF ENERGY AND CLIMATE CHANGE,THE COAL AUTHORITY,08/10/2015,INCIDENTALS,ENVIRONMENT - ZERO COST PROG,VEHICLES-FLEET MANAGEMENT,COMPANY BARCLAYCARD,0000223724,3.33
DEPARTMENT OF ENERGY AND CLIMATE CHANGE,THE COAL AUTHORITY,31/08/2015,INNOVATION COSTS,ENVIRONMENT - ZERO COST PROG,PROF SER CNSLTNCY-STRATEGY,CARTER JONAS,0000222736,5000.00
DEPARTMENT OF ENERGY AND CLIMATE CHANGE,THE COAL AUTHORITY,22/10/2015,MILEAGE PAYMENTS,ENVIRONMENT - ZERO COST PROG,FUELS/LUBRCNT/GAS-FUELS,STAFF EXPENSES CONTROL,0000223779,36.90
DEPARTMENT OF ENERGY AND CLIMATE CHANGE,THE COAL AUTHORITY,08/10/2015,SUBSISTENCE ALLOWANCES,ENVIRONMENT - ZERO COST PROG,FACILITIES - FOOD,COMPANY BARCLAYCARD,0000223723,31.14
DEPARTMENT OF ENERGY AND CLIMATE CHANGE,THE COAL AUTHORITY,08/10/2015,SUBSISTENCE ALLOWANCES,ENVIRONMENT - ZERO COST PROG,FACILITIES - FOOD,COMPANY BARCLAYCARD,0000223724,18.55
DEPARTMENT OF ENERGY AND CLIMATE CHANGE,THE COAL AUTHORITY,30/09/2015,CONTRACT HIRE VEHICLES,FACILITIES MANAGEMENT,VEHICLES-VEHICLE MAINTENANCE,AUTO SMART VALETING LTD,0000223360,432.00
DEPARTMENT OF ENERGY AND CLIMATE CHANGE,THE COAL AUTHORITY,05/10/2015,CONTRACT HIRE VEHICLES,FACILITIES MANAGEMENT,VEHICLES-VEHICLE MAINTENANCE,PENTAGON,0000223367,21.15
DEPARTMENT OF ENERGY AND CLIMATE CHANGE,THE COAL AUTHORITY,05/10/2015,CONTRACT HIRE VEHICLES,FACILITIES MANAGEMENT,VEHICLES-VEHICLE MAINTENANCE,PENTAGON,0000223368,21.15
DEPARTMENT OF ENERGY AND CLIMATE CHANGE,THE COAL AUTHORITY,02/10/2015,CONTRACT HIRE VEHICLES,FACILITIES MANAGEMENT,VEHICLES-VEHICLE MAINTENANCE,PENTAGON,0000223369,21.15
DEPARTMENT OF ENERGY AND CLIMATE CHANGE,THE COAL AUTHORITY,02/10/2015,CONTRACT HIRE VEHICLES,FACILITIES MANAGEMENT,VEHICLES-VEHICLE MAINTENANCE,PENTAGON,0000223370,21.15
DEPARTMENT OF ENERGY AND CLIMATE CHANGE,THE COAL AUTHORITY,28/09/2015,CONTRACT HIRE VEHICLES,FACILITIES MANAGEMENT,VEHICLES-VEHICLE MAINTENANCE,PENTAGON,0000223371,21.15
DEPARTMENT OF ENERGY AND CLIMATE CHANGE,THE COAL AUTHORITY,28/09/2015,CONTRACT HIRE VEHICLES,FACILITIES MANAGEMENT,VEHICLES-VEHICLE MAINTENANCE,PENTAGON,0000223372,21.15
DEPARTMENT OF ENERGY AND CLIMATE CHANGE,THE COAL AUTHORITY,25/09/2015,CONTRACT HIRE VEHICLES,FACILITIES MANAGEMENT,FUELS/LUBRCNT/GAS-FUELS,PENTAGON,0000223373,21.15
DEPARTMENT OF ENERGY AND CLIMATE CHANGE,THE COAL AUTHORITY,25/09/2015,CONTRACT HIRE VEHICLES,FACILITIES MANAGEMENT,VEHICLES-VEHICLE MAINTENANCE,PENTAGON,0000223374,21.15
DEPARTMENT OF ENERGY AND CLIMATE CHANGE,THE COAL AUTHORITY,08/10/2015,CONTRACT HIRE VEHICLES,FACILITIES MANAGEMENT,VEHICLES-VEHICLE MAINTENANCE,COMPANY BARCLAYCARD,0000223725,510.94
DEPARTMENT OF ENERGY AND CLIMATE CHANGE,THE COAL AUTHORITY,01/10/2015,COURIER SERVICES,FACILITIES MANAGEMENT,FACILITIES - SECURITY,SECURITY PLUS LIMITED,0000223250,51.75
DEPARTMENT OF ENERGY AND CLIMATE CHANGE,THE COAL AUTHORITY,05/10/2015,ELECTRICITY,FACILITIES MANAGEMENT,ENERGY&UTILITIES-ELECTRICITY,EDF ENERGY,0000223436,12610.43
DEPARTMENT OF ENERGY AND CLIMATE CHANGE,THE COAL AUTHORITY,30/09/2015,FARES - RAIL,FACILITIES MANAGEMENT,TRAVEL&EVENTS-RAIL,REDFERN TRAVEL LTD,0000223444,185.46
DEPARTMENT OF ENERGY AND CLIMATE CHANGE,THE COAL AUTHORITY,30/09/2015,FUEL (VEHICLE),FACILITIES MANAGEMENT,FUELS/LUBRCNT/GAS-FUELS,ALLSTAR BUSINESS SOLUTION,0000223260,42.05
DEPARTMENT OF ENERGY AND CLIMATE CHANGE,THE COAL AUTHORITY,30/09/2015,FUEL (VEHICLE),FACILITIES MANAGEMENT,FUELS/LUBRCNT/GAS-FUELS,ALLSTAR BUSINESS SOLUTION,0000223261,63.76
DEPARTMENT OF ENERGY AND CLIMATE CHANGE,THE COAL AUTHORITY,30/09/2015,FUEL (VEHICLE),FACILITIES MANAGEMENT,FUELS/LUBRCNT/GAS-FUELS,ALLSTAR BUSINESS SOLUTION,0000223262,52.28
DEPARTMENT OF ENERGY AND CLIMATE CHANGE,THE COAL AUTHORITY,30/09/2015,FUEL (VEHICLE),FACILITIES MANAGEMENT,FUELS/LUBRCNT/GAS-FUELS,ALLSTAR BUSINESS SOLUTION,0000223263,32.06
DEPARTMENT OF ENERGY AND CLIMATE CHANGE,THE COAL AUTHORITY,30/09/2015,FUEL (VEHICLE),FACILITIES MANAGEMENT,FUELS/LUBRCNT/GAS-FUELS,ALLSTAR BUSINESS SOLUTION,0000223264,76.32
DEPARTMENT OF ENERGY AND CLIMATE CHANGE,THE COAL AUTHORITY,30/09/2015,FUEL (VEHICLE),FACILITIES MANAGEMENT,FUELS/LUBRCNT/GAS-FUELS,ALLSTAR BUSINESS SOLUTION,0000223265,41.16
DEPARTMENT OF ENERGY AND CLIMATE CHANGE,THE COAL AUTHORITY,07/10/2015,FUEL (VEHICLE),FACILITIES MANAGEMENT,FUELS/LUBRCNT/GAS-FUELS,ALLSTAR BUSINESS SOLUTION,0000223336,42.23
DEPARTMENT OF ENERGY AND CLIMATE CHANGE,THE COAL AUTHORITY,07/10/2015,FUEL (VEHICLE),FACILITIES MANAGEMENT,FUELS/LUBRCNT/GAS-FUELS,ALLSTAR BUSINESS SOLUTION,0000223337,58.13
DEPARTMENT OF ENERGY AND CLIMATE CHANGE,THE COAL AUTHORITY,07/10/2015,FUEL (VEHICLE),FACILITIES MANAGEMENT,FUELS/LUBRCNT/GAS-FUELS,ALLSTAR BUSINESS SOLUTION,0000223338,30.92
DEPARTMENT OF ENERGY AND CLIMATE CHANGE,THE COAL AUTHORITY,07/10/2015,FUEL (VEHICLE),FACILITIES MANAGEMENT,FUELS/LUBRCNT/GAS-FUELS,ALLSTAR BUSINESS SOLUTION,0000223339,28.88
DEPARTMENT OF ENERGY AND CLIMATE CHANGE,THE COAL AUTHORITY,07/10/2015,FUEL (VEHICLE),FACILITIES MANAGEMENT,FUELS/LUBRCNT/GAS-FUELS,ALLSTAR BUSINESS SOLUTION,0000223340,34.32
DEPARTMENT OF ENERGY AND CLIMATE CHANGE,THE COAL AUTHORITY,07/10/2015,FUEL (VEHICLE),FACILITIES MANAGEMENT,FUELS/LUBRCNT/GAS-FUELS,ALLSTAR BUSINESS SOLUTION,0000223341,21.99
DEPARTMENT OF ENERGY AND CLIMATE CHANGE,THE COAL AUTHORITY,07/10/2015,FUEL (VEHICLE),FACILITIES MANAGEMENT,FUELS/LUBRCNT/GAS-FUELS,ALLSTAR BUSINESS SOLUTION,0000223342,28.43
DEPARTMENT OF ENERGY AND CLIMATE CHANGE,THE COAL AUTHORITY,14/10/2015,FUEL (VEHICLE),FACILITIES MANAGEMENT,FUELS/LUBRCNT/GAS-FUELS,ALLSTAR BUSINESS SOLUTION,0000223527,42.38
DEPARTMENT OF ENERGY AND CLIMATE CHANGE,THE COAL AUTHORITY,14/10/2015,FUEL (VEHICLE),FACILITIES MANAGEMENT,FUELS/LUBRCNT/GAS-FUELS,ALLSTAR BUSINESS SOLUTION,0000223528,63.92
DEPARTMENT OF ENERGY AND CLIMATE CHANGE,THE COAL AUTHORITY,14/10/2015,FUEL (VEHICLE),FACILITIES MANAGEMENT,FUELS/LUBRCNT/GAS-FUELS,ALLSTAR BUSINESS SOLUTION,0000223529,104.29
DEPARTMENT OF ENERGY AND CLIMATE CHANGE,THE COAL AUTHORITY,14/10/2015,FUEL (VEHICLE),FACILITIES MANAGEMENT,FUELS/LUBRCNT/GAS-FUELS,ALLSTAR BUSINESS SOLUTION,0000223530,24.65
DEPARTMENT OF ENERGY AND CLIMATE CHANGE,THE COAL AUTHORITY,14/10/2015,FUEL (VEHICLE),FACILITIES MANAGEMENT,FUELS/LUBRCNT/GAS-FUELS,ALLSTAR BUSINESS SOLUTION,0000223531,84.76
DEPARTMENT OF ENERGY AND CLIMATE CHANGE,THE COAL AUTHORITY,14/10/2015,FUEL (VEHICLE),FACILITIES MANAGEMENT,FUELS/LUBRCNT/GAS-FUELS,ALLSTAR BUSINESS SOLUTION,0000223532,39.96
DEPARTMENT OF ENERGY AND CLIMATE CHANGE,THE COAL AUTHORITY,14/10/2015,FUEL (VEHICLE),FACILITIES MANAGEMENT,FUELS/LUBRCNT/GAS-FUELS,ALLSTAR BUSINESS SOLUTION,0000223533,33.49
DEPARTMENT OF ENERGY AND CLIMATE CHANGE,THE COAL AUTHORITY,14/10/2015,FUEL (VEHICLE),FACILITIES MANAGEMENT,FUELS/LUBRCNT/GAS-FUELS,ALLSTAR BUSINESS SOLUTION,0000223534,37.03
DEPARTMENT OF ENERGY AND CLIMATE CHANGE,THE COAL AUTHORITY,08/10/2015,FUEL (VEHICLE),FACILITIES MANAGEMENT,FUELS/LUBRCNT/GAS-FUELS,COMPANY BARCLAYCARD,0000223725,16.70
DEPARTMENT OF ENERGY AND CLIMATE CHANGE,THE COAL AUTHORITY,21/10/2015,FUEL (VEHICLE),FACILITIES MANAGEMENT,FUELS/LUBRCNT/GAS-FUELS,ALLSTAR BUSINESS SOLUTION,0000223761,46.27
DEPARTMENT OF ENERGY AND CLIMATE CHANGE,THE COAL AUTHORITY,21/10/2015,FUEL (VEHICLE),FACILITIES MANAGEMENT,FUELS/LUBRCNT/GAS-FUELS,ALLSTAR BUSINESS SOLUTION,0000223762,40.33
DEPARTMENT OF ENERGY AND CLIMATE CHANGE,THE COAL AUTHORITY,21/10/2015,FUEL (VEHICLE),FACILITIES MANAGEMENT,FUELS/LUBRCNT/GAS-FUELS,ALLSTAR BUSINESS SOLUTION,0000223763,23.35
DEPARTMENT OF ENERGY AND CLIMATE CHANGE,THE COAL AUTHORITY,21/10/2015,FUEL (VEHICLE),FACILITIES MANAGEMENT,FUELS/LUBRCNT/GAS-FUELS,ALLSTAR BUSINESS SOLUTION,0000223764,36.66
DEPARTMENT OF ENERGY AND CLIMATE CHANGE,THE COAL AUTHORITY,21/10/2015,FUEL (VEHICLE),FACILITIES MANAGEMENT,FUELS/LUBRCNT/GAS-FUELS,ALLSTAR BUSINESS SOLUTION,0000223765,70.63
DEPARTMENT OF ENERGY AND CLIMATE CHANGE,THE COAL AUTHORITY,21/10/2015,FUEL (VEHICLE),FACILITIES MANAGEMENT,FUELS/LUBRCNT/GAS-FUELS,ALLSTAR BUSINESS SOLUTION,0000223766,76.52
DEPARTMENT OF ENERGY AND CLIMATE CHANGE,THE COAL AUTHORITY,21/10/2015,FUEL (VEHICLE),FACILITIES MANAGEMENT,FUELS/LUBRCNT/GAS-FUELS,ALLSTAR BUSINESS SOLUTION,0000223767,68.00
DEPARTMENT OF ENERGY AND CLIMATE CHANGE,THE COAL AUTHORITY,28/10/2015,FUEL (VEHICLE),FACILITIES MANAGEMENT,FUELS/LUBRCNT/GAS-FUELS,ALLSTAR BUSINESS SOLUTION,0000223955,58.65
DEPARTMENT OF ENERGY AND CLIMATE CHANGE,THE COAL AUTHORITY,28/10/2015,FUEL (VEHICLE),FACILITIES MANAGEMENT,FUELS/LUBRCNT/GAS-FUELS,ALLSTAR BUSINESS SOLUTION,0000223956,33.55
DEPARTMENT OF ENERGY AND CLIMATE CHANGE,THE COAL AUTHORITY,28/10/2015,FUEL (VEHICLE),FACILITIES MANAGEMENT,FUELS/LUBRCNT/GAS-FUELS,ALLSTAR BUSINESS SOLUTION,0000223957,40.00
DEPARTMENT OF ENERGY AND CLIMATE CHANGE,THE COAL AUTHORITY,28/10/2015,FUEL (VEHICLE),FACILITIES MANAGEMENT,FUELS/LUBRCNT/GAS-FUELS,ALLSTAR BUSINESS SOLUTION,0000223958,35.35
DEPARTMENT OF ENERGY AND CLIMATE CHANGE,THE COAL AUTHORITY,28/10/2015,FUEL (VEHICLE),FACILITIES MANAGEMENT,FUELS/LUBRCNT/GAS-FUELS,ALLSTAR BUSINESS SOLUTION,0000223959,18.40
DEPARTMENT OF ENERGY AND CLIMATE CHANGE,THE COAL AUTHORITY,28/10/2015,FUEL (VEHICLE),FACILITIES MANAGEMENT,FUELS/LUBRCNT/GAS-FUELS,ALLSTAR BUSINESS SOLUTION,0000223960,66.08
DEPARTMENT OF ENERGY AND CLIMATE CHANGE,THE COAL AUTHORITY,14/09/2015,INSURANCE PREMIUMS,FACILITIES MANAGEMENT,VEHICLES-FLEET MANAGEMENT,WILLIS LIMITED,0000223241,13129.16
DEPARTMENT OF ENERGY AND CLIMATE CHANGE,THE COAL AUTHORITY,14/09/2015,INSURANCE PREMIUMS,FACILITIES MANAGEMENT,VEHICLES-FLEET MANAGEMENT,WILLIS LIMITED,0000223249,1875.00
DEPARTMENT OF ENERGY AND CLIMATE CHANGE,THE COAL AUTHORITY,26/03/2015,MEETINGS,FACILITIES MANAGEMENT,FACILITIES - FOOD,NORLAND MANAGED SERVICES,0000219309,1086.28
DEPARTMENT OF ENERGY AND CLIMATE CHANGE,THE COAL AUTHORITY,12/06/2015,MEETINGS,FACILITIES MANAGEMENT,FACILITIES - FOOD,NORLAND MANAGED SERVICES,0000223525,-1086.28
DEPARTMENT OF ENERGY AND CLIMATE CHANGE,THE COAL AUTHORITY,25/09/2015,OUTSOURCED CANTEEN STAFF,FACILITIES MANAGEMENT,FACILITIES - CATERING,NORLAND MANAGED SERVICES,0000223208,2971.00
DEPARTMENT OF ENERGY AND CLIMATE CHANGE,THE COAL AUTHORITY,20/08/2015,OUTSOURCED CANTEEN STAFF,FACILITIES MANAGEMENT,FACILITIES - CATERING,NORLAND MANAGED SERVICES,0000223393,2607.00
DEPARTMENT OF ENERGY AND CLIMATE CHANGE,THE COAL AUTHORITY,25/09/2015,OUTSOURCED CLEANING STAFF,FACILITIES MANAGEMENT,FACILITIES - CLEANING,NORLAND MANAGED SERVICES,0000223208,3336.00
DEPARTMENT OF ENERGY AND CLIMATE CHANGE,THE COAL AUTHORITY,20/08/2015,OUTSOURCED CLEANING STAFF,FACILITIES MANAGEMENT,FACILITIES - CLEANING,NORLAND MANAGED SERVICES,0000223393,4126.00
DEPARTMENT OF ENERGY AND CLIMATE CHANGE,THE COAL AUTHORITY,25/09/2015,OUTSRD BLDING SECRTY STAFF,FACILITIES MANAGEMENT,FACILITIES - SECURITY,NORLAND MANAGED SERVICES,0000223208,5374.00
DEPARTMENT OF ENERGY AND CLIMATE CHANGE,THE COAL AUTHORITY,20/08/2015,OUTSRD BLDING SECRTY STAFF,FACILITIES MANAGEMENT,FACILITIES - SECURITY,NORLAND MANAGED SERVICES,0000223393,5266.00
DEPARTMENT OF ENERGY AND CLIMATE CHANGE,THE COAL AUTHORITY,25/09/2015,PLANT MAINTENANCE,FACILITIES MANAGEMENT,FACILITIES-BUILDING MANAGEMENT,NORLAND MANAGED SERVICES,0000223208,1000.00
DEPARTMENT OF ENERGY AND CLIMATE CHANGE,THE COAL AUTHORITY,22/09/2015,PLANT MAINTENANCE,FACILITIES MANAGEMENT,FACILITIES-BUILDING MANAGEMENT,NORLAND MANAGED SERVICES,0000223378,793.83
DEPARTMENT OF ENERGY AND CLIMATE CHANGE,THE COAL AUTHORITY,22/09/2015,PLANT MAINTENANCE,FACILITIES MANAGEMENT,FACILITIES-BUILDING MANAGEMENT,NORLAND MANAGED SERVICES,0000223379,853.80
DEPARTMENT OF ENERGY AND CLIMATE CHANGE,THE COAL AUTHORITY,22/09/2015,PLANT MAINTENANCE,FACILITIES MANAGEMENT,FACILITIES-BUILDING MANAGEMENT,NORLAND MANAGED SERVICES,0000223380,251.86
DEPARTMENT OF ENERGY AND CLIMATE CHANGE,THE COAL AUTHORITY,20/08/2015,PLANT MAINTENANCE,FACILITIES MANAGEMENT,FACILITIES-BUILDING MANAGEMENT,NORLAND MANAGED SERVICES,0000223393,1000.00
DEPARTMENT OF ENERGY AND CLIMATE CHANGE,THE COAL AUTHORITY,25/09/2015,SITE MAINTENANCE,FACILITIES MANAGEMENT,FACILITIES-BUILDING MANAGEMENT,NORLAND MANAGED SERVICES,0000223208,2489.18
DEPARTMENT OF ENERGY AND CLIMATE CHANGE,THE COAL AUTHORITY,29/09/2015,SITE MAINTENANCE,FACILITIES MANAGEMENT,FACILITIES-BUILDING MANAGEMENT,SWS ENVIRONMENTAL SERVICE,0000223365,250.00
DEPARTMENT OF ENERGY AND CLIMATE CHANGE,THE COAL AUTHORITY,22/09/2015,SITE MAINTENANCE,FACILITIES MANAGEMENT,FACILITIES-BUILDING MANAGEMENT,NORLAND MANAGED SERVICES,0000223376,725.91
DEPARTMENT OF ENERGY AND CLIMATE CHANGE,THE COAL AUTHORITY,22/09/2015,SITE MAINTENANCE,FACILITIES MANAGEMENT,FACILITIES-BUILDING MANAGEMENT,NORLAND MANAGED SERVICES,0000223377,834.05
DEPARTMENT OF ENERGY AND CLIMATE CHANGE,THE COAL AUTHORITY,22/09/2015,SITE MAINTENANCE,FACILITIES MANAGEMENT,FACILITIES-BUILDING MANAGEMENT,NORLAND MANAGED SERVICES,0000223381,138.82
DEPARTMENT OF ENERGY AND CLIMATE CHANGE,THE COAL AUTHORITY,22/09/2015,SITE MAINTENANCE,FACILITIES MANAGEMENT,FACILITIES-BUILDING MANAGEMENT,NORLAND MANAGED SERVICES,0000223382,83.29
DEPARTMENT OF ENERGY AND CLIMATE CHANGE,THE COAL AUTHORITY,23/09/2015,SITE MAINTENANCE,FACILITIES MANAGEMENT,FACILITIES-BUILDING MANAGEMENT,NORLAND MANAGED SERVICES,0000223383,105.56
DEPARTMENT OF ENERGY AND CLIMATE CHANGE,THE COAL AUTHORITY,22/09/2015,SITE MAINTENANCE,FACILITIES MANAGEMENT,FACILITIES-BUILDING MANAGEMENT,NORLAND MANAGED SERVICES,0000223384,417.90
DEPARTMENT OF ENERGY AND CLIMATE CHANGE,THE COAL AUTHORITY,22/09/2015,SITE MAINTENANCE,FACILITIES MANAGEMENT,FACILITIES-BUILDING MANAGEMENT,NORLAND MANAGED SERVICES,0000223385,1081.11
DEPARTMENT OF ENERGY AND CLIMATE CHANGE,THE COAL AUTHORITY,22/09/2015,SITE MAINTENANCE,FACILITIES MANAGEMENT,FACILITIES-BUILDING MANAGEMENT,NORLAND MANAGED SERVICES,0000223386,330.00
DEPARTMENT OF ENERGY AND CLIMATE CHANGE,THE COAL AUTHORITY,22/09/2015,SITE MAINTENANCE,FACILITIES MANAGEMENT,FACILITIES-BUILDING MANAGEMENT,NORLAND MANAGED SERVICES,0000223387,515.52
DEPARTMENT OF ENERGY AND CLIMATE CHANGE,THE COAL AUTHORITY,22/09/2015,SITE MAINTENANCE,FACILITIES MANAGEMENT,FACILITIES-BUILDING MANAGEMENT,NORLAND MANAGED SERVICES,0000223388,99.60
DEPARTMENT OF ENERGY AND CLIMATE CHANGE,THE COAL AUTHORITY,22/09/2015,SITE MAINTENANCE,FACILITIES MANAGEMENT,FACILITIES-BUILDING MANAGEMENT,NORLAND MANAGED SERVICES,0000223389,1169.54
DEPARTMENT OF ENERGY AND CLIMATE CHANGE,THE COAL AUTHORITY,22/09/2015,SITE MAINTENANCE,FACILITIES MANAGEMENT,FACILITIES-BUILDING MANAGEMENT,NORLAND MANAGED SERVICES,0000223390,420.47
DEPARTMENT OF ENERGY AND CLIMATE CHANGE,THE COAL AUTHORITY,23/09/2015,SITE MAINTENANCE,FACILITIES MANAGEMENT,FACILITIES-BUILDING MANAGEMENT,NORLAND MANAGED SERVICES,0000223391,3478.09
DEPARTMENT OF ENERGY AND CLIMATE CHANGE,THE COAL AUTHORITY,23/09/2015,SITE MAINTENANCE,FACILITIES MANAGEMENT,FACILITIES-BUILDING MANAGEMENT,NORLAND MANAGED SERVICES,0000223392,557.84
DEPARTMENT OF ENERGY AND CLIMATE CHANGE,THE COAL AUTHORITY,20/08/2015,SITE MAINTENANCE,FACILITIES MANAGEMENT,FACILITIES-BUILDING MANAGEMENT,NORLAND MANAGED SERVICES,0000223393,2511.00
DEPARTMENT OF ENERGY AND CLIMATE CHANGE,THE COAL AUTHORITY,08/10/2015,SITE MAINTENANCE,FACILITIES MANAGEMENT,FACILITIES-BUILDING MANAGEMENT,COMPANY BARCLAYCARD,0000223725,34.12
DEPARTMENT OF ENERGY AND CLIMATE CHANGE,THE COAL AUTHORITY,08/10/2015,SITE MAINTENANCE,FACILITIES MANAGEMENT,FACILITIES - SECURITY,COMPANY BARCLAYCARD,0000223725,178.12
DEPARTMENT OF ENERGY AND CLIMATE CHANGE,THE COAL AUTHORITY,16/09/2015,SITE SERVICES,FACILITIES MANAGEMENT,WASTE MANAGEMENT-WSTE MNGT SER,BANNER BUSINESS SOLUTIONS,0000223053,23.40
DEPARTMENT OF ENERGY AND CLIMATE CHANGE,THE COAL AUTHORITY,23/09/2015,SITE SERVICES,FACILITIES MANAGEMENT,WASTE MANAGEMENT-WSTE MNGT SER,BANNER BUSINESS SOLUTIONS,0000223178,18.90
DEPARTMENT OF ENERGY AND CLIMATE CHANGE,THE COAL AUTHORITY,25/09/2015,SITE SERVICES,FACILITIES MANAGEMENT,FACILITIES-BUILDING MANAGEMENT,NORLAND MANAGED SERVICES,0000223208,2667.07
DEPARTMENT OF ENERGY AND CLIMATE CHANGE,THE COAL AUTHORITY,30/09/2015,SITE SERVICES,FACILITIES MANAGEMENT,WASTE MANAGEMENT-WSTE MNGT SER,ICS WASTE MANAGEMENT,0000223364,364.50
DEPARTMENT OF ENERGY AND CLIMATE CHANGE,THE COAL AUTHORITY,30/09/2015,SITE SERVICES,FACILITIES MANAGEMENT,WASTE MANAGEMENT-WSTE MNGT SER,BANNER BUSINESS SOLUTIONS,0000223366,21.60
DEPARTMENT OF ENERGY AND CLIMATE CHANGE,THE COAL AUTHORITY,20/08/2015,SITE SERVICES,FACILITIES MANAGEMENT,FACILITIES-BUILDING MANAGEMENT,NORLAND MANAGED SERVICES,0000223393,2327.25
DEPARTMENT OF ENERGY AND CLIMATE CHANGE,THE COAL AUTHORITY,14/10/2015,SITE SERVICES,FACILITIES MANAGEMENT,WASTE MANAGEMENT-WSTE MNGT SER,BANNER BUSINESS SOLUTIONS,0000223629,36.00
DEPARTMENT OF ENERGY AND CLIMATE CHANGE,THE COAL AUTHORITY,08/10/2015,STAFF EVENTS,FACILITIES MANAGEMENT,OPRTNL GOODS&SERV-CLOTHING,COMPANY BARCLAYCARD,0000223725,9.79
DEPARTMENT OF ENERGY AND CLIMATE CHANGE,THE COAL AUTHORITY,16/09/2015,STATIONERY,FACILITIES MANAGEMENT,OFFICE SOLUTIONS-OFFCE SPPLIES,BANNER BUSINESS SOLUTIONS,0000223054,503.46
DEPARTMENT OF ENERGY AND CLIMATE CHANGE,THE COAL AUTHORITY,26/09/2015,STATIONERY,FACILITIES MANAGEMENT,OFFICE SOLUTIONS-OFFCE SPPLIES,BANNER BUSINESS SOLUTIONS,0000223206,10.50
DEPARTMENT OF ENERGY AND CLIMATE CHANGE,THE COAL AUTHORITY,26/09/2015,STATIONERY,FACILITIES MANAGEMENT,OFFICE SOLUTIONS-OFFCE SPPLIES,BANNER BUSINESS SOLUTIONS,0000223207,3.48
DEPARTMENT OF ENERGY AND CLIMATE CHANGE,THE COAL AUTHORITY,14/10/2015,STATIONERY,FACILITIES MANAGEMENT,OFFICE SOLUTIONS-OFFCE SPPLIES,BANNER BUSINESS SOLUTIONS,0000223628,68.38
DEPARTMENT OF ENERGY AND CLIMATE CHANGE,THE COAL AUTHORITY,08/10/2015,SUNDRY OFFICE EXPENSES,FACILITIES MANAGEMENT,FACILITIES-BUILDING MANAGEMENT,COMPANY BARCLAYCARD,0000223725,123.49
DEPARTMENT OF ENERGY AND CLIMATE CHANGE,THE COAL AUTHORITY,12/10/2015,WATER CHARGES,FACILITIES MANAGEMENT,ENERGY&UTILITIES-WATER,SEVERN TRENT WATER,0000223509,2490.83
DEPARTMENT OF ENERGY AND CLIMATE CHANGE,THE COAL AUTHORITY,27/09/2015,WORKS PROJECTS,FACILITIES MANAGEMENT,FACILITIES-BUILDING MANAGEMENT,LEVERTON UK LTD,0000223197,8726.20
DEPARTMENT OF ENERGY AND CLIMATE CHANGE,THE COAL AUTHORITY,27/09/2015,WORKS PROJECTS,FACILITIES MANAGEMENT,FACILITIES-BUILDING MANAGEMENT,LEVERTON UK LTD,0000223198,1373.80
DEPARTMENT OF ENERGY AND CLIMATE CHANGE,THE COAL AUTHORITY,01/10/2015,CHILDCARE VOUCHERS,FINANCE,PERSONNEL RLTD-STAFF CHILDCARE,FIDELITI LIMITED,0000223287,124.00
DEPARTMENT OF ENERGY AND CLIMATE CHANGE,THE COAL AUTHORITY,13/10/2015,CONSULTANCY,FINANCE,PROF SER FNCL-CREDIT SERVICES,EXPERIAN LTD,0000223404,1.60
DEPARTMENT OF ENERGY AND CLIMATE CHANGE,THE COAL AUTHORITY,12/10/2015,CONSULTANCY,FINANCE,PROF SER FNCL-CREDIT SERVICES,EXPERIAN LTD,0000223521,3044.00
DEPARTMENT OF ENERGY AND CLIMATE CHANGE,THE COAL AUTHORITY,30/09/2015,FARES - RAIL,FINANCE,TRAVEL&EVENTS-RAIL,REDFERN TRAVEL LTD,0000223444,158.52
DEPARTMENT OF ENERGY AND CLIMATE CHANGE,THE COAL AUTHORITY,30/06/2015,IT-APPLICATIONS MANAGEMENT,FINANCE,ICT-MAINTENANCE & SUPPORT,SAPPHIRE SYSTEMS PLC,0000222719,22825.64
DEPARTMENT OF ENERGY AND CLIMATE CHANGE,THE COAL AUTHORITY,12/10/2015,IT-APPLICATIONS MANAGEMENT,FINANCE,ICT-MAINTENANCE & SUPPORT,SAPPHIRE SYSTEMS PLC,0000223426,-22825.64
DEPARTMENT OF ENERGY AND CLIMATE CHANGE,THE COAL AUTHORITY,12/10/2015,IT-APPLICATIONS MANAGEMENT,FINANCE,ICT-MAINTENANCE & SUPPORT,SAPPHIRE SYSTEMS PLC,0000223427,22558.79
DEPARTMENT OF ENERGY AND CLIMATE CHANGE,THE COAL AUTHORITY,02/10/2019,OTHER BANK CHARGES,FINANCE,PROF SER FNCL-BANKING&INVSTMNT,NATIONAL WESTMINSTER BANK,0000223520,73.37
DEPARTMENT OF ENERGY AND CLIMATE CHANGE,THE COAL AUTHORITY,22/10/2015,OTHER BANK CHARGES,FINANCE,PROF SER FNCL-CORPTE FINANCE,CITIBANK,0000223818,125.54
DEPARTMENT OF ENERGY AND CLIMATE CHANGE,THE COAL AUTHORITY,22/10/2015,OTHER BANK CHARGES,FINANCE,PROF SER FNCL-CORPTE FINANCE,CITIBANK,0000223819,25.00
DEPARTMENT OF ENERGY AND CLIMATE CHANGE,THE COAL AUTHORITY,30/09/2015,SALARY PROCESSING FEES,FINANCE,PROF SER FNCL-BUS PROC O/SRCE,CGI IT UK LTD,0000223253,668.62
DEPARTMENT OF ENERGY AND CLIMATE CHANGE,THE COAL AUTHORITY,08/10/2015,SUBSISTENCE ALLOWANCES,FINANCE,FACILITIES - FOOD,COMPANY BARCLAYCARD,0000223684,12.22
DEPARTMENT OF ENERGY AND CLIMATE CHANGE,THE COAL AUTHORITY,01/10/2015,CONTRACTORS - CLOSURE,HATFIELD COLLIERY,PROF SER TECH-ENGINEERING SER,JMC ENGINEERING (UK) LTD,0000223259,7840.62
DEPARTMENT OF ENERGY AND CLIMATE CHANGE,THE COAL AUTHORITY,02/10/2015,CONTRACTORS - CLOSURE,HATFIELD COLLIERY,PROF SER TECH-ENGINEERING SER,JMC ENGINEERING (UK) LTD,0000223311,1684.62
DEPARTMENT OF ENERGY AND CLIMATE CHANGE,THE COAL AUTHORITY,02/10/2015,CONTRACTORS - CLOSURE,HATFIELD COLLIERY,PROF SER TECH-ENGINEERING SER,JMC ENGINEERING (UK) LTD,0000223312,8073.84
DEPARTMENT OF ENERGY AND CLIMATE CHANGE,THE COAL AUTHORITY,05/10/2015,CONTRACTORS - CLOSURE,HATFIELD COLLIERY,PROF SER TECH-ENGINEERING SER,JMC ENGINEERING (UK) LTD,0000223320,30832.62
DEPARTMENT OF ENERGY AND CLIMATE CHANGE,THE COAL AUTHORITY,07/10/2015,CONTRACTORS - CLOSURE,HATFIELD COLLIERY,PROF SER TECH-ENGINEERING SER,JMC ENGINEERING (UK) LTD,0000223321,7251.37
DEPARTMENT OF ENERGY AND CLIMATE CHANGE,THE COAL AUTHORITY,07/10/2015,CONTRACTORS - CLOSURE,HATFIELD COLLIERY,PROF SER TECH-ENGINEERING SER,JMC ENGINEERING (UK) LTD,0000223322,14979.87
DEPARTMENT OF ENERGY AND CLIMATE CHANGE,THE COAL AUTHORITY,07/10/2015,CONTRACTORS - CLOSURE,HATFIELD COLLIERY,PROF SER TECH-ENGINEERING SER,JMC ENGINEERING (UK) LTD,0000223323,58597.33
DEPARTMENT OF ENERGY AND CLIMATE CHANGE,THE COAL AUTHORITY,07/10/2015,CONTRACTORS - CLOSURE,HATFIELD COLLIERY,PROF SER TECH-ENGINEERING SER,JMC ENGINEERING (UK) LTD,0000223324,60000.00
DEPARTMENT OF ENERGY AND CLIMATE CHANGE,THE COAL AUTHORITY,07/10/2015,CONTRACTORS - CLOSURE,HATFIELD COLLIERY,PROF SER TECH-ENGINEERING SER,JMC ENGINEERING (UK) LTD,0000223325,10961.97
DEPARTMENT OF ENERGY AND CLIMATE CHANGE,THE COAL AUTHORITY,14/10/2015,CONTRACTORS - CLOSURE,HATFIELD COLLIERY,PROF SER TECH-ENGINEERING SER,JMC ENGINEERING (UK) LTD,0000223586,-207.00
DEPARTMENT OF ENERGY AND CLIMATE CHANGE,THE COAL AUTHORITY,12/10/2015,CONTRACTORS - CLOSURE,HATFIELD COLLIERY,PROF SER TECH-ENGINEERING SER,JMC ENGINEERING (UK) LTD,0000223588,7756.50
DEPARTMENT OF ENERGY AND CLIMATE CHANGE,THE COAL AUTHORITY,12/10/2015,CONTRACTORS - CLOSURE,HATFIELD COLLIERY,PROF SER TECH-ENGINEERING SER,JMC ENGINEERING (UK) LTD,0000223591,507.62
DEPARTMENT OF ENERGY AND CLIMATE CHANGE,THE COAL AUTHORITY,12/10/2015,CONTRACTORS AND CLAIM COSTS,HATFIELD COLLIERY,PROF SER-OPERATIONAL SERVICES,AGENTS FEES,0000223306,1587.04
DEPARTMENT OF ENERGY AND CLIMATE CHANGE,THE COAL AUTHORITY,01/10/2015,CONTRACTORS AND CLAIM COSTS,HATFIELD COLLIERY,CONSTRUCTION-CNSTRN SER PROVDR,STEVE VINE LAND DRAINAGE,0000223454,200.00
DEPARTMENT OF ENERGY AND CLIMATE CHANGE,THE COAL AUTHORITY,01/10/2015,CONTRACTORS AND CLAIM COSTS,HATFIELD COLLIERY,CONSTRUCTION-CNSTRN SER PROVDR,STEVE VINE LAND DRAINAGE,0000223455,385.00
DEPARTMENT OF ENERGY AND CLIMATE CHANGE,THE COAL AUTHORITY,01/10/2015,CONTRACTORS AND CLAIM COSTS,HATFIELD COLLIERY,CONSTRUCTION-CNSTRN SER PROVDR,STEVE VINE LAND DRAINAGE,0000223456,350.00
DEPARTMENT OF ENERGY AND CLIMATE CHANGE,THE COAL AUTHORITY,15/10/2015,CONTRACTORS AND CLAIM COSTS,HATFIELD COLLIERY,CONSTRUCTION-MAIN CONTRACTORS,NAL PLANT LIMITED,0000223613,262.75
DEPARTMENT OF ENERGY AND CLIMATE CHANGE,THE COAL AUTHORITY,15/10/2015,CONTRACTORS AND CLAIM COSTS,HATFIELD COLLIERY,CONSTRUCTION-MAIN CONTRACTORS,NAL PLANT LIMITED,0000223614,262.75
DEPARTMENT OF ENERGY AND CLIMATE CHANGE,THE COAL AUTHORITY,20/10/2015,CONTRACTORS AND CLAIM COSTS,HATFIELD COLLIERY,"CONSTRUCTION-BLD,REPR&MAINTNCE",SECTION 13 ADVANCE PAYMEN,0000223649,6500.00
DEPARTMENT OF ENERGY AND CLIMATE CHANGE,THE COAL AUTHORITY,27/10/2015,CONTRACTORS AND CLAIM COSTS,HATFIELD COLLIERY,"CONSTRUCTION-BLD,REPR&MAINTNCE",DANVM DRAINAGE COMMISSION,0000223908,11679.40
DEPARTMENT OF ENERGY AND CLIMATE CHANGE,THE COAL AUTHORITY,27/10/2015,CONTRACTORS AND CLAIM COSTS,HATFIELD COLLIERY,"CONSTRUCTION-BLD,REPR&MAINTNCE",DANVM DRAINAGE COMMISSION,0000223909,11679.40
DEPARTMENT OF ENERGY AND CLIMATE CHANGE,THE COAL AUTHORITY,27/10/2015,CONTRACTORS AND CLAIM COSTS,HATFIELD COLLIERY,"CONSTRUCTION-BLD,REPR&MAINTNCE",DANVM DRAINAGE COMMISSION,0000223910,14599.25
DEPARTMENT OF ENERGY AND CLIMATE CHANGE,THE COAL AUTHORITY,27/10/2015,CONTRACTORS AND CLAIM COSTS,HATFIELD COLLIERY,"CONSTRUCTION-BLD,REPR&MAINTNCE",DANVM DRAINAGE COMMISSION,0000223911,14599.25
DEPARTMENT OF ENERGY AND CLIMATE CHANGE,THE COAL AUTHORITY,27/10/2015,CONTRACTORS AND CLAIM COSTS,HATFIELD COLLIERY,"CONSTRUCTION-BLD,REPR&MAINTNCE",DANVM DRAINAGE COMMISSION,0000223912,19969.05
DEPARTMENT OF ENERGY AND CLIMATE CHANGE,THE COAL AUTHORITY,05/10/2015,LEGAL COSTS,HATFIELD COLLIERY,PROF SER-LEGAL SERVICES,DLA PIPER UK LLP,0000223419,480.00
DEPARTMENT OF ENERGY AND CLIMATE CHANGE,THE COAL AUTHORITY,30/09/2015,M/W CNTRCTR-OPRTNL MNTLY TSKS,HATFIELD COLLIERY,PROF SER TECH-ENGINEERING SER,JMC ENGINEERING (UK) LTD,0000223244,8247.31
DEPARTMENT OF ENERGY AND CLIMATE CHANGE,THE COAL AUTHORITY,30/09/2015,M/W CNTRCTR-OPRTNL MNTLY TSKS,HATFIELD COLLIERY,PROF SER TECH-ENGINEERING SER,JMC ENGINEERING (UK) LTD,0000223245,7406.50
DEPARTMENT OF ENERGY AND CLIMATE CHANGE,THE COAL AUTHORITY,07/09/2015,IT-APPLICATIONS MANAGEMENT,HISTORIC LIABILITIES,ICT-SYSTEMS DELIVERY,SCISYS UK LTD,0000222877,255.25
DEPARTMENT OF ENERGY AND CLIMATE CHANGE,THE COAL AUTHORITY,09/09/2015,IT-APPLICATIONS MANAGEMENT,HISTORIC LIABILITIES,ICT-SYSTEMS DELIVERY,SCISYS UK LTD,0000222878,324.31
DEPARTMENT OF ENERGY AND CLIMATE CHANGE,THE COAL AUTHORITY,23/09/2015,IT-APPLICATIONS MANAGEMENT,HISTORIC LIABILITIES,ENERGY&UTILITIES-WATER,SCISYS UK LTD,0000223184,1900.09
DEPARTMENT OF ENERGY AND CLIMATE CHANGE,THE COAL AUTHORITY,08/10/2015,IT-APPLICATIONS MANAGEMENT,HISTORIC LIABILITIES,ICT-SYSTEMS DELIVERY,SCISYS UK LTD,0000223428,220.35
DEPARTMENT OF ENERGY AND CLIMATE CHANGE,THE COAL AUTHORITY,08/10/2015,IT-APPLICATIONS MANAGEMENT,HISTORIC LIABILITIES,ICT-SYSTEMS DELIVERY,SCISYS UK LTD,0000223429,327.02
DEPARTMENT OF ENERGY AND CLIMATE CHANGE,THE COAL AUTHORITY,02/10/2015,LEGAL COSTS,HISTORIC LIABILITIES,PROF SER-OPERATIONAL SERVICES,LAND REGISTRY,0000223286,9.00
DEPARTMENT OF ENERGY AND CLIMATE CHANGE,THE COAL AUTHORITY,01/10/2015,LEGAL COSTS,HISTORIC LIABILITIES,PROF SER-LEGAL SERVICES,WALKER MORRIS,0000223418,4375.90
DEPARTMENT OF ENERGY AND CLIMATE CHANGE,THE COAL AUTHORITY,16/10/2015,LEGAL COSTS,HISTORIC LIABILITIES,PROF SER-OPERATIONAL SERVICES,LAND REGISTRY,0000223592,48.00
DEPARTMENT OF ENERGY AND CLIMATE CHANGE,THE COAL AUTHORITY,21/10/2015,LEGAL COSTS,HISTORIC LIABILITIES,PROF SER-OPERATIONAL SERVICES,LAND REGISTRY,0000223715,60.00
DEPARTMENT OF ENERGY AND CLIMATE CHANGE,THE COAL AUTHORITY,23/10/2015,LEGAL COSTS,HISTORIC LIABILITIES,PROF SER-OPERATIONAL SERVICES,LAND REGISTRY,0000223828,6.00
DEPARTMENT OF ENERGY AND CLIMATE CHANGE,THE COAL AUTHORITY,28/10/2015,LEGAL COSTS,HISTORIC LIABILITIES,PROF SER-OPERATIONAL SERVICES,LAND REGISTRY,0000223907,15.00
DEPARTMENT OF ENERGY AND CLIMATE CHANGE,THE COAL AUTHORITY,02/10/2015,MEMBERSHIP SUBSCRIPTIONS,HISTORIC LIABILITIES,PERSONNEL RLTD-STAFF SUBSCRPTN,"ACC 245321 RENEWAL 90,682",0000223277,354.00
DEPARTMENT OF ENERGY AND CLIMATE CHANGE,THE COAL AUTHORITY,08/10/2015,PROPERTY /TIP MAINTENANCE,HISTORIC LIABILITIES,CONSTRUCTION-MAIN CONTRACTORS,BALFOUR BEATTY CIVIL ENG,0000223463,2027.16
DEPARTMENT OF ENERGY AND CLIMATE CHANGE,THE COAL AUTHORITY,12/10/2015,PROPERTY RATES PAYABLE,HISTORIC LIABILITIES,ENERGY&UTILITIES-ELECTRICITY,BRITISH GAS BUSINESS,0000223500,125.13
DEPARTMENT OF ENERGY AND CLIMATE CHANGE,THE COAL AUTHORITY,12/10/2015,PROPERTY RATES PAYABLE,HISTORIC LIABILITIES,ENERGY&UTILITIES-ELECTRICITY,BRITISH GAS BUSINESS,0000223500,171.91
DEPARTMENT OF ENERGY AND CLIMATE CHANGE,THE COAL AUTHORITY,08/10/2015,SUBSISTENCE ALLOWANCES,HISTORIC LIABILITIES,FACILITIES - FOOD,COMPANY BARCLAYCARD,0000223742,3.87
DEPARTMENT OF ENERGY AND CLIMATE CHANGE,THE COAL AUTHORITY,23/10/2015,SUBSISTENCE ALLOWANCES,HISTORIC LIABILITIES,FACILITIES - FOOD,STAFF EXPENSES CONTROL,0000223821,25.87
DEPARTMENT OF ENERGY AND CLIMATE CHANGE,THE COAL AUTHORITY,01/10/2015,CHILDCARE VCHRS-SERVICE CHARGE,HUMAN RESRCES&ORGNSTL DEVLPMNT,PERSONNEL RLTD-STAFF CHILDCARE,FIDELITI LIMITED,0000223287,7.81
DEPARTMENT OF ENERGY AND CLIMATE CHANGE,THE COAL AUTHORITY,01/10/2015,CHILDCARE VOUCHERS,HUMAN RESRCES&ORGNSTL DEVLPMNT,PERSONNEL RLTD-STAFF CHILDCARE,FIDELITI LIMITED,0000223287,243.00
DEPARTMENT OF ENERGY AND CLIMATE CHANGE,THE COAL AUTHORITY,20/10/2015,CONCESSIONERY FUEL,HUMAN RESRCES&ORGNSTL DEVLPMNT,PERSONNEL RLTD-HR BUS PRCS O/S,CAPITA BUSINESS SERVICES,0000223827,697.80
DEPARTMENT OF ENERGY AND CLIMATE CHANGE,THE COAL AUTHORITY,14/10/2015,CONSULTANCY,HUMAN RESRCES&ORGNSTL DEVLPMNT,PERSONNEL RLTD-HR BUS PRCS O/S,P LANGHAM,0000223600,360.00
DEPARTMENT OF ENERGY AND CLIMATE CHANGE,THE COAL AUTHORITY,05/10/2015,LEGAL COSTS,HUMAN RESRCES&ORGNSTL DEVLPMNT,PROF SER-LEGAL SERVICES,DLA PIPER UK LLP,0000223419,144.00
DEPARTMENT OF ENERGY AND CLIMATE CHANGE,THE COAL AUTHORITY,08/10/2015,MEETINGS,HUMAN RESRCES&ORGNSTL DEVLPMNT,TRAVEL&EVENTS-EVENT ORGNSTN,COMPANY BARCLAYCARD,0000223728,150.00
DEPARTMENT OF ENERGY AND CLIMATE CHANGE,THE COAL AUTHORITY,08/10/2015,MEMBERSHIP SUBSCRIPTIONS,HUMAN RESRCES&ORGNSTL DEVLPMNT,PERSONNEL RLTD-STAFF SUBSCRPTN,COMPANY BARCLAYCARD,0000223728,150.00
DEPARTMENT OF ENERGY AND CLIMATE CHANGE,THE COAL AUTHORITY,15/10/2015,MILEAGE PAYMENTS,HUMAN RESRCES&ORGNSTL DEVLPMNT,FUELS/LUBRCNT/GAS-FUELS,INTERVIEW EXPENSES,0000223498,88.00
DEPARTMENT OF ENERGY AND CLIMATE CHANGE,THE COAL AUTHORITY,15/10/2015,MILEAGE PAYMENTS,HUMAN RESRCES&ORGNSTL DEVLPMNT,FUELS/LUBRCNT/GAS-FUELS,INTERVIEW EXPENSES,0000223499,7.92
DEPARTMENT OF ENERGY AND CLIMATE CHANGE,THE COAL AUTHORITY,20/10/2015,MILEAGE PAYMENTS,HUMAN RESRCES&ORGNSTL DEVLPMNT,FUELS/LUBRCNT/GAS-FUELS,INTERVIEW EXPENSES,0000223662,5.50
DEPARTMENT OF ENERGY AND CLIMATE CHANGE,THE COAL AUTHORITY,20/10/2015,MILEAGE PAYMENTS,HUMAN RESRCES&ORGNSTL DEVLPMNT,FUELS/LUBRCNT/GAS-FUELS,CANCEL DC 223499 ERROR,36001276,-7.92
DEPARTMENT OF ENERGY AND CLIMATE CHANGE,THE COAL AUTHORITY,17/08/2015,OTHER RECRUITMENT EXPENSES,HUMAN RESRCES&ORGNSTL DEVLPMNT,PERSONNEL RLTD-HR BUS PRCS O/S,ACCESS COMPUTERS CONS PLC,0000223190,8550.00
DEPARTMENT OF ENERGY AND CLIMATE CHANGE,THE COAL AUTHORITY,24/09/2015,OTHER RECRUITMENT EXPENSES,HUMAN RESRCES&ORGNSTL DEVLPMNT,PERSONNEL RLTD-HR BUS PRCS O/S,FMC,0000223195,2000.00
DEPARTMENT OF ENERGY AND CLIMATE CHANGE,THE COAL AUTHORITY,30/09/2015,OTHER RECRUITMENT EXPENSES,HUMAN RESRCES&ORGNSTL DEVLPMNT,PERSONNEL RLTD-HR BUS PRCS O/S,GATENBY SANDERSON LTD,0000223255,12000.00
DEPARTMENT OF ENERGY AND CLIMATE CHANGE,THE COAL AUTHORITY,08/10/2015,PUBLICATIONS,HUMAN RESRCES&ORGNSTL DEVLPMNT,OPRTNL GOODS&SERV-DEVLPNG MTRL,COMPANY BARCLAYCARD,0000223728,21.59
DEPARTMENT OF ENERGY AND CLIMATE CHANGE,THE COAL AUTHORITY,18/09/2015,STAFF MEDICALS,HUMAN RESRCES&ORGNSTL DEVLPMNT,PERSONNEL RLTD-STAFF MEDICAL,BUPA WELLNESS FINANCE,0000223201,553.00
DEPARTMENT OF ENERGY AND CLIMATE CHANGE,THE COAL AUTHORITY,08/10/2015,SUBSISTENCE ALLOWANCES,HUMAN RESRCES&ORGNSTL DEVLPMNT,FACILITIES - FOOD,COMPANY BARCLAYCARD,0000223742,3.86
DEPARTMENT OF ENERGY AND CLIMATE CHANGE,THE COAL AUTHORITY,25/09/2015,TRAINING AND EDUCATION,HUMAN RESRCES&ORGNSTL DEVLPMNT,PROF SER LRNG&DEV-STAFF TRNING,CIPD ENTERPRISES LIMITED,0000223409,1269.00
DEPARTMENT OF ENERGY AND CLIMATE CHANGE,THE COAL AUTHORITY,08/10/2015,TRAINING AND EDUCATION,HUMAN RESRCES&ORGNSTL DEVLPMNT,PROF SER LRNG&DEV-STAFF TRNING,COMPANY BARCLAYCARD,0000223746,178.00
DEPARTMENT OF ENERGY AND CLIMATE CHANGE,THE COAL AUTHORITY,26/10/2015,TRAINING AND EDUCATION,HUMAN RESRCES&ORGNSTL DEVLPMNT,PROF SER LRNG&DEV-STAFF TRNING,ADJUST DC 223746 GPC,36001297,0.80
DEPARTMENT OF ENERGY AND CLIMATE CHANGE,THE COAL AUTHORITY,01/09/2015,CALL CHARGES,ICT -  SERVICE MANAGEMENT,ICT-TELECOMS,DAISY COMMUNICATIONS LTD,0000222889,288.23
DEPARTMENT OF ENERGY AND CLIMATE CHANGE,THE COAL AUTHORITY,01/10/2015,CALL CHARGES,ICT -  SERVICE MANAGEMENT,ICT-TELECOMS,DAISY COMMUNICATIONS LTD,0000223432,367.65
DEPARTMENT OF ENERGY AND CLIMATE CHANGE,THE COAL AUTHORITY,30/09/2015,CALL CHARGES,ICT -  SERVICE MANAGEMENT,ICT-TELECOMS,BRITISH TELECOMMUNICATION,0000223522,182.46
DEPARTMENT OF ENERGY AND CLIMATE CHANGE,THE COAL AUTHORITY,14/10/2015,CALL CHARGES,ICT -  SERVICE MANAGEMENT,ICT-TELECOMS,BRITISH TELECOMMUNICATION,0000223632,38.80
DEPARTMENT OF ENERGY AND CLIMATE CHANGE,THE COAL AUTHORITY,08/10/2015,CALL CHARGES,ICT -  SERVICE MANAGEMENT,ICT-TELECOMS,COMPANY BARCLAYCARD,0000223753,45.42
DEPARTMENT OF ENERGY AND CLIMATE CHANGE,THE COAL AUTHORITY,01/10/2015,CHILDCARE VOUCHERS,ICT -  SERVICE MANAGEMENT,PERSONNEL RLTD-STAFF CHILDCARE,FIDELITI LIMITED,0000223287,243.00
DEPARTMENT OF ENERGY AND CLIMATE CHANGE,THE COAL AUTHORITY,30/09/2015,FARES - RAIL,ICT -  SERVICE MANAGEMENT,TRAVEL&EVENTS-RAIL,REDFERN TRAVEL LTD,0000223444,51.39
DEPARTMENT OF ENERGY AND CLIMATE CHANGE,THE COAL AUTHORITY,30/09/2015,HOTEL ACCOMMODATION,ICT -  SERVICE MANAGEMENT,TRAVEL&EVENTS-HOTELS,REDFERN TRAVEL LTD,0000223446,1.17
DEPARTMENT OF ENERGY AND CLIMATE CHANGE,THE COAL AUTHORITY,08/10/2015,IT-APPLICATIONS MANAGEMENT,ICT -  SERVICE MANAGEMENT,PSPES NOT APPLICABLE,COMPANY BARCLAYCARD,0000223679,70.80
DEPARTMENT OF ENERGY AND CLIMATE CHANGE,THE COAL AUTHORITY,23/10/2015,IT-APPLICATIONS MANAGEMENT,ICT -  SERVICE MANAGEMENT,ICT-MANAGED O/SRCE SERVICES,TOPDESK UK LIMITED,0000223829,921.00
DEPARTMENT OF ENERGY AND CLIMATE CHANGE,THE COAL AUTHORITY,29/09/2015,IT-INFRASTRUCTURE MANAGEMENT,ICT -  SERVICE MANAGEMENT,ICT-MAINTENANCE & SUPPORT,SPECIALIST COMPUTER CENTR,0000223516,3386.00
DEPARTMENT OF ENERGY AND CLIMATE CHANGE,THE COAL AUTHORITY,01/09/2015,LINE RENTAL,ICT -  SERVICE MANAGEMENT,ICT-TELECOMS,DAISY COMMUNICATIONS LTD,0000222889,1084.40
DEPARTMENT OF ENERGY AND CLIMATE CHANGE,THE COAL AUTHORITY,01/10/2015,LINE RENTAL,ICT -  SERVICE MANAGEMENT,ICT-TELECOMS,DAISY COMMUNICATIONS LTD,0000223432,1084.40
DEPARTMENT OF ENERGY AND CLIMATE CHANGE,THE COAL AUTHORITY,12/10/2015,LINE RENTAL,ICT -  SERVICE MANAGEMENT,ICT-TELECOMS,BRITISH TELECOMMUNICATION,0000223523,2114.53
DEPARTMENT OF ENERGY AND CLIMATE CHANGE,THE COAL AUTHORITY,14/10/2015,LINE RENTAL,ICT -  SERVICE MANAGEMENT,ICT-TELECOMS,BRITISH TELECOMMUNICATION,0000223632,2588.88
DEPARTMENT OF ENERGY AND CLIMATE CHANGE,THE COAL AUTHORITY,08/10/2015,LINE RENTAL,ICT -  SERVICE MANAGEMENT,ICT-TELECOMS,COMPANY BARCLAYCARD,0000223656,-12.82
DEPARTMENT OF ENERGY AND CLIMATE CHANGE,THE COAL AUTHORITY,14/10/2015,TELEPHONE - OTHER,ICT -  SERVICE MANAGEMENT,ICT-TELECOMS,BRITISH TELECOMMUNICATION,0000223632,235.00
DEPARTMENT OF ENERGY AND CLIMATE CHANGE,THE COAL AUTHORITY,01/10/2015,CHILDCARE VOUCHERS,ICT-BUSINESS ANALYSIS&DESIGN,PERSONNEL RLTD-STAFF CHILDCARE,FIDELITI LIMITED,0000223287,243.00
DEPARTMENT OF ENERGY AND CLIMATE CHANGE,THE COAL AUTHORITY,01/10/2015,CHILDCARE VOUCHERS,ICT-BUSINESS ANALYSIS&DESIGN,PERSONNEL RLTD-STAFF CHILDCARE,FIDELITI LIMITED,0000223287,10.00
DEPARTMENT OF ENERGY AND CLIMATE CHANGE,THE COAL AUTHORITY,23/10/2015,FARES - PUBLIC TRANSPORT,ICT-BUSINESS ANALYSIS&DESIGN,TRAVEL&EVENTS-TAXI,STAFF EXPENSES CONTROL,0000223806,67.00
DEPARTMENT OF ENERGY AND CLIMATE CHANGE,THE COAL AUTHORITY,30/09/2015,FARES - RAIL,ICT-BUSINESS ANALYSIS&DESIGN,TRAVEL&EVENTS-RAIL,REDFERN TRAVEL LTD,0000223444,336.86
DEPARTMENT OF ENERGY AND CLIMATE CHANGE,THE COAL AUTHORITY,30/09/2015,HOTEL ACCOMMODATION,ICT-BUSINESS ANALYSIS&DESIGN,TRAVEL&EVENTS-HOTELS,REDFERN TRAVEL LTD,0000223446,515.88
DEPARTMENT OF ENERGY AND CLIMATE CHANGE,THE COAL AUTHORITY,23/10/2015,MILEAGE PAYMENTS,ICT-BUSINESS ANALYSIS&DESIGN,FUELS/LUBRCNT/GAS-FUELS,STAFF EXPENSES CONTROL,0000223806,9.90
DEPARTMENT OF ENERGY AND CLIMATE CHANGE,THE COAL AUTHORITY,25/09/2015,PAYMENTS TO AGENCIES FOR TEMPS,ICT-BUSINESS ANALYSIS&DESIGN,PROF SER TMP STFF-SPCLST CNTRT,SPRING TECHNOLOGY,0000223200,1775.00
DEPARTMENT OF ENERGY AND CLIMATE CHANGE,THE COAL AUTHORITY,12/10/2015,PAYMENTS TO AGENCIES FOR TEMPS,ICT-BUSINESS ANALYSIS&DESIGN,PROF SER TMP STFF-SPCLST CNTRT,SPRING TECHNOLOGY,0000223518,1420.00
DEPARTMENT OF ENERGY AND CLIMATE CHANGE,THE COAL AUTHORITY,12/10/2015,PAYMENTS TO AGENCIES FOR TEMPS,ICT-BUSINESS ANALYSIS&DESIGN,PROF SER TMP STFF-SPCLST CNTRT,SPRING TECHNOLOGY,0000223519,1420.00
DEPARTMENT OF ENERGY AND CLIMATE CHANGE,THE COAL AUTHORITY,19/10/2015,PAYMENTS TO AGENCIES FOR TEMPS,ICT-BUSINESS ANALYSIS&DESIGN,PROF SER TMP STFF-SPCLST CNTRT,SPRING TECHNOLOGY,0000223646,1775.00
DEPARTMENT OF ENERGY AND CLIMATE CHANGE,THE COAL AUTHORITY,23/10/2015,SUBSISTENCE ALLOWANCES,ICT-BUSINESS ANALYSIS&DESIGN,FACILITIES - FOOD,STAFF EXPENSES CONTROL,0000223806,24.90
DEPARTMENT OF ENERGY AND CLIMATE CHANGE,THE COAL AUTHORITY,23/10/2015,SUBSISTENCE ALLOWANCES,ICT-BUSINESS ANALYSIS&DESIGN,FACILITIES - FOOD,STAFF EXPENSES CONTROL,0000223807,38.42
DEPARTMENT OF ENERGY AND CLIMATE CHANGE,THE COAL AUTHORITY,08/10/2015,TRAINING AND EDUCATION,ICT-BUSINESS ANALYSIS&DESIGN,PROF SER LRNG&DEV-STAFF TRNING,COMPANY BARCLAYCARD,0000223683,2980.00
DEPARTMENT OF ENERGY AND CLIMATE CHANGE,THE COAL AUTHORITY,01/10/2015,CHILDCARE VOUCHERS,ICT-TECH SUPPORT&SYSTM DVLPMNT,PERSONNEL RLTD-STAFF CHILDCARE,FIDELITI LIMITED,0000223287,243.00
DEPARTMENT OF ENERGY AND CLIMATE CHANGE,THE COAL AUTHORITY,01/10/2015,CHILDCARE VOUCHERS,ICT-TECH SUPPORT&SYSTM DVLPMNT,PERSONNEL RLTD-STAFF CHILDCARE,FIDELITI LIMITED,0000223287,220.00
DEPARTMENT OF ENERGY AND CLIMATE CHANGE,THE COAL AUTHORITY,09/09/2015,CURR YR ADD-TNGBLE INFO TECH,ICT-TECH SUPPORT&SYSTM DVLPMNT,ICT-HARDWARE,NOWCOMM,0000223288,-14379.00
DEPARTMENT OF ENERGY AND CLIMATE CHANGE,THE COAL AUTHORITY,30/09/2015,FARES - RAIL,ICT-TECH SUPPORT&SYSTM DVLPMNT,TRAVEL&EVENTS-RAIL,REDFERN TRAVEL LTD,0000223444,637.56
DEPARTMENT OF ENERGY AND CLIMATE CHANGE,THE COAL AUTHORITY,30/09/2015,HOTEL ACCOMMODATION,ICT-TECH SUPPORT&SYSTM DVLPMNT,TRAVEL&EVENTS-HOTELS,REDFERN TRAVEL LTD,0000223446,267.17
DEPARTMENT OF ENERGY AND CLIMATE CHANGE,THE COAL AUTHORITY,10/09/2015,IT-APPLICATIONS MANAGEMENT,ICT-TECH SUPPORT&SYSTM DVLPMNT,ICT-SYSTEMS DELIVERY,SCISYS UK LTD,0000222885,1211.47
DEPARTMENT OF ENERGY AND CLIMATE CHANGE,THE COAL AUTHORITY,21/09/2015,IT-INFRASTRUCTURE MANAGEMENT,ICT-TECH SUPPORT&SYSTM DVLPMNT,ICT-MAINTENANCE & SUPPORT,NOWCOMM,0000223088,425.00
DEPARTMENT OF ENERGY AND CLIMATE CHANGE,THE COAL AUTHORITY,21/09/2015,IT-INFRASTRUCTURE MANAGEMENT,ICT-TECH SUPPORT&SYSTM DVLPMNT,ICT-MAINTENANCE & SUPPORT,NOWCOMM,0000223089,2200.00
DEPARTMENT OF ENERGY AND CLIMATE CHANGE,THE COAL AUTHORITY,23/10/2015,MILEAGE PAYMENTS,ICT-TECH SUPPORT&SYSTM DVLPMNT,FUELS/LUBRCNT/GAS-FUELS,STAFF EXPENSES CONTROL,0000223808,7.20
DEPARTMENT OF ENERGY AND CLIMATE CHANGE,THE COAL AUTHORITY,01/10/2015,PAYMENTS TO AGENCIES FOR TEMPS,ICT-TECH SUPPORT&SYSTM DVLPMNT,PROF SER TMP STFF-SPCLST CNTRT,PLAYCOOL LIMITED,0000223281,4750.00
DEPARTMENT OF ENERGY AND CLIMATE CHANGE,THE COAL AUTHORITY,23/10/2015,SUBSISTENCE ALLOWANCES,ICT-TECH SUPPORT&SYSTM DVLPMNT,FACILITIES - FOOD,STAFF EXPENSES CONTROL,0000223808,86.09
DEPARTMENT OF ENERGY AND CLIMATE CHANGE,THE COAL AUTHORITY,12/10/2015,TRAINING AND EDUCATION,ICT-TECH SUPPORT&SYSTM DVLPMNT,PROF SER LRNG&DEV-STAFF TRNING,THE OPEN UNIVERSITY,0000223575,2700.00
DEPARTMENT OF ENERGY AND CLIMATE CHANGE,THE COAL AUTHORITY,12/10/2015,TRAINING AND EDUCATION,ICT-TECH SUPPORT&SYSTM DVLPMNT,PROF SER LRNG&DEV-STAFF TRNING,THE OPEN UNIVERSITY,0000223695,2700.00
DEPARTMENT OF ENERGY AND CLIMATE CHANGE,THE COAL AUTHORITY,30/09/2015,HOTEL ACCOMMODATION,ICU (INDPNDNT COMPLIANCE UNIT),TRAVEL&EVENTS-HOTELS,REDFERN TRAVEL LTD,0000223446,86.17
DEPARTMENT OF ENERGY AND CLIMATE CHANGE,THE COAL AUTHORITY,08/10/2015,INCIDENTALS,ICU (INDPNDNT COMPLIANCE UNIT),VEHICLES-FLEET MANAGEMENT,COMPANY BARCLAYCARD,0000223687,8.33
DEPARTMENT OF ENERGY AND CLIMATE CHANGE,THE COAL AUTHORITY,08/10/2015,SUBSISTENCE ALLOWANCES,ICU (INDPNDNT COMPLIANCE UNIT),FACILITIES - FOOD,COMPANY BARCLAYCARD,0000223687,33.16
DEPARTMENT OF ENERGY AND CLIMATE CHANGE,THE COAL AUTHORITY,23/10/2015,FARES - PUBLIC TRANSPORT,LEGAL,TRAVEL&EVENTS-TAXI,STAFF EXPENSES CONTROL,0000223821,30.90
DEPARTMENT OF ENERGY AND CLIMATE CHANGE,THE COAL AUTHORITY,30/09/2015,FARES - RAIL,LEGAL,TRAVEL&EVENTS-RAIL,REDFERN TRAVEL LTD,0000223444,22.14
DEPARTMENT OF ENERGY AND CLIMATE CHANGE,THE COAL AUTHORITY,30/09/2015,HOTEL ACCOMMODATION,LEGAL,TRAVEL&EVENTS-HOTELS,REDFERN TRAVEL LTD,0000223446,67.39
DEPARTMENT OF ENERGY AND CLIMATE CHANGE,THE COAL AUTHORITY,23/10/2015,INCIDENTALS,LEGAL,VEHICLES-FLEET MANAGEMENT,STAFF EXPENSES CONTROL,0000223821,9.16
DEPARTMENT OF ENERGY AND CLIMATE CHANGE,THE COAL AUTHORITY,29/09/2015,LEGAL COSTS,LEGAL,PROF SER-OPERATIONAL SERVICES,MDA SEARCHFLOW LTD,0000223210,541.72
DEPARTMENT OF ENERGY AND CLIMATE CHANGE,THE COAL AUTHORITY,30/09/2015,LEGAL COSTS,LEGAL,PROF SER-OPERATIONAL SERVICES,MDA SEARCHFLOW LTD,0000223251,-172.73
DEPARTMENT OF ENERGY AND CLIMATE CHANGE,THE COAL AUTHORITY,30/09/2015,LEGAL COSTS,LEGAL,PROF SER-OPERATIONAL SERVICES,MDA SEARCHFLOW LTD,0000223252,26.00
DEPARTMENT OF ENERGY AND CLIMATE CHANGE,THE COAL AUTHORITY,01/10/2015,LEGAL COSTS,LEGAL,PROF SER-OPERATIONAL SERVICES,MDA SEARCHFLOW LTD,0000223279,-26.00
DEPARTMENT OF ENERGY AND CLIMATE CHANGE,THE COAL AUTHORITY,01/10/2015,LEGAL COSTS,LEGAL,PROF SER-OPERATIONAL SERVICES,MDA SEARCHFLOW LTD,0000223280,172.73
DEPARTMENT OF ENERGY AND CLIMATE CHANGE,THE COAL AUTHORITY,02/10/2015,LEGAL COSTS,LEGAL,PROF SER-OPERATIONAL SERVICES,LAND REGISTRY,0000223286,9.00
DEPARTMENT OF ENERGY AND CLIMATE CHANGE,THE COAL AUTHORITY,09/10/2015,LEGAL COSTS,LEGAL,PROF SER-OPERATIONAL SERVICES,LAND REGISTRY,0000223411,2.00
DEPARTMENT OF ENERGY AND CLIMATE CHANGE,THE COAL AUTHORITY,16/10/2015,LEGAL COSTS,LEGAL,PROF SER-OPERATIONAL SERVICES,LAND REGISTRY,0000223592,12.00
DEPARTMENT OF ENERGY AND CLIMATE CHANGE,THE COAL AUTHORITY,23/10/2015,SUBSISTENCE ALLOWANCES,LEGAL,FACILITIES - FOOD,STAFF EXPENSES CONTROL,0000223821,12.94
DEPARTMENT OF ENERGY AND CLIMATE CHANGE,THE COAL AUTHORITY,08/10/2015,TRAINING AND EDUCATION,LEGAL,PROF SER LRNG&DEV-STAFF TRNING,CENTRAL LAW TRAINING,0000223407,225.00
DEPARTMENT OF ENERGY AND CLIMATE CHANGE,THE COAL AUTHORITY,02/10/2015,TRAINING AND EDUCATION,LEGAL,PROF SER LRNG&DEV-STAFF TRNING,CENTRAL LAW TRAINING,0000223408,59.30
DEPARTMENT OF ENERGY AND CLIMATE CHANGE,THE COAL AUTHORITY,25/09/2015,CONTRACTORS AND CLAIM COSTS,MINE ENTRY INSPECTIONS,CONSTRUCTION-MAIN CONTRACTORS,ALLIANCE CONSTRUCTION SOL,0000223168,105.40
DEPARTMENT OF ENERGY AND CLIMATE CHANGE,THE COAL AUTHORITY,01/10/2015,CONTRACTORS AND CLAIM COSTS,MINE ENTRY INSPECTIONS,CONSTRUCTION-MAIN CONTRACTORS,JIM DAVIES CIVIL ENGINEER,0000223292,269.10
DEPARTMENT OF ENERGY AND CLIMATE CHANGE,THE COAL AUTHORITY,06/10/2015,CONTRACTORS AND CLAIM COSTS,MINE ENTRY INSPECTIONS,CONSTRUCTION-MAIN CONTRACTORS,BALFOUR BEATTY CIVIL ENG,0000223331,4004.87
DEPARTMENT OF ENERGY AND CLIMATE CHANGE,THE COAL AUTHORITY,12/10/2015,CONTRACTORS AND CLAIM COSTS,MINE ENTRY INSPECTIONS,CONSTRUCTION-CNSTRN SER PROVDR,CORNERSTONE  PROJECTS LTD,0000223402,78.00
DEPARTMENT OF ENERGY AND CLIMATE CHANGE,THE COAL AUTHORITY,14/10/2015,CONTRACTORS AND CLAIM COSTS,MINE ENTRY INSPECTIONS,CONSTRUCTION-MAIN CONTRACTORS,NAL PLANT LIMITED,0000223566,349.94
DEPARTMENT OF ENERGY AND CLIMATE CHANGE,THE COAL AUTHORITY,07/10/2015,CONTRACTORS AND CLAIM COSTS,MINE ENTRY INSPECTIONS,CONSTRUCTION-MAIN CONTRACTORS,JIM DAVIES CIVIL ENGINEER,0000223621,376.50
DEPARTMENT OF ENERGY AND CLIMATE CHANGE,THE COAL AUTHORITY,20/10/2015,CONTRACTORS AND CLAIM COSTS,MINE ENTRY INSPECTIONS,CONSTRUCTION-MAIN CONTRACTORS,ALLIANCE GROUP SOLUTIONS,0000223697,446.50
DEPARTMENT OF ENERGY AND CLIMATE CHANGE,THE COAL AUTHORITY,21/10/2015,CONTRACTORS AND CLAIM COSTS,MINE ENTRY INSPECTIONS,CONSTRUCTION-MAIN CONTRACTORS,WORKS TO SLUMPED MINESHAF,0000223713,2640.00
DEPARTMENT OF ENERGY AND CLIMATE CHANGE,THE COAL AUTHORITY,20/10/2015,CONTRACTORS AND CLAIM COSTS,MINE ENTRY INSPECTIONS,CONSTRUCTION-MAIN CONTRACTORS,JIM DAVIES CIVIL ENGINEER,0000223739,292.50
DEPARTMENT OF ENERGY AND CLIMATE CHANGE,THE COAL AUTHORITY,28/10/2015,CONTRACTORS AND CLAIM COSTS,MINE ENTRY INSPECTIONS,CONSTRUCTION-CNSTRN SER PROVDR,CORNERSTONE  PROJECTS LTD,0000223918,153.00
DEPARTMENT OF ENERGY AND CLIMATE CHANGE,THE COAL AUTHORITY,28/10/2015,CONTRACTORS AND CLAIM COSTS,MINE ENTRY INSPECTIONS,CONSTRUCTION-CNSTRN SER PROVDR,CORNERSTONE  PROJECTS LTD,0000223919,58.00
DEPARTMENT OF ENERGY AND CLIMATE CHANGE,THE COAL AUTHORITY,28/10/2015,CONTRACTORS AND CLAIM COSTS,MINE ENTRY INSPECTIONS,CONSTRUCTION-CNSTRN SER PROVDR,CORNERSTONE  PROJECTS LTD,0000223920,121.00
DEPARTMENT OF ENERGY AND CLIMATE CHANGE,THE COAL AUTHORITY,07/09/2015,IT-APPLICATIONS MANAGEMENT,MINE ENTRY INSPECTIONS,ICT-SYSTEMS DELIVERY,SCISYS UK LTD,0000222877,510.49
DEPARTMENT OF ENERGY AND CLIMATE CHANGE,THE COAL AUTHORITY,09/09/2015,IT-APPLICATIONS MANAGEMENT,MINE ENTRY INSPECTIONS,ICT-SYSTEMS DELIVERY,SCISYS UK LTD,0000222878,648.62
DEPARTMENT OF ENERGY AND CLIMATE CHANGE,THE COAL AUTHORITY,23/09/2015,IT-APPLICATIONS MANAGEMENT,MINE ENTRY INSPECTIONS,ENERGY&UTILITIES-WATER,SCISYS UK LTD,0000223184,1900.09
DEPARTMENT OF ENERGY AND CLIMATE CHANGE,THE COAL AUTHORITY,08/10/2015,IT-APPLICATIONS MANAGEMENT,MINE ENTRY INSPECTIONS,ICT-SYSTEMS DELIVERY,SCISYS UK LTD,0000223428,440.70
DEPARTMENT OF ENERGY AND CLIMATE CHANGE,THE COAL AUTHORITY,08/10/2015,IT-APPLICATIONS MANAGEMENT,MINE ENTRY INSPECTIONS,ICT-SYSTEMS DELIVERY,SCISYS UK LTD,0000223429,654.03
DEPARTMENT OF ENERGY AND CLIMATE CHANGE,THE COAL AUTHORITY,25/09/2015,OUTSOURCED MANAGEMENT-PS&S,MINE ENTRY INSPECTIONS,SOCIAL CARE-EMERGENCY SERVICES,INTERLOCK SURVEYS,0000223467,3656.25
DEPARTMENT OF ENERGY AND CLIMATE CHANGE,THE COAL AUTHORITY,25/09/2015,OUTSOURCED MANAGEMENT-PS&S,MINE ENTRY INSPECTIONS,SOCIAL CARE-EMERGENCY SERVICES,INTERLOCK SURVEYS,0000223468,11984.00
DEPARTMENT OF ENERGY AND CLIMATE CHANGE,THE COAL AUTHORITY,25/09/2015,OUTSOURCED MANAGEMENT-PS&S,MINE ENTRY INSPECTIONS,SOCIAL CARE-EMERGENCY SERVICES,INTERLOCK SURVEYS,0000223469,992.25
DEPARTMENT OF ENERGY AND CLIMATE CHANGE,THE COAL AUTHORITY,15/09/2015,CAR HIRE,MINE WATER TREATMENT SCHEMES,TRAVEL&EVENTS-VEHICLE HIRE,ENTERPRISE RENT A CAR,0000223363,48.50
DEPARTMENT OF ENERGY AND CLIMATE CHANGE,THE COAL AUTHORITY,01/10/2015,CHILDCARE VOUCHERS,MINE WATER TREATMENT SCHEMES,PERSONNEL RLTD-STAFF CHILDCARE,FIDELITI LIMITED,0000223287,10.00
DEPARTMENT OF ENERGY AND CLIMATE CHANGE,THE COAL AUTHORITY,19/10/2015,CONSULTANTS OPERATIONS,MINE WATER TREATMENT SCHEMES,PROF SER TECH-ENGINEERING SER,MOTT MACDONALD LTD,0000223694,1228.00
DEPARTMENT OF ENERGY AND CLIMATE CHANGE,THE COAL AUTHORITY,28/09/2015,CONSULTANTS-INVESTIGATIONS,MINE WATER TREATMENT SCHEMES,PROF SER TECH-ENGINEERING SER,MOUCHEL LTD,0000223189,33.89
DEPARTMENT OF ENERGY AND CLIMATE CHANGE,THE COAL AUTHORITY,02/09/2015,CURR YR ADDNS MINEWATER SCHEME,MINE WATER TREATMENT SCHEMES,CONSTRUCTION-MAIN CONTRACTORS,J N BENTLEY LIMITED,0000223298,684845.47
DEPARTMENT OF ENERGY AND CLIMATE CHANGE,THE COAL AUTHORITY,12/10/2015,CURR YR ADDNS MINEWATER SCHEME,MINE WATER TREATMENT SCHEMES,CONSTRUCTION-MAIN CONTRACTORS,J N BENTLEY LIMITED,0000223447,577.53
DEPARTMENT OF ENERGY AND CLIMATE CHANGE,THE COAL AUTHORITY,12/10/2015,CURR YR ADDNS MINEWATER SCHEME,MINE WATER TREATMENT SCHEMES,CONSTRUCTION-MAIN CONTRACTORS,J N BENTLEY LIMITED,0000223448,205.90
DEPARTMENT OF ENERGY AND CLIMATE CHANGE,THE COAL AUTHORITY,12/10/2015,CURR YR ADDNS MINEWATER SCHEME,MINE WATER TREATMENT SCHEMES,CONSTRUCTION-MAIN CONTRACTORS,J N BENTLEY LIMITED,0000223449,-204.61
DEPARTMENT OF ENERGY AND CLIMATE CHANGE,THE COAL AUTHORITY,13/10/2015,CURR YR ADDNS MINEWATER SCHEME,MINE WATER TREATMENT SCHEMES,CONSTRUCTION-MAIN CONTRACTORS,J N BENTLEY LIMITED,0000223483,3678.26
DEPARTMENT OF ENERGY AND CLIMATE CHANGE,THE COAL AUTHORITY,13/10/2015,CURR YR ADDNS MINEWATER SCHEME,MINE WATER TREATMENT SCHEMES,CONSTRUCTION-MAIN CONTRACTORS,J N BENTLEY LIMITED,0000223485,19314.08
DEPARTMENT OF ENERGY AND CLIMATE CHANGE,THE COAL AUTHORITY,13/10/2015,CURR YR ADDNS MINEWATER SCHEME,MINE WATER TREATMENT SCHEMES,CONSTRUCTION-MAIN CONTRACTORS,J N BENTLEY LIMITED,0000223489,149.03
DEPARTMENT OF ENERGY AND CLIMATE CHANGE,THE COAL AUTHORITY,30/09/2015,CURR YR ADDNS MINEWATER SCHEME,MINE WATER TREATMENT SCHEMES,PROF SER TMP STFF-SPCLST CNTRT,MOTT MACDONALD LTD,0000223576,1778.25
DEPARTMENT OF ENERGY AND CLIMATE CHANGE,THE COAL AUTHORITY,30/09/2015,FARES - AIR,MINE WATER TREATMENT SCHEMES,TRAVEL&EVENTS-AIR,REDFERN TRAVEL LTD,0000223444,270.24
DEPARTMENT OF ENERGY AND CLIMATE CHANGE,THE COAL AUTHORITY,08/10/2015,FARES - AIR,MINE WATER TREATMENT SCHEMES,TRAVEL&EVENTS-AIR,COMPANY BARCLAYCARD,0000223743,159.41
DEPARTMENT OF ENERGY AND CLIMATE CHANGE,THE COAL AUTHORITY,22/10/2015,FARES - PUBLIC TRANSPORT,MINE WATER TREATMENT SCHEMES,TRAVEL&EVENTS-TAXI,STAFF EXPENSES CONTROL,0000223790,4.00
DEPARTMENT OF ENERGY AND CLIMATE CHANGE,THE COAL AUTHORITY,22/10/2015,FARES - PUBLIC TRANSPORT,MINE WATER TREATMENT SCHEMES,TRAVEL&EVENTS-TAXI,STAFF EXPENSES CONTROL,0000223792,4.00
DEPARTMENT OF ENERGY AND CLIMATE CHANGE,THE COAL AUTHORITY,23/10/2015,FARES - PUBLIC TRANSPORT,MINE WATER TREATMENT SCHEMES,TRAVEL&EVENTS-TAXI,STAFF EXPENSES CONTROL,0000223797,14.00
DEPARTMENT OF ENERGY AND CLIMATE CHANGE,THE COAL AUTHORITY,30/09/2015,FARES - RAIL,MINE WATER TREATMENT SCHEMES,TRAVEL&EVENTS-RAIL,REDFERN TRAVEL LTD,0000223444,861.13
DEPARTMENT OF ENERGY AND CLIMATE CHANGE,THE COAL AUTHORITY,08/10/2015,FARES - RAIL,MINE WATER TREATMENT SCHEMES,TRAVEL&EVENTS-RAIL,COMPANY BARCLAYCARD,0000223685,10.50
DEPARTMENT OF ENERGY AND CLIMATE CHANGE,THE COAL AUTHORITY,08/10/2015,FARES - RAIL,MINE WATER TREATMENT SCHEMES,TRAVEL&EVENTS-RAIL,COMPANY BARCLAYCARD,0000223742,148.63
DEPARTMENT OF ENERGY AND CLIMATE CHANGE,THE COAL AUTHORITY,14/10/2015,FUEL (VEHICLE),MINE WATER TREATMENT SCHEMES,FUELS/LUBRCNT/GAS-FUELS,ALLSTAR BUSINESS SOLUTION,0000223556,84.56
DEPARTMENT OF ENERGY AND CLIMATE CHANGE,THE COAL AUTHORITY,08/10/2015,FUEL (VEHICLE),MINE WATER TREATMENT SCHEMES,FUELS/LUBRCNT/GAS-FUELS,COMPANY BARCLAYCARD,0000223722,34.86
DEPARTMENT OF ENERGY AND CLIMATE CHANGE,THE COAL AUTHORITY,08/10/2015,FUEL (VEHICLE),MINE WATER TREATMENT SCHEMES,FUELS/LUBRCNT/GAS-FUELS,COMPANY BARCLAYCARD,0000223729,73.49
DEPARTMENT OF ENERGY AND CLIMATE CHANGE,THE COAL AUTHORITY,08/10/2015,FUEL (VEHICLE),MINE WATER TREATMENT SCHEMES,FUELS/LUBRCNT/GAS-FUELS,COMPANY BARCLAYCARD,0000223742,4.73
DEPARTMENT OF ENERGY AND CLIMATE CHANGE,THE COAL AUTHORITY,21/10/2015,FUEL (VEHICLE),MINE WATER TREATMENT SCHEMES,FUELS/LUBRCNT/GAS-FUELS,ALLSTAR BUSINESS SOLUTION,0000223773,106.98
DEPARTMENT OF ENERGY AND CLIMATE CHANGE,THE COAL AUTHORITY,23/10/2015,FUEL (VEHICLE),MINE WATER TREATMENT SCHEMES,FUELS/LUBRCNT/GAS-FUELS,STAFF EXPENSES CONTROL,0000223795,25.00
DEPARTMENT OF ENERGY AND CLIMATE CHANGE,THE COAL AUTHORITY,23/10/2015,FUEL (VEHICLE),MINE WATER TREATMENT SCHEMES,FUELS/LUBRCNT/GAS-FUELS,STAFF EXPENSES CONTROL,0000223811,40.42
DEPARTMENT OF ENERGY AND CLIMATE CHANGE,THE COAL AUTHORITY,28/10/2015,FUEL (VEHICLE),MINE WATER TREATMENT SCHEMES,FUELS/LUBRCNT/GAS-FUELS,ALLSTAR BUSINESS SOLUTION,0000223961,84.68
DEPARTMENT OF ENERGY AND CLIMATE CHANGE,THE COAL AUTHORITY,13/10/2015,HOTEL ACCOMMODATION,MINE WATER TREATMENT SCHEMES,TRAVEL&EVENTS-HOTELS,ACCOMMODATION FOR SECONDM,0000223405,413.45
DEPARTMENT OF ENERGY AND CLIMATE CHANGE,THE COAL AUTHORITY,30/09/2015,HOTEL ACCOMMODATION,MINE WATER TREATMENT SCHEMES,TRAVEL&EVENTS-HOTELS,REDFERN TRAVEL LTD,0000223446,1545.30
DEPARTMENT OF ENERGY AND CLIMATE CHANGE,THE COAL AUTHORITY,08/10/2015,HOTEL ACCOMMODATION,MINE WATER TREATMENT SCHEMES,TRAVEL&EVENTS-HOTELS,COMPANY BARCLAYCARD,0000223671,99.17
DEPARTMENT OF ENERGY AND CLIMATE CHANGE,THE COAL AUTHORITY,08/10/2015,INCIDENTALS,MINE WATER TREATMENT SCHEMES,VEHICLES-FLEET MANAGEMENT,COMPANY BARCLAYCARD,0000223663,4.00
DEPARTMENT OF ENERGY AND CLIMATE CHANGE,THE COAL AUTHORITY,08/10/2015,INCIDENTALS,MINE WATER TREATMENT SCHEMES,VEHICLES-FLEET MANAGEMENT,COMPANY BARCLAYCARD,0000223668,50.50
DEPARTMENT OF ENERGY AND CLIMATE CHANGE,THE COAL AUTHORITY,08/10/2015,INCIDENTALS,MINE WATER TREATMENT SCHEMES,VEHICLES-FLEET MANAGEMENT,COMPANY BARCLAYCARD,0000223682,4.25
DEPARTMENT OF ENERGY AND CLIMATE CHANGE,THE COAL AUTHORITY,08/10/2015,INCIDENTALS,MINE WATER TREATMENT SCHEMES,VEHICLES-FLEET MANAGEMENT,COMPANY BARCLAYCARD,0000223692,3.33
DEPARTMENT OF ENERGY AND CLIMATE CHANGE,THE COAL AUTHORITY,08/10/2015,INCIDENTALS,MINE WATER TREATMENT SCHEMES,VEHICLES-FLEET MANAGEMENT,COMPANY BARCLAYCARD,0000223721,50.00
DEPARTMENT OF ENERGY AND CLIMATE CHANGE,THE COAL AUTHORITY,22/10/2015,INCIDENTALS,MINE WATER TREATMENT SCHEMES,VEHICLES-FLEET MANAGEMENT,STAFF EXPENSES CONTROL,0000223785,4.00
DEPARTMENT OF ENERGY AND CLIMATE CHANGE,THE COAL AUTHORITY,23/10/2015,INCIDENTALS,MINE WATER TREATMENT SCHEMES,VEHICLES-FLEET MANAGEMENT,STAFF EXPENSES CONTROL,0000223795,6.40
DEPARTMENT OF ENERGY AND CLIMATE CHANGE,THE COAL AUTHORITY,23/10/2015,INCIDENTALS,MINE WATER TREATMENT SCHEMES,VEHICLES-FLEET MANAGEMENT,STAFF EXPENSES CONTROL,0000223811,12.00
DEPARTMENT OF ENERGY AND CLIMATE CHANGE,THE COAL AUTHORITY,02/09/2015,LEGAL COSTS,MINE WATER TREATMENT SCHEMES,PROF SER-LEGAL SERVICES,WALKER MORRIS,0000223212,-997.57
DEPARTMENT OF ENERGY AND CLIMATE CHANGE,THE COAL AUTHORITY,09/09/2015,LEGAL COSTS,MINE WATER TREATMENT SCHEMES,PROF SER-LEGAL SERVICES,WALKER MORRIS,0000223213,997.57
DEPARTMENT OF ENERGY AND CLIMATE CHANGE,THE COAL AUTHORITY,02/09/2015,LEGAL COSTS,MINE WATER TREATMENT SCHEMES,PROF SER-LEGAL SERVICES,WALKER MORRIS,0000223214,997.57
DEPARTMENT OF ENERGY AND CLIMATE CHANGE,THE COAL AUTHORITY,01/10/2015,LEGAL COSTS,MINE WATER TREATMENT SCHEMES,PROF SER-LEGAL SERVICES,WALKER MORRIS,0000223418,4871.30
DEPARTMENT OF ENERGY AND CLIMATE CHANGE,THE COAL AUTHORITY,05/10/2015,LEGAL COSTS,MINE WATER TREATMENT SCHEMES,PROF SER-LEGAL SERVICES,DLA PIPER UK LLP,0000223419,83.00
DEPARTMENT OF ENERGY AND CLIMATE CHANGE,THE COAL AUTHORITY,30/10/2015,LIABILITY SITE MONTHLY MAINT,MINE WATER TREATMENT SCHEMES,CONSTRUCTION-MAIN CONTRACTORS,SEVERN TRENT WATER,0000223836,10625.65
DEPARTMENT OF ENERGY AND CLIMATE CHANGE,THE COAL AUTHORITY,30/10/2015,LIABILITY SITE MONTHLY MAINT,MINE WATER TREATMENT SCHEMES,CONSTRUCTION-MAIN CONTRACTORS,SEVERN TRENT WATER,0000223836,5970.60
DEPARTMENT OF ENERGY AND CLIMATE CHANGE,THE COAL AUTHORITY,29/09/2015,LIABILITY SITES AD-HOC TASKS,MINE WATER TREATMENT SCHEMES,CONSTRUCTION-CNSTRN SER PROVDR,CORNERSTONE  PROJECTS LTD,0000223231,103.00
DEPARTMENT OF ENERGY AND CLIMATE CHANGE,THE COAL AUTHORITY,22/10/2015,LIABILITY SITES AD-HOC TASKS,MINE WATER TREATMENT SCHEMES,CONSTRUCTION-MAIN CONTRACTORS,NAL PLANT LIMITED,0000223571,870.00
DEPARTMENT OF ENERGY AND CLIMATE CHANGE,THE COAL AUTHORITY,14/10/2015,LIABILITY SITES AD-HOC TASKS,MINE WATER TREATMENT SCHEMES,CONSTRUCTION-MAIN CONTRACTORS,NAL PLANT LIMITED,0000223572,3340.00
DEPARTMENT OF ENERGY AND CLIMATE CHANGE,THE COAL AUTHORITY,16/10/2015,LIABILITY SITES AD-HOC TASKS,MINE WATER TREATMENT SCHEMES,CONSTRUCTION-MAIN CONTRACTORS,NAL PLANT LIMITED,0000223615,986.00
DEPARTMENT OF ENERGY AND CLIMATE CHANGE,THE COAL AUTHORITY,16/10/2015,LIABILITY SITES AD-HOC TASKS,MINE WATER TREATMENT SCHEMES,CONSTRUCTION-MAIN CONTRACTORS,NAL PLANT LIMITED,0000223616,1930.00
DEPARTMENT OF ENERGY AND CLIMATE CHANGE,THE COAL AUTHORITY,30/10/2015,M/W CHEMICAL OPERATIONAL,MINE WATER TREATMENT SCHEMES,CONSTRUCTION-MAIN CONTRACTORS,SEVERN TRENT WATER,0000223836,601.81
DEPARTMENT OF ENERGY AND CLIMATE CHANGE,THE COAL AUTHORITY,30/10/2015,M/W CHEMICAL OPERATIONAL,MINE WATER TREATMENT SCHEMES,CONSTRUCTION-MAIN CONTRACTORS,SEVERN TRENT WATER,0000223836,8445.15
DEPARTMENT OF ENERGY AND CLIMATE CHANGE,THE COAL AUTHORITY,30/10/2015,M/W CHEMICAL OPERATIONAL,MINE WATER TREATMENT SCHEMES,CONSTRUCTION-MAIN CONTRACTORS,SEVERN TRENT WATER,0000223836,21679.09
DEPARTMENT OF ENERGY AND CLIMATE CHANGE,THE COAL AUTHORITY,30/10/2015,M/W CHEMICAL OPERATIONAL,MINE WATER TREATMENT SCHEMES,CONSTRUCTION-MAIN CONTRACTORS,SEVERN TRENT WATER,0000223836,2708.16
DEPARTMENT OF ENERGY AND CLIMATE CHANGE,THE COAL AUTHORITY,17/06/2015,M/W CNTRCTR-OPRTNL MNTLY TSKS,MINE WATER TREATMENT SCHEMES,CONSTRUCTION-MAIN CONTRACTORS,NATIONAL COAL MINING MUSE,0000221220,23236.11
DEPARTMENT OF ENERGY AND CLIMATE CHANGE,THE COAL AUTHORITY,08/07/2015,M/W CNTRCTR-OPRTNL MNTLY TSKS,MINE WATER TREATMENT SCHEMES,CONSTRUCTION-MAIN CONTRACTORS,INTEGRATED WATER SERVICES,0000221455,227.60
DEPARTMENT OF ENERGY AND CLIMATE CHANGE,THE COAL AUTHORITY,14/07/2015,M/W CNTRCTR-OPRTNL MNTLY TSKS,MINE WATER TREATMENT SCHEMES,CONSTRUCTION-MAIN CONTRACTORS,NATIONAL COAL MINING MUSE,0000221651,1055.56
DEPARTMENT OF ENERGY AND CLIMATE CHANGE,THE COAL AUTHORITY,21/10/2015,M/W CNTRCTR-OPRTNL MNTLY TSKS,MINE WATER TREATMENT SCHEMES,CONSTRUCTION-MAIN CONTRACTORS,SEVERN TRENT SERV OPS UK,0000223733,101087.21
DEPARTMENT OF ENERGY AND CLIMATE CHANGE,THE COAL AUTHORITY,30/10/2015,M/W CNTRCTR-OPRTNL MNTLY TSKS,MINE WATER TREATMENT SCHEMES,CONSTRUCTION-MAIN CONTRACTORS,SEVERN TRENT WATER,0000223836,2061.56
DEPARTMENT OF ENERGY AND CLIMATE CHANGE,THE COAL AUTHORITY,30/10/2015,M/W CNTRCTR-OPRTNL MNTLY TSKS,MINE WATER TREATMENT SCHEMES,CONSTRUCTION-MAIN CONTRACTORS,SEVERN TRENT WATER,0000223836,2274.03
DEPARTMENT OF ENERGY AND CLIMATE CHANGE,THE COAL AUTHORITY,30/10/2015,M/W CNTRCTR-OPRTNL MNTLY TSKS,MINE WATER TREATMENT SCHEMES,CONSTRUCTION-MAIN CONTRACTORS,SEVERN TRENT WATER,0000223836,43.22
DEPARTMENT OF ENERGY AND CLIMATE CHANGE,THE COAL AUTHORITY,30/10/2015,M/W CNTRCTR-OPRTNL MNTLY TSKS,MINE WATER TREATMENT SCHEMES,CONSTRUCTION-MAIN CONTRACTORS,SEVERN TRENT WATER,0000223836,11.43
DEPARTMENT OF ENERGY AND CLIMATE CHANGE,THE COAL AUTHORITY,30/10/2015,M/W CNTRCTR-OPRTNL MNTLY TSKS,MINE WATER TREATMENT SCHEMES,CONSTRUCTION-MAIN CONTRACTORS,SEVERN TRENT WATER,0000223836,97.49
DEPARTMENT OF ENERGY AND CLIMATE CHANGE,THE COAL AUTHORITY,30/10/2015,M/W CNTRCTR-OPRTNL MNTLY TSKS,MINE WATER TREATMENT SCHEMES,CONSTRUCTION-MAIN CONTRACTORS,SEVERN TRENT WATER,0000223836,22.07
DEPARTMENT OF ENERGY AND CLIMATE CHANGE,THE COAL AUTHORITY,30/10/2015,M/W CNTRCTR-OPRTNL MNTLY TSKS,MINE WATER TREATMENT SCHEMES,CONSTRUCTION-MAIN CONTRACTORS,SEVERN TRENT WATER,0000223836,77.26
DEPARTMENT OF ENERGY AND CLIMATE CHANGE,THE COAL AUTHORITY,30/10/2015,M/W CNTRCTR-OPRTNL MNTLY TSKS,MINE WATER TREATMENT SCHEMES,CONSTRUCTION-MAIN CONTRACTORS,SEVERN TRENT WATER,0000223836,81.34
DEPARTMENT OF ENERGY AND CLIMATE CHANGE,THE COAL AUTHORITY,30/10/2015,M/W CNTRCTR-OPRTNL MNTLY TSKS,MINE WATER TREATMENT SCHEMES,CONSTRUCTION-MAIN CONTRACTORS,SEVERN TRENT WATER,0000223836,40.47
DEPARTMENT OF ENERGY AND CLIMATE CHANGE,THE COAL AUTHORITY,30/10/2015,M/W CNTRCTR-OPRTNL MNTLY TSKS,MINE WATER TREATMENT SCHEMES,CONSTRUCTION-MAIN CONTRACTORS,SEVERN TRENT WATER,0000223836,27.59
DEPARTMENT OF ENERGY AND CLIMATE CHANGE,THE COAL AUTHORITY,30/10/2015,M/W CNTRCTR-OPRTNL MNTLY TSKS,MINE WATER TREATMENT SCHEMES,CONSTRUCTION-MAIN CONTRACTORS,SEVERN TRENT WATER,0000223836,71.74
DEPARTMENT OF ENERGY AND CLIMATE CHANGE,THE COAL AUTHORITY,30/10/2015,M/W CNTRCTR-OPRTNL MNTLY TSKS,MINE WATER TREATMENT SCHEMES,CONSTRUCTION-MAIN CONTRACTORS,SEVERN TRENT WATER,0000223836,352.46
DEPARTMENT OF ENERGY AND CLIMATE CHANGE,THE COAL AUTHORITY,30/10/2015,M/W CNTRCTR-OPRTNL MNTLY TSKS,MINE WATER TREATMENT SCHEMES,CONSTRUCTION-MAIN CONTRACTORS,SEVERN TRENT WATER,0000223836,553.91
DEPARTMENT OF ENERGY AND CLIMATE CHANGE,THE COAL AUTHORITY,30/10/2015,M/W CNTRCTR-OPRTNL MNTLY TSKS,MINE WATER TREATMENT SCHEMES,CONSTRUCTION-MAIN CONTRACTORS,SEVERN TRENT WATER,0000223836,162.67
DEPARTMENT OF ENERGY AND CLIMATE CHANGE,THE COAL AUTHORITY,30/10/2015,M/W CNTRCTR-OPRTNL MNTLY TSKS,MINE WATER TREATMENT SCHEMES,CONSTRUCTION-MAIN CONTRACTORS,SEVERN TRENT WATER,0000223836,726.57
DEPARTMENT OF ENERGY AND CLIMATE CHANGE,THE COAL AUTHORITY,30/10/2015,M/W CNTRCTR-OPRTNL MNTLY TSKS,MINE WATER TREATMENT SCHEMES,CONSTRUCTION-MAIN CONTRACTORS,SEVERN TRENT WATER,0000223836,39.54
DEPARTMENT OF ENERGY AND CLIMATE CHANGE,THE COAL AUTHORITY,30/10/2015,M/W CNTRCTR-OPRTNL MNTLY TSKS,MINE WATER TREATMENT SCHEMES,CONSTRUCTION-MAIN CONTRACTORS,SEVERN TRENT WATER,0000223836,76.19
DEPARTMENT OF ENERGY AND CLIMATE CHANGE,THE COAL AUTHORITY,30/10/2015,M/W CNTRCTR-OPRTNL MNTLY TSKS,MINE WATER TREATMENT SCHEMES,CONSTRUCTION-MAIN CONTRACTORS,SEVERN TRENT WATER,0000223836,148.57
DEPARTMENT OF ENERGY AND CLIMATE CHANGE,THE COAL AUTHORITY,30/10/2015,M/W CNTRCTR-OPRTNL MNTLY TSKS,MINE WATER TREATMENT SCHEMES,CONSTRUCTION-MAIN CONTRACTORS,SEVERN TRENT WATER,0000223836,11.04
DEPARTMENT OF ENERGY AND CLIMATE CHANGE,THE COAL AUTHORITY,30/10/2015,M/W CNTRCTR-OPRTNL MNTLY TSKS,MINE WATER TREATMENT SCHEMES,CONSTRUCTION-MAIN CONTRACTORS,SEVERN TRENT WATER,0000223836,81.34
DEPARTMENT OF ENERGY AND CLIMATE CHANGE,THE COAL AUTHORITY,30/10/2015,M/W CNTRCTR-OPRTNL MNTLY TSKS,MINE WATER TREATMENT SCHEMES,CONSTRUCTION-MAIN CONTRACTORS,SEVERN TRENT WATER,0000223836,290.61
DEPARTMENT OF ENERGY AND CLIMATE CHANGE,THE COAL AUTHORITY,30/10/2015,M/W CNTRCTR-OPRTNL MNTLY TSKS,MINE WATER TREATMENT SCHEMES,CONSTRUCTION-MAIN CONTRACTORS,SEVERN TRENT WATER,0000223836,614.36
DEPARTMENT OF ENERGY AND CLIMATE CHANGE,THE COAL AUTHORITY,30/10/2015,M/W CNTRCTR-OPRTNL MNTLY TSKS,MINE WATER TREATMENT SCHEMES,CONSTRUCTION-MAIN CONTRACTORS,SEVERN TRENT WATER,0000223836,71.28
DEPARTMENT OF ENERGY AND CLIMATE CHANGE,THE COAL AUTHORITY,30/10/2015,M/W CNTRCTR-OPRTNL MNTLY TSKS,MINE WATER TREATMENT SCHEMES,CONSTRUCTION-MAIN CONTRACTORS,SEVERN TRENT WATER,0000223836,58.18
DEPARTMENT OF ENERGY AND CLIMATE CHANGE,THE COAL AUTHORITY,30/10/2015,M/W CNTRCTR-OPRTNL MNTLY TSKS,MINE WATER TREATMENT SCHEMES,CONSTRUCTION-MAIN CONTRACTORS,SEVERN TRENT WATER,0000223836,5.71
DEPARTMENT OF ENERGY AND CLIMATE CHANGE,THE COAL AUTHORITY,30/10/2015,M/W CNTRCTR-OPRTNL MNTLY TSKS,MINE WATER TREATMENT SCHEMES,CONSTRUCTION-MAIN CONTRACTORS,SEVERN TRENT WATER,0000223836,35.14
DEPARTMENT OF ENERGY AND CLIMATE CHANGE,THE COAL AUTHORITY,30/10/2015,M/W CNTRCTR-OPRTNL MNTLY TSKS,MINE WATER TREATMENT SCHEMES,CONSTRUCTION-MAIN CONTRACTORS,SEVERN TRENT WATER,0000223836,452.51
DEPARTMENT OF ENERGY AND CLIMATE CHANGE,THE COAL AUTHORITY,30/10/2015,M/W CNTRCTR-OPRTNL MNTLY TSKS,MINE WATER TREATMENT SCHEMES,CONSTRUCTION-MAIN CONTRACTORS,SEVERN TRENT WATER,0000223836,976.73
DEPARTMENT OF ENERGY AND CLIMATE CHANGE,THE COAL AUTHORITY,30/10/2015,M/W CNTRCTR-OPRTNL MNTLY TSKS,MINE WATER TREATMENT SCHEMES,CONSTRUCTION-MAIN CONTRACTORS,SEVERN TRENT WATER,0000223836,47.85
DEPARTMENT OF ENERGY AND CLIMATE CHANGE,THE COAL AUTHORITY,30/10/2015,M/W CNTRCTR-OPRTNL MNTLY TSKS,MINE WATER TREATMENT SCHEMES,CONSTRUCTION-MAIN CONTRACTORS,SEVERN TRENT WATER,0000223836,5211.71
DEPARTMENT OF ENERGY AND CLIMATE CHANGE,THE COAL AUTHORITY,30/10/2015,M/W CNTRCTR-OPRTNL MNTLY TSKS,MINE WATER TREATMENT SCHEMES,CONSTRUCTION-MAIN CONTRACTORS,SEVERN TRENT WATER,0000223836,882.99
DEPARTMENT OF ENERGY AND CLIMATE CHANGE,THE COAL AUTHORITY,30/10/2015,M/W CNTRCTR-OPRTNL MNTLY TSKS,MINE WATER TREATMENT SCHEMES,CONSTRUCTION-MAIN CONTRACTORS,SEVERN TRENT WATER,0000223836,817.34
DEPARTMENT OF ENERGY AND CLIMATE CHANGE,THE COAL AUTHORITY,30/10/2015,M/W CNTRCTR-OPRTNL MNTLY TSKS,MINE WATER TREATMENT SCHEMES,CONSTRUCTION-MAIN CONTRACTORS,SEVERN TRENT WATER,0000223836,1300.33
DEPARTMENT OF ENERGY AND CLIMATE CHANGE,THE COAL AUTHORITY,30/10/2015,M/W CNTRCTR-OPRTNL MNTLY TSKS,MINE WATER TREATMENT SCHEMES,CONSTRUCTION-MAIN CONTRACTORS,SEVERN TRENT WATER,0000223836,679.91
DEPARTMENT OF ENERGY AND CLIMATE CHANGE,THE COAL AUTHORITY,30/10/2015,M/W CNTRCTR-OPRTNL MNTLY TSKS,MINE WATER TREATMENT SCHEMES,CONSTRUCTION-MAIN CONTRACTORS,SEVERN TRENT WATER,0000223836,25.71
DEPARTMENT OF ENERGY AND CLIMATE CHANGE,THE COAL AUTHORITY,09/09/2015,M/W CONTRCTR OPRNTL MTHLY MAIN,MINE WATER TREATMENT SCHEMES,WASTE MANAGEMENT-WSTE MNGT SER,NORTHUMBERLAND COUNTY COU,0000222907,133.92
DEPARTMENT OF ENERGY AND CLIMATE CHANGE,THE COAL AUTHORITY,25/09/2015,M/W CONTRCTR OPRNTL MTHLY MAIN,MINE WATER TREATMENT SCHEMES,CONSTRUCTION-MAIN CONTRACTORS,NATIONAL COAL MINING MUSE,0000223605,3420.00
DEPARTMENT OF ENERGY AND CLIMATE CHANGE,THE COAL AUTHORITY,30/10/2015,M/W CONTRCTR OPRNTL MTHLY MAIN,MINE WATER TREATMENT SCHEMES,CONSTRUCTION-MAIN CONTRACTORS,SEVERN TRENT WATER,0000223836,318.22
DEPARTMENT OF ENERGY AND CLIMATE CHANGE,THE COAL AUTHORITY,30/10/2015,M/W CONTRCTR OPRNTL MTHLY MAIN,MINE WATER TREATMENT SCHEMES,CONSTRUCTION-MAIN CONTRACTORS,SEVERN TRENT WATER,0000223836,123.80
DEPARTMENT OF ENERGY AND CLIMATE CHANGE,THE COAL AUTHORITY,30/10/2015,M/W CONTRCTR OPRNTL MTHLY MAIN,MINE WATER TREATMENT SCHEMES,CONSTRUCTION-MAIN CONTRACTORS,SEVERN TRENT WATER,0000223836,45.71
DEPARTMENT OF ENERGY AND CLIMATE CHANGE,THE COAL AUTHORITY,30/10/2015,M/W CONTRCTR OPRNTL MTHLY MAIN,MINE WATER TREATMENT SCHEMES,CONSTRUCTION-MAIN CONTRACTORS,SEVERN TRENT WATER,0000223836,69.90
DEPARTMENT OF ENERGY AND CLIMATE CHANGE,THE COAL AUTHORITY,30/10/2015,M/W CONTRCTR OPRNTL MTHLY MAIN,MINE WATER TREATMENT SCHEMES,CONSTRUCTION-MAIN CONTRACTORS,SEVERN TRENT WATER,0000223836,108.57
DEPARTMENT OF ENERGY AND CLIMATE CHANGE,THE COAL AUTHORITY,30/10/2015,M/W CONTRCTR OPRNTL MTHLY MAIN,MINE WATER TREATMENT SCHEMES,CONSTRUCTION-MAIN CONTRACTORS,SEVERN TRENT WATER,0000223836,86.45
DEPARTMENT OF ENERGY AND CLIMATE CHANGE,THE COAL AUTHORITY,30/10/2015,M/W CONTRCTR OPRNTL MTHLY MAIN,MINE WATER TREATMENT SCHEMES,CONSTRUCTION-MAIN CONTRACTORS,SEVERN TRENT WATER,0000223836,188.56
DEPARTMENT OF ENERGY AND CLIMATE CHANGE,THE COAL AUTHORITY,30/10/2015,M/W CONTRCTR OPRNTL MTHLY MAIN,MINE WATER TREATMENT SCHEMES,CONSTRUCTION-MAIN CONTRACTORS,SEVERN TRENT WATER,0000223836,171.42
DEPARTMENT OF ENERGY AND CLIMATE CHANGE,THE COAL AUTHORITY,30/10/2015,M/W CONTRCTR OPRNTL MTHLY MAIN,MINE WATER TREATMENT SCHEMES,CONSTRUCTION-MAIN CONTRACTORS,SEVERN TRENT WATER,0000223836,283.27
DEPARTMENT OF ENERGY AND CLIMATE CHANGE,THE COAL AUTHORITY,30/10/2015,M/W CONTRCTR OPRNTL MTHLY MAIN,MINE WATER TREATMENT SCHEMES,CONSTRUCTION-MAIN CONTRACTORS,SEVERN TRENT WATER,0000223836,380.76
DEPARTMENT OF ENERGY AND CLIMATE CHANGE,THE COAL AUTHORITY,30/10/2015,M/W CONTRCTR OPRNTL MTHLY MAIN,MINE WATER TREATMENT SCHEMES,CONSTRUCTION-MAIN CONTRACTORS,SEVERN TRENT WATER,0000223836,257.52
DEPARTMENT OF ENERGY AND CLIMATE CHANGE,THE COAL AUTHORITY,30/10/2015,M/W CONTRCTR OPRNTL MTHLY MAIN,MINE WATER TREATMENT SCHEMES,CONSTRUCTION-MAIN CONTRACTORS,SEVERN TRENT WATER,0000223836,70.47
DEPARTMENT OF ENERGY AND CLIMATE CHANGE,THE COAL AUTHORITY,30/10/2015,M/W CONTRCTR OPRNTL MTHLY MAIN,MINE WATER TREATMENT SCHEMES,CONSTRUCTION-MAIN CONTRACTORS,SEVERN TRENT WATER,0000223836,95.65
DEPARTMENT OF ENERGY AND CLIMATE CHANGE,THE COAL AUTHORITY,30/10/2015,M/W CONTRCTR OPRNTL MTHLY MAIN,MINE WATER TREATMENT SCHEMES,CONSTRUCTION-MAIN CONTRACTORS,SEVERN TRENT WATER,0000223836,264.88
DEPARTMENT OF ENERGY AND CLIMATE CHANGE,THE COAL AUTHORITY,30/10/2015,M/W CONTRCTR OPRNTL MTHLY MAIN,MINE WATER TREATMENT SCHEMES,CONSTRUCTION-MAIN CONTRACTORS,SEVERN TRENT WATER,0000223836,134.28
DEPARTMENT OF ENERGY AND CLIMATE CHANGE,THE COAL AUTHORITY,30/10/2015,M/W CONTRCTR OPRNTL MTHLY MAIN,MINE WATER TREATMENT SCHEMES,CONSTRUCTION-MAIN CONTRACTORS,SEVERN TRENT WATER,0000223836,70.47
DEPARTMENT OF ENERGY AND CLIMATE CHANGE,THE COAL AUTHORITY,30/10/2015,M/W CONTRCTR OPRNTL MTHLY MAIN,MINE WATER TREATMENT SCHEMES,CONSTRUCTION-MAIN CONTRACTORS,SEVERN TRENT WATER,0000223836,87.62
DEPARTMENT OF ENERGY AND CLIMATE CHANGE,THE COAL AUTHORITY,30/10/2015,M/W CONTRCTR OPRNTL MTHLY MAIN,MINE WATER TREATMENT SCHEMES,CONSTRUCTION-MAIN CONTRACTORS,SEVERN TRENT WATER,0000223836,5592.17
DEPARTMENT OF ENERGY AND CLIMATE CHANGE,THE COAL AUTHORITY,30/10/2015,M/W CONTRCTR OPRNTL MTHLY MAIN,MINE WATER TREATMENT SCHEMES,CONSTRUCTION-MAIN CONTRACTORS,SEVERN TRENT WATER,0000223836,296.15
DEPARTMENT OF ENERGY AND CLIMATE CHANGE,THE COAL AUTHORITY,30/10/2015,M/W CONTRCTR OPRNTL MTHLY MAIN,MINE WATER TREATMENT SCHEMES,CONSTRUCTION-MAIN CONTRACTORS,SEVERN TRENT WATER,0000223836,97.49
DEPARTMENT OF ENERGY AND CLIMATE CHANGE,THE COAL AUTHORITY,30/10/2015,M/W CONTRCTR OPRNTL MTHLY MAIN,MINE WATER TREATMENT SCHEMES,CONSTRUCTION-MAIN CONTRACTORS,SEVERN TRENT WATER,0000223836,146.66
DEPARTMENT OF ENERGY AND CLIMATE CHANGE,THE COAL AUTHORITY,30/10/2015,M/W CONTRCTR OPRNTL MTHLY MAIN,MINE WATER TREATMENT SCHEMES,CONSTRUCTION-MAIN CONTRACTORS,SEVERN TRENT WATER,0000223836,93.81
DEPARTMENT OF ENERGY AND CLIMATE CHANGE,THE COAL AUTHORITY,30/10/2015,M/W CONTRCTR OPRNTL MTHLY MAIN,MINE WATER TREATMENT SCHEMES,CONSTRUCTION-MAIN CONTRACTORS,SEVERN TRENT WATER,0000223836,68.06
DEPARTMENT OF ENERGY AND CLIMATE CHANGE,THE COAL AUTHORITY,30/10/2015,M/W CONTRCTR OPRNTL MTHLY MAIN,MINE WATER TREATMENT SCHEMES,CONSTRUCTION-MAIN CONTRACTORS,SEVERN TRENT WATER,0000223836,34.28
DEPARTMENT OF ENERGY AND CLIMATE CHANGE,THE COAL AUTHORITY,30/10/2015,M/W CONTRCTR OPRNTL MTHLY MAIN,MINE WATER TREATMENT SCHEMES,CONSTRUCTION-MAIN CONTRACTORS,SEVERN TRENT WATER,0000223836,79.09
DEPARTMENT OF ENERGY AND CLIMATE CHANGE,THE COAL AUTHORITY,30/10/2015,M/W CONTRCTR OPRNTL MTHLY MAIN,MINE WATER TREATMENT SCHEMES,CONSTRUCTION-MAIN CONTRACTORS,SEVERN TRENT WATER,0000223836,154.28
DEPARTMENT OF ENERGY AND CLIMATE CHANGE,THE COAL AUTHORITY,30/10/2015,M/W CONTRCTR OPRNTL MTHLY MAIN,MINE WATER TREATMENT SCHEMES,CONSTRUCTION-MAIN CONTRACTORS,SEVERN TRENT WATER,0000223836,49.66
DEPARTMENT OF ENERGY AND CLIMATE CHANGE,THE COAL AUTHORITY,30/10/2015,M/W CONTRCTR OPRNTL MTHLY MAIN,MINE WATER TREATMENT SCHEMES,CONSTRUCTION-MAIN CONTRACTORS,SEVERN TRENT WATER,0000223836,171.07
DEPARTMENT OF ENERGY AND CLIMATE CHANGE,THE COAL AUTHORITY,30/10/2015,M/W CONTRCTR OPRNTL MTHLY MAIN,MINE WATER TREATMENT SCHEMES,CONSTRUCTION-MAIN CONTRACTORS,SEVERN TRENT WATER,0000223836,363.80
DEPARTMENT OF ENERGY AND CLIMATE CHANGE,THE COAL AUTHORITY,30/10/2015,M/W CONTRCTR OPRNTL MTHLY MAIN,MINE WATER TREATMENT SCHEMES,CONSTRUCTION-MAIN CONTRACTORS,SEVERN TRENT WATER,0000223836,102.85
DEPARTMENT OF ENERGY AND CLIMATE CHANGE,THE COAL AUTHORITY,30/10/2015,M/W CONTRCTR OPRNTL MTHLY MAIN,MINE WATER TREATMENT SCHEMES,CONSTRUCTION-MAIN CONTRACTORS,SEVERN TRENT WATER,0000223836,110.47
DEPARTMENT OF ENERGY AND CLIMATE CHANGE,THE COAL AUTHORITY,30/10/2015,M/W CONTRCTR OPRNTL MTHLY MAIN,MINE WATER TREATMENT SCHEMES,CONSTRUCTION-MAIN CONTRACTORS,SEVERN TRENT WATER,0000223836,41.90
DEPARTMENT OF ENERGY AND CLIMATE CHANGE,THE COAL AUTHORITY,30/10/2015,M/W CONTRCTR OPRNTL MTHLY MAIN,MINE WATER TREATMENT SCHEMES,CONSTRUCTION-MAIN CONTRACTORS,SEVERN TRENT WATER,0000223836,53.33
DEPARTMENT OF ENERGY AND CLIMATE CHANGE,THE COAL AUTHORITY,30/10/2015,M/W CONTRCTR OPRNTL MTHLY MAIN,MINE WATER TREATMENT SCHEMES,CONSTRUCTION-MAIN CONTRACTORS,SEVERN TRENT WATER,0000223836,165.55
DEPARTMENT OF ENERGY AND CLIMATE CHANGE,THE COAL AUTHORITY,30/10/2015,M/W CONTRCTR OPRNTL MTHLY MAIN,MINE WATER TREATMENT SCHEMES,CONSTRUCTION-MAIN CONTRACTORS,SEVERN TRENT WATER,0000223836,332.93
DEPARTMENT OF ENERGY AND CLIMATE CHANGE,THE COAL AUTHORITY,30/10/2015,M/W CONTRCTR OPRNTL MTHLY MAIN,MINE WATER TREATMENT SCHEMES,CONSTRUCTION-MAIN CONTRACTORS,SEVERN TRENT WATER,0000223836,51.43
DEPARTMENT OF ENERGY AND CLIMATE CHANGE,THE COAL AUTHORITY,30/10/2015,M/W CONTRCTR OPRNTL MTHLY MAIN,MINE WATER TREATMENT SCHEMES,CONSTRUCTION-MAIN CONTRACTORS,SEVERN TRENT WATER,0000223836,53.33
DEPARTMENT OF ENERGY AND CLIMATE CHANGE,THE COAL AUTHORITY,30/10/2015,M/W CONTRCTR OPRNTL MTHLY MAIN,MINE WATER TREATMENT SCHEMES,CONSTRUCTION-MAIN CONTRACTORS,SEVERN TRENT WATER,0000223836,75.42
DEPARTMENT OF ENERGY AND CLIMATE CHANGE,THE COAL AUTHORITY,30/10/2015,M/W CONTRCTR OPRNTL MTHLY MAIN,MINE WATER TREATMENT SCHEMES,CONSTRUCTION-MAIN CONTRACTORS,SEVERN TRENT WATER,0000223836,167.39
DEPARTMENT OF ENERGY AND CLIMATE CHANGE,THE COAL AUTHORITY,30/10/2015,M/W CONTRCTR OPRNTL MTHLY MAIN,MINE WATER TREATMENT SCHEMES,CONSTRUCTION-MAIN CONTRACTORS,SEVERN TRENT WATER,0000223836,43.81
DEPARTMENT OF ENERGY AND CLIMATE CHANGE,THE COAL AUTHORITY,30/10/2015,M/W CONTRCTR OPRNTL MTHLY MAIN,MINE WATER TREATMENT SCHEMES,CONSTRUCTION-MAIN CONTRACTORS,SEVERN TRENT WATER,0000223836,257.52
DEPARTMENT OF ENERGY AND CLIMATE CHANGE,THE COAL AUTHORITY,30/10/2015,M/W CONTRCTR OPRNTL MTHLY MAIN,MINE WATER TREATMENT SCHEMES,CONSTRUCTION-MAIN CONTRACTORS,SEVERN TRENT WATER,0000223836,24.76
DEPARTMENT OF ENERGY AND CLIMATE CHANGE,THE COAL AUTHORITY,30/10/2015,M/W CONTRCTR OPRNTL MTHLY MAIN,MINE WATER TREATMENT SCHEMES,CONSTRUCTION-MAIN CONTRACTORS,SEVERN TRENT WATER,0000223836,636.17
DEPARTMENT OF ENERGY AND CLIMATE CHANGE,THE COAL AUTHORITY,30/10/2015,M/W CONTRCTR OPRNTL MTHLY MAIN,MINE WATER TREATMENT SCHEMES,CONSTRUCTION-MAIN CONTRACTORS,SEVERN TRENT WATER,0000223836,99.04
DEPARTMENT OF ENERGY AND CLIMATE CHANGE,THE COAL AUTHORITY,30/10/2015,M/W CONTRCTR OPRNTL MTHLY MAIN,MINE WATER TREATMENT SCHEMES,CONSTRUCTION-MAIN CONTRACTORS,SEVERN TRENT WATER,0000223836,91.43
DEPARTMENT OF ENERGY AND CLIMATE CHANGE,THE COAL AUTHORITY,30/10/2015,M/W CONTRCTR OPRNTL MTHLY MAIN,MINE WATER TREATMENT SCHEMES,CONSTRUCTION-MAIN CONTRACTORS,SEVERN TRENT WATER,0000223836,77.26
DEPARTMENT OF ENERGY AND CLIMATE CHANGE,THE COAL AUTHORITY,30/10/2015,M/W CONTRCTR OPRNTL MTHLY MAIN,MINE WATER TREATMENT SCHEMES,CONSTRUCTION-MAIN CONTRACTORS,SEVERN TRENT WATER,0000223836,119.56
DEPARTMENT OF ENERGY AND CLIMATE CHANGE,THE COAL AUTHORITY,30/10/2015,M/W CONTRCTR OPRNTL MTHLY MAIN,MINE WATER TREATMENT SCHEMES,CONSTRUCTION-MAIN CONTRACTORS,SEVERN TRENT WATER,0000223836,57.02
DEPARTMENT OF ENERGY AND CLIMATE CHANGE,THE COAL AUTHORITY,30/10/2015,M/W CONTRCTR OPRNTL MTHLY MAIN,MINE WATER TREATMENT SCHEMES,CONSTRUCTION-MAIN CONTRACTORS,SEVERN TRENT WATER,0000223836,5.71
DEPARTMENT OF ENERGY AND CLIMATE CHANGE,THE COAL AUTHORITY,30/10/2015,M/W CONTRCTR OPRNTL MTHLY MAIN,MINE WATER TREATMENT SCHEMES,CONSTRUCTION-MAIN CONTRACTORS,SEVERN TRENT WATER,0000223836,154.51
DEPARTMENT OF ENERGY AND CLIMATE CHANGE,THE COAL AUTHORITY,30/10/2015,M/W CONTRCTR OPRNTL MTHLY MAIN,MINE WATER TREATMENT SCHEMES,CONSTRUCTION-MAIN CONTRACTORS,SEVERN TRENT WATER,0000223836,106.69
DEPARTMENT OF ENERGY AND CLIMATE CHANGE,THE COAL AUTHORITY,30/10/2015,M/W CONTRCTR OPRNTL MTHLY MAIN,MINE WATER TREATMENT SCHEMES,CONSTRUCTION-MAIN CONTRACTORS,SEVERN TRENT WATER,0000223836,171.07
DEPARTMENT OF ENERGY AND CLIMATE CHANGE,THE COAL AUTHORITY,30/10/2015,M/W CONTRCTR OPRNTL MTHLY MAIN,MINE WATER TREATMENT SCHEMES,CONSTRUCTION-MAIN CONTRACTORS,SEVERN TRENT WATER,0000223836,160.03
DEPARTMENT OF ENERGY AND CLIMATE CHANGE,THE COAL AUTHORITY,30/10/2015,M/W CONTRCTR OPRNTL MTHLY MAIN,MINE WATER TREATMENT SCHEMES,CONSTRUCTION-MAIN CONTRACTORS,SEVERN TRENT WATER,0000223836,116.19
DEPARTMENT OF ENERGY AND CLIMATE CHANGE,THE COAL AUTHORITY,30/10/2015,M/W CONTRCTR OPRNTL MTHLY MAIN,MINE WATER TREATMENT SCHEMES,CONSTRUCTION-MAIN CONTRACTORS,SEVERN TRENT WATER,0000223836,119.56
DEPARTMENT OF ENERGY AND CLIMATE CHANGE,THE COAL AUTHORITY,30/10/2015,M/W CONTRCTR OPRNTL MTHLY MAIN,MINE WATER TREATMENT SCHEMES,CONSTRUCTION-MAIN CONTRACTORS,SEVERN TRENT WATER,0000223836,172.91
DEPARTMENT OF ENERGY AND CLIMATE CHANGE,THE COAL AUTHORITY,30/10/2015,M/W CONTRCTR OPRNTL MTHLY MAIN,MINE WATER TREATMENT SCHEMES,CONSTRUCTION-MAIN CONTRACTORS,SEVERN TRENT WATER,0000223836,583.09
DEPARTMENT OF ENERGY AND CLIMATE CHANGE,THE COAL AUTHORITY,30/10/2015,M/W CONTRCTR OPRNTL MTHLY MAIN,MINE WATER TREATMENT SCHEMES,CONSTRUCTION-MAIN CONTRACTORS,SEVERN TRENT WATER,0000223836,29.43
DEPARTMENT OF ENERGY AND CLIMATE CHANGE,THE COAL AUTHORITY,30/10/2015,M/W CONTRCTR OPRNTL MTHLY MAIN,MINE WATER TREATMENT SCHEMES,CONSTRUCTION-MAIN CONTRACTORS,SEVERN TRENT WATER,0000223836,248.32
DEPARTMENT OF ENERGY AND CLIMATE CHANGE,THE COAL AUTHORITY,30/10/2015,M/W CONTRCTR OPRNTL MTHLY MAIN,MINE WATER TREATMENT SCHEMES,CONSTRUCTION-MAIN CONTRACTORS,SEVERN TRENT WATER,0000223836,59.05
DEPARTMENT OF ENERGY AND CLIMATE CHANGE,THE COAL AUTHORITY,30/10/2015,M/W CONTRCTR OPRNTL MTHLY MAIN,MINE WATER TREATMENT SCHEMES,CONSTRUCTION-MAIN CONTRACTORS,SEVERN TRENT WATER,0000223836,194.28
DEPARTMENT OF ENERGY AND CLIMATE CHANGE,THE COAL AUTHORITY,30/10/2015,M/W CONTRCTR OPRNTL MTHLY MAIN,MINE WATER TREATMENT SCHEMES,CONSTRUCTION-MAIN CONTRACTORS,SEVERN TRENT WATER,0000223836,106.66
DEPARTMENT OF ENERGY AND CLIMATE CHANGE,THE COAL AUTHORITY,30/10/2015,M/W CONTRCTR OPRNTL MTHLY MAIN,MINE WATER TREATMENT SCHEMES,CONSTRUCTION-MAIN CONTRACTORS,SEVERN TRENT WATER,0000223836,123.80
DEPARTMENT OF ENERGY AND CLIMATE CHANGE,THE COAL AUTHORITY,30/10/2015,M/W CONTRCTR OPRNTL MTHLY MAIN,MINE WATER TREATMENT SCHEMES,CONSTRUCTION-MAIN CONTRACTORS,SEVERN TRENT WATER,0000223836,71.74
DEPARTMENT OF ENERGY AND CLIMATE CHANGE,THE COAL AUTHORITY,30/10/2015,M/W CONTRCTR OPRNTL MTHLY MAIN,MINE WATER TREATMENT SCHEMES,CONSTRUCTION-MAIN CONTRACTORS,SEVERN TRENT WATER,0000223836,99.33
DEPARTMENT OF ENERGY AND CLIMATE CHANGE,THE COAL AUTHORITY,30/10/2015,M/W CONTRCTR OPRNTL MTHLY MAIN,MINE WATER TREATMENT SCHEMES,CONSTRUCTION-MAIN CONTRACTORS,SEVERN TRENT WATER,0000223836,29.09
DEPARTMENT OF ENERGY AND CLIMATE CHANGE,THE COAL AUTHORITY,30/10/2015,M/W CONTRCTR OPRNTL MTHLY MAIN,MINE WATER TREATMENT SCHEMES,CONSTRUCTION-MAIN CONTRACTORS,SEVERN TRENT WATER,0000223836,42502.58
DEPARTMENT OF ENERGY AND CLIMATE CHANGE,THE COAL AUTHORITY,30/10/2015,M/W CONTRCTR OPRNTL MTHLY MAIN,MINE WATER TREATMENT SCHEMES,CONSTRUCTION-MAIN CONTRACTORS,SEVERN TRENT WATER,0000223836,336.20
DEPARTMENT OF ENERGY AND CLIMATE CHANGE,THE COAL AUTHORITY,30/10/2015,M/W CONTRCTR OPRNTL MTHLY MAIN,MINE WATER TREATMENT SCHEMES,CONSTRUCTION-MAIN CONTRACTORS,SEVERN TRENT WATER,0000223836,9.96
DEPARTMENT OF ENERGY AND CLIMATE CHANGE,THE COAL AUTHORITY,30/10/2015,M/W CONTRCTR OPRNTL MTHLY MAIN,MINE WATER TREATMENT SCHEMES,CONSTRUCTION-MAIN CONTRACTORS,SEVERN TRENT WATER,0000223836,10.16
DEPARTMENT OF ENERGY AND CLIMATE CHANGE,THE COAL AUTHORITY,30/10/2015,M/W CONTRCTR OPRNTL MTHLY MAIN,MINE WATER TREATMENT SCHEMES,CONSTRUCTION-MAIN CONTRACTORS,SEVERN TRENT WATER,0000223836,4299.51
DEPARTMENT OF ENERGY AND CLIMATE CHANGE,THE COAL AUTHORITY,30/10/2015,M/W CONTRCTR OPRNTL MTHLY MAIN,MINE WATER TREATMENT SCHEMES,CONSTRUCTION-MAIN CONTRACTORS,SEVERN TRENT WATER,0000223836,-6224.81
DEPARTMENT OF ENERGY AND CLIMATE CHANGE,THE COAL AUTHORITY,08/10/2015,M/W DISCHARGE CONSENTS,MINE WATER TREATMENT SCHEMES,ENERGY&UTILITIES-WATER,SEPA,0000223557,561.00
DEPARTMENT OF ENERGY AND CLIMATE CHANGE,THE COAL AUTHORITY,08/10/2015,M/W DISCHARGE CONSENTS,MINE WATER TREATMENT SCHEMES,ENERGY&UTILITIES-WATER,SEPA,0000223558,187.00
DEPARTMENT OF ENERGY AND CLIMATE CHANGE,THE COAL AUTHORITY,08/10/2015,M/W DISCHARGE CONSENTS,MINE WATER TREATMENT SCHEMES,ENERGY&UTILITIES-WATER,SEPA,0000223559,187.00
DEPARTMENT OF ENERGY AND CLIMATE CHANGE,THE COAL AUTHORITY,08/10/2015,M/W DISCHARGE CONSENTS,MINE WATER TREATMENT SCHEMES,ENERGY&UTILITIES-WATER,SEPA,0000223560,1122.00
DEPARTMENT OF ENERGY AND CLIMATE CHANGE,THE COAL AUTHORITY,08/10/2015,M/W DISCHARGE CONSENTS,MINE WATER TREATMENT SCHEMES,ENERGY&UTILITIES-WATER,SEPA,0000223561,617.10
DEPARTMENT OF ENERGY AND CLIMATE CHANGE,THE COAL AUTHORITY,08/10/2015,M/W DISCHARGE CONSENTS,MINE WATER TREATMENT SCHEMES,ENERGY&UTILITIES-WATER,SEPA,0000223562,561.00
DEPARTMENT OF ENERGY AND CLIMATE CHANGE,THE COAL AUTHORITY,08/10/2015,M/W DISCHARGE CONSENTS,MINE WATER TREATMENT SCHEMES,ENERGY&UTILITIES-WATER,SEPA,0000223563,187.00
DEPARTMENT OF ENERGY AND CLIMATE CHANGE,THE COAL AUTHORITY,08/10/2015,M/W DISCHARGE CONSENTS,MINE WATER TREATMENT SCHEMES,ENERGY&UTILITIES-WATER,SEPA,0000223564,187.00
DEPARTMENT OF ENERGY AND CLIMATE CHANGE,THE COAL AUTHORITY,08/10/2015,M/W DISCHARGE CONSENTS,MINE WATER TREATMENT SCHEMES,ENERGY&UTILITIES-WATER,SEPA,0000223565,187.00
DEPARTMENT OF ENERGY AND CLIMATE CHANGE,THE COAL AUTHORITY,16/10/2015,M/W DISCHARGE CONSENTS,MINE WATER TREATMENT SCHEMES,ENERGY&UTILITIES-WATER,WORKS LICENCE FOR TEMPORA,0000223610,300.00
DEPARTMENT OF ENERGY AND CLIMATE CHANGE,THE COAL AUTHORITY,08/10/2015,M/W DISCHARGE CONSENTS,MINE WATER TREATMENT SCHEMES,ENERGY&UTILITIES-WATER,COMPANY BARCLAYCARD,0000223659,1809.50
DEPARTMENT OF ENERGY AND CLIMATE CHANGE,THE COAL AUTHORITY,30/09/2015,M/W LAND AGENTS (AQUISITIONS),MINE WATER TREATMENT SCHEMES,FACILITIES-BUILDING MANAGEMENT,REIMBURSE LAND AGENTS FEE,0000223205,679.50
DEPARTMENT OF ENERGY AND CLIMATE CHANGE,THE COAL AUTHORITY,12/10/2015,M/W LAND AGENTS (AQUISITIONS),MINE WATER TREATMENT SCHEMES,PROF SER-OPERATIONAL SERVICES,PROFESSIONAL FEES RE NIDD,0000223299,600.00
DEPARTMENT OF ENERGY AND CLIMATE CHANGE,THE COAL AUTHORITY,30/09/2015,M/W LAND AGENTS (AQUISITIONS),MINE WATER TREATMENT SCHEMES,PROF SER TECH-ENGINEERING SER,JMC ENGINEERING (UK) LTD,0000223317,939.80
DEPARTMENT OF ENERGY AND CLIMATE CHANGE,THE COAL AUTHORITY,30/09/2015,M/W LAND AGENTS (AQUISITIONS),MINE WATER TREATMENT SCHEMES,PROF SER TECH-ENGINEERING SER,MARK N CAREY LIMITED,0000223555,65.00
DEPARTMENT OF ENERGY AND CLIMATE CHANGE,THE COAL AUTHORITY,30/10/2015,M/W LANDSCAPING,MINE WATER TREATMENT SCHEMES,CONSTRUCTION-MAIN CONTRACTORS,SEVERN TRENT WATER,0000223836,58.18
DEPARTMENT OF ENERGY AND CLIMATE CHANGE,THE COAL AUTHORITY,30/10/2015,M/W LANDSCAPING,MINE WATER TREATMENT SCHEMES,CONSTRUCTION-MAIN CONTRACTORS,SEVERN TRENT WATER,0000223836,1052.03
DEPARTMENT OF ENERGY AND CLIMATE CHANGE,THE COAL AUTHORITY,30/10/2015,M/W LANDSCAPING,MINE WATER TREATMENT SCHEMES,CONSTRUCTION-MAIN CONTRACTORS,SEVERN TRENT WATER,0000223836,459.40
DEPARTMENT OF ENERGY AND CLIMATE CHANGE,THE COAL AUTHORITY,30/10/2015,M/W LANDSCAPING,MINE WATER TREATMENT SCHEMES,CONSTRUCTION-MAIN CONTRACTORS,SEVERN TRENT WATER,0000223836,1033.65
DEPARTMENT OF ENERGY AND CLIMATE CHANGE,THE COAL AUTHORITY,30/10/2015,M/W LANDSCAPING,MINE WATER TREATMENT SCHEMES,CONSTRUCTION-MAIN CONTRACTORS,SEVERN TRENT WATER,0000223836,516.83
DEPARTMENT OF ENERGY AND CLIMATE CHANGE,THE COAL AUTHORITY,30/10/2015,M/W LANDSCAPING,MINE WATER TREATMENT SCHEMES,CONSTRUCTION-MAIN CONTRACTORS,SEVERN TRENT WATER,0000223836,358.91
DEPARTMENT OF ENERGY AND CLIMATE CHANGE,THE COAL AUTHORITY,30/10/2015,M/W LANDSCAPING,MINE WATER TREATMENT SCHEMES,CONSTRUCTION-MAIN CONTRACTORS,SEVERN TRENT WATER,0000223836,718.96
DEPARTMENT OF ENERGY AND CLIMATE CHANGE,THE COAL AUTHORITY,30/10/2015,M/W LANDSCAPING,MINE WATER TREATMENT SCHEMES,CONSTRUCTION-MAIN CONTRACTORS,SEVERN TRENT WATER,0000223836,574.25
DEPARTMENT OF ENERGY AND CLIMATE CHANGE,THE COAL AUTHORITY,30/10/2015,M/W LANDSCAPING,MINE WATER TREATMENT SCHEMES,CONSTRUCTION-MAIN CONTRACTORS,SEVERN TRENT WATER,0000223836,2210.86
DEPARTMENT OF ENERGY AND CLIMATE CHANGE,THE COAL AUTHORITY,30/10/2015,M/W LANDSCAPING,MINE WATER TREATMENT SCHEMES,CONSTRUCTION-MAIN CONTRACTORS,SEVERN TRENT WATER,0000223836,1052.03
DEPARTMENT OF ENERGY AND CLIMATE CHANGE,THE COAL AUTHORITY,30/10/2015,M/W LANDSCAPING,MINE WATER TREATMENT SCHEMES,CONSTRUCTION-MAIN CONTRACTORS,SEVERN TRENT WATER,0000223836,841.85
DEPARTMENT OF ENERGY AND CLIMATE CHANGE,THE COAL AUTHORITY,30/10/2015,M/W LANDSCAPING,MINE WATER TREATMENT SCHEMES,CONSTRUCTION-MAIN CONTRACTORS,SEVERN TRENT WATER,0000223836,854.48
DEPARTMENT OF ENERGY AND CLIMATE CHANGE,THE COAL AUTHORITY,30/10/2015,M/W LANDSCAPING,MINE WATER TREATMENT SCHEMES,CONSTRUCTION-MAIN CONTRACTORS,SEVERN TRENT WATER,0000223836,413.46
DEPARTMENT OF ENERGY AND CLIMATE CHANGE,THE COAL AUTHORITY,30/10/2015,M/W LANDSCAPING,MINE WATER TREATMENT SCHEMES,CONSTRUCTION-MAIN CONTRACTORS,SEVERN TRENT WATER,0000223836,826.92
DEPARTMENT OF ENERGY AND CLIMATE CHANGE,THE COAL AUTHORITY,30/10/2015,M/W LANDSCAPING,MINE WATER TREATMENT SCHEMES,CONSTRUCTION-MAIN CONTRACTORS,SEVERN TRENT WATER,0000223836,206.73
DEPARTMENT OF ENERGY AND CLIMATE CHANGE,THE COAL AUTHORITY,30/10/2015,M/W LANDSCAPING,MINE WATER TREATMENT SCHEMES,CONSTRUCTION-MAIN CONTRACTORS,SEVERN TRENT WATER,0000223836,359.48
DEPARTMENT OF ENERGY AND CLIMATE CHANGE,THE COAL AUTHORITY,30/10/2015,M/W LANDSCAPING,MINE WATER TREATMENT SCHEMES,CONSTRUCTION-MAIN CONTRACTORS,SEVERN TRENT WATER,0000223836,717.81
DEPARTMENT OF ENERGY AND CLIMATE CHANGE,THE COAL AUTHORITY,30/10/2015,M/W LANDSCAPING,MINE WATER TREATMENT SCHEMES,CONSTRUCTION-MAIN CONTRACTORS,SEVERN TRENT WATER,0000223836,1378.20
DEPARTMENT OF ENERGY AND CLIMATE CHANGE,THE COAL AUTHORITY,30/10/2015,M/W LANDSCAPING,MINE WATER TREATMENT SCHEMES,CONSTRUCTION-MAIN CONTRACTORS,SEVERN TRENT WATER,0000223836,206.73
DEPARTMENT OF ENERGY AND CLIMATE CHANGE,THE COAL AUTHORITY,30/10/2015,M/W LANDSCAPING,MINE WATER TREATMENT SCHEMES,CONSTRUCTION-MAIN CONTRACTORS,SEVERN TRENT WATER,0000223836,1435.63
DEPARTMENT OF ENERGY AND CLIMATE CHANGE,THE COAL AUTHORITY,30/10/2015,M/W LANDSCAPING,MINE WATER TREATMENT SCHEMES,CONSTRUCTION-MAIN CONTRACTORS,SEVERN TRENT WATER,0000223836,583.44
DEPARTMENT OF ENERGY AND CLIMATE CHANGE,THE COAL AUTHORITY,30/10/2015,M/W LANDSCAPING,MINE WATER TREATMENT SCHEMES,CONSTRUCTION-MAIN CONTRACTORS,SEVERN TRENT WATER,0000223836,2105.20
DEPARTMENT OF ENERGY AND CLIMATE CHANGE,THE COAL AUTHORITY,30/10/2015,M/W LANDSCAPING,MINE WATER TREATMENT SCHEMES,CONSTRUCTION-MAIN CONTRACTORS,SEVERN TRENT WATER,0000223836,620.19
DEPARTMENT OF ENERGY AND CLIMATE CHANGE,THE COAL AUTHORITY,30/10/2015,M/W LANDSCAPING,MINE WATER TREATMENT SCHEMES,CONSTRUCTION-MAIN CONTRACTORS,SEVERN TRENT WATER,0000223836,1142.76
DEPARTMENT OF ENERGY AND CLIMATE CHANGE,THE COAL AUTHORITY,30/10/2015,M/W LANDSCAPING,MINE WATER TREATMENT SCHEMES,CONSTRUCTION-MAIN CONTRACTORS,SEVERN TRENT WATER,0000223836,229.70
DEPARTMENT OF ENERGY AND CLIMATE CHANGE,THE COAL AUTHORITY,30/10/2015,M/W LANDSCAPING,MINE WATER TREATMENT SCHEMES,CONSTRUCTION-MAIN CONTRACTORS,SEVERN TRENT WATER,0000223836,344.55
DEPARTMENT OF ENERGY AND CLIMATE CHANGE,THE COAL AUTHORITY,30/10/2015,M/W LANDSCAPING,MINE WATER TREATMENT SCHEMES,CONSTRUCTION-MAIN CONTRACTORS,SEVERN TRENT WATER,0000223836,89.64
DEPARTMENT OF ENERGY AND CLIMATE CHANGE,THE COAL AUTHORITY,30/09/2015,M/W LANDSCAPING SUPERVISION,MINE WATER TREATMENT SCHEMES,PROF SER TECH-ENGINEERING SER,JMC ENGINEERING (UK) LTD,0000223316,222.00
DEPARTMENT OF ENERGY AND CLIMATE CHANGE,THE COAL AUTHORITY,26/07/2015,M/W NEW SCHEME - CONSULTANCY,MINE WATER TREATMENT SCHEMES,CONSTRUCTION-CNSTRN SER PROVDR,J N BENTLEY LIMITED,0000222302,3537.87
DEPARTMENT OF ENERGY AND CLIMATE CHANGE,THE COAL AUTHORITY,12/10/2015,M/W NEW SCHEME - CONSULTANCY,MINE WATER TREATMENT SCHEMES,CONSTRUCTION-CNSTRN SER PROVDR,J N BENTLEY LIMITED,0000223450,4322.15
DEPARTMENT OF ENERGY AND CLIMATE CHANGE,THE COAL AUTHORITY,01/09/2015,M/W POWER COSTS,MINE WATER TREATMENT SCHEMES,ENERGY&UTILITIES-ELECTRICITY,NATIONAL COAL MINING MUSE,0000222909,11515.48
DEPARTMENT OF ENERGY AND CLIMATE CHANGE,THE COAL AUTHORITY,05/10/2015,M/W POWER COSTS,MINE WATER TREATMENT SCHEMES,ENERGY&UTILITIES-ELECTRICITY,EDF ENERGY,0000223436,1166.56
DEPARTMENT OF ENERGY AND CLIMATE CHANGE,THE COAL AUTHORITY,05/10/2015,M/W POWER COSTS,MINE WATER TREATMENT SCHEMES,ENERGY&UTILITIES-ELECTRICITY,EDF ENERGY,0000223436,3903.99
DEPARTMENT OF ENERGY AND CLIMATE CHANGE,THE COAL AUTHORITY,05/10/2015,M/W POWER COSTS,MINE WATER TREATMENT SCHEMES,ENERGY&UTILITIES-ELECTRICITY,EDF ENERGY,0000223436,3987.51
DEPARTMENT OF ENERGY AND CLIMATE CHANGE,THE COAL AUTHORITY,05/10/2015,M/W POWER COSTS,MINE WATER TREATMENT SCHEMES,ENERGY&UTILITIES-ELECTRICITY,EDF ENERGY,0000223436,8671.89
DEPARTMENT OF ENERGY AND CLIMATE CHANGE,THE COAL AUTHORITY,05/10/2015,M/W POWER COSTS,MINE WATER TREATMENT SCHEMES,ENERGY&UTILITIES-ELECTRICITY,EDF ENERGY,0000223436,3268.71
DEPARTMENT OF ENERGY AND CLIMATE CHANGE,THE COAL AUTHORITY,05/10/2015,M/W POWER COSTS,MINE WATER TREATMENT SCHEMES,ENERGY&UTILITIES-ELECTRICITY,EDF ENERGY,0000223436,14736.33
DEPARTMENT OF ENERGY AND CLIMATE CHANGE,THE COAL AUTHORITY,05/10/2015,M/W POWER COSTS,MINE WATER TREATMENT SCHEMES,ENERGY&UTILITIES-ELECTRICITY,EDF ENERGY,0000223436,6117.85
DEPARTMENT OF ENERGY AND CLIMATE CHANGE,THE COAL AUTHORITY,05/10/2015,M/W POWER COSTS,MINE WATER TREATMENT SCHEMES,ENERGY&UTILITIES-ELECTRICITY,EDF ENERGY,0000223436,4877.84
DEPARTMENT OF ENERGY AND CLIMATE CHANGE,THE COAL AUTHORITY,05/10/2015,M/W POWER COSTS,MINE WATER TREATMENT SCHEMES,ENERGY&UTILITIES-ELECTRICITY,EDF ENERGY,0000223436,7962.87
DEPARTMENT OF ENERGY AND CLIMATE CHANGE,THE COAL AUTHORITY,05/10/2015,M/W POWER COSTS,MINE WATER TREATMENT SCHEMES,ENERGY&UTILITIES-ELECTRICITY,EDF ENERGY,0000223436,8191.84
DEPARTMENT OF ENERGY AND CLIMATE CHANGE,THE COAL AUTHORITY,05/10/2015,M/W POWER COSTS,MINE WATER TREATMENT SCHEMES,ENERGY&UTILITIES-ELECTRICITY,EDF ENERGY,0000223436,14279.67
DEPARTMENT OF ENERGY AND CLIMATE CHANGE,THE COAL AUTHORITY,05/10/2015,M/W POWER COSTS,MINE WATER TREATMENT SCHEMES,ENERGY&UTILITIES-ELECTRICITY,EDF ENERGY,0000223436,693.95
DEPARTMENT OF ENERGY AND CLIMATE CHANGE,THE COAL AUTHORITY,05/10/2015,M/W POWER COSTS,MINE WATER TREATMENT SCHEMES,ENERGY&UTILITIES-ELECTRICITY,EDF ENERGY,0000223436,10086.56
DEPARTMENT OF ENERGY AND CLIMATE CHANGE,THE COAL AUTHORITY,05/10/2015,M/W POWER COSTS,MINE WATER TREATMENT SCHEMES,ENERGY&UTILITIES-ELECTRICITY,EDF ENERGY,0000223436,4384.70
DEPARTMENT OF ENERGY AND CLIMATE CHANGE,THE COAL AUTHORITY,05/10/2015,M/W POWER COSTS,MINE WATER TREATMENT SCHEMES,ENERGY&UTILITIES-ELECTRICITY,EDF ENERGY,0000223436,12811.92
DEPARTMENT OF ENERGY AND CLIMATE CHANGE,THE COAL AUTHORITY,05/10/2015,M/W POWER COSTS,MINE WATER TREATMENT SCHEMES,ENERGY&UTILITIES-ELECTRICITY,EDF ENERGY,0000223436,19040.23
DEPARTMENT OF ENERGY AND CLIMATE CHANGE,THE COAL AUTHORITY,01/10/2015,M/W POWER COSTS,MINE WATER TREATMENT SCHEMES,ENERGY&UTILITIES-ELECTRICITY,EDF ENERGY CUSTOMERS PLC,0000223437,9399.02
DEPARTMENT OF ENERGY AND CLIMATE CHANGE,THE COAL AUTHORITY,01/10/2015,M/W POWER COSTS,MINE WATER TREATMENT SCHEMES,ENERGY&UTILITIES-ELECTRICITY,EDF ENERGY CUSTOMERS PLC,0000223438,8102.43
DEPARTMENT OF ENERGY AND CLIMATE CHANGE,THE COAL AUTHORITY,02/10/2015,M/W POWER COSTS,MINE WATER TREATMENT SCHEMES,ENERGY&UTILITIES-ELECTRICITY,BRITISH GAS BUSINESS,0000223440,303.07
DEPARTMENT OF ENERGY AND CLIMATE CHANGE,THE COAL AUTHORITY,02/10/2015,M/W POWER COSTS,MINE WATER TREATMENT SCHEMES,ENERGY&UTILITIES-ELECTRICITY,BRITISH GAS BUSINESS,0000223441,605.65
DEPARTMENT OF ENERGY AND CLIMATE CHANGE,THE COAL AUTHORITY,06/10/2015,M/W POWER COSTS,MINE WATER TREATMENT SCHEMES,ENERGY&UTILITIES-ELECTRICITY,BRITISH GAS BUSINESS,0000223442,30.25
DEPARTMENT OF ENERGY AND CLIMATE CHANGE,THE COAL AUTHORITY,12/10/2015,M/W POWER COSTS,MINE WATER TREATMENT SCHEMES,ENERGY&UTILITIES-ELECTRICITY,BRITISH GAS BUSINESS,0000223500,390.13
DEPARTMENT OF ENERGY AND CLIMATE CHANGE,THE COAL AUTHORITY,12/10/2015,M/W POWER COSTS,MINE WATER TREATMENT SCHEMES,ENERGY&UTILITIES-ELECTRICITY,BRITISH GAS BUSINESS,0000223500,735.20
DEPARTMENT OF ENERGY AND CLIMATE CHANGE,THE COAL AUTHORITY,12/10/2015,M/W POWER COSTS,MINE WATER TREATMENT SCHEMES,ENERGY&UTILITIES-ELECTRICITY,BRITISH GAS BUSINESS,0000223500,2216.13
DEPARTMENT OF ENERGY AND CLIMATE CHANGE,THE COAL AUTHORITY,12/10/2015,M/W POWER COSTS,MINE WATER TREATMENT SCHEMES,ENERGY&UTILITIES-ELECTRICITY,BRITISH GAS BUSINESS,0000223500,1587.23
DEPARTMENT OF ENERGY AND CLIMATE CHANGE,THE COAL AUTHORITY,12/10/2015,M/W POWER COSTS,MINE WATER TREATMENT SCHEMES,ENERGY&UTILITIES-ELECTRICITY,BRITISH GAS BUSINESS,0000223500,2430.68
DEPARTMENT OF ENERGY AND CLIMATE CHANGE,THE COAL AUTHORITY,12/10/2015,M/W POWER COSTS,MINE WATER TREATMENT SCHEMES,ENERGY&UTILITIES-ELECTRICITY,BRITISH GAS BUSINESS,0000223500,1098.07
DEPARTMENT OF ENERGY AND CLIMATE CHANGE,THE COAL AUTHORITY,12/10/2015,M/W POWER COSTS,MINE WATER TREATMENT SCHEMES,ENERGY&UTILITIES-ELECTRICITY,BRITISH GAS BUSINESS,0000223500,230.71
DEPARTMENT OF ENERGY AND CLIMATE CHANGE,THE COAL AUTHORITY,12/10/2015,M/W POWER COSTS,MINE WATER TREATMENT SCHEMES,ENERGY&UTILITIES-ELECTRICITY,BRITISH GAS BUSINESS,0000223500,8.52
DEPARTMENT OF ENERGY AND CLIMATE CHANGE,THE COAL AUTHORITY,12/10/2015,M/W POWER COSTS,MINE WATER TREATMENT SCHEMES,ENERGY&UTILITIES-ELECTRICITY,BRITISH GAS BUSINESS,0000223500,7174.81
DEPARTMENT OF ENERGY AND CLIMATE CHANGE,THE COAL AUTHORITY,12/10/2015,M/W POWER COSTS,MINE WATER TREATMENT SCHEMES,ENERGY&UTILITIES-ELECTRICITY,BRITISH GAS BUSINESS,0000223500,900.71
DEPARTMENT OF ENERGY AND CLIMATE CHANGE,THE COAL AUTHORITY,12/10/2015,M/W POWER COSTS,MINE WATER TREATMENT SCHEMES,ENERGY&UTILITIES-ELECTRICITY,BRITISH GAS BUSINESS,0000223500,688.71
DEPARTMENT OF ENERGY AND CLIMATE CHANGE,THE COAL AUTHORITY,12/10/2015,M/W POWER COSTS,MINE WATER TREATMENT SCHEMES,ENERGY&UTILITIES-ELECTRICITY,BRITISH GAS BUSINESS,0000223500,2048.05
DEPARTMENT OF ENERGY AND CLIMATE CHANGE,THE COAL AUTHORITY,12/10/2015,M/W POWER COSTS,MINE WATER TREATMENT SCHEMES,ENERGY&UTILITIES-ELECTRICITY,BRITISH GAS BUSINESS,0000223500,2045.26
DEPARTMENT OF ENERGY AND CLIMATE CHANGE,THE COAL AUTHORITY,12/10/2015,M/W POWER COSTS,MINE WATER TREATMENT SCHEMES,ENERGY&UTILITIES-ELECTRICITY,BRITISH GAS BUSINESS,0000223500,612.09
DEPARTMENT OF ENERGY AND CLIMATE CHANGE,THE COAL AUTHORITY,12/10/2015,M/W POWER COSTS,MINE WATER TREATMENT SCHEMES,ENERGY&UTILITIES-ELECTRICITY,BRITISH GAS BUSINESS,0000223500,357.39
DEPARTMENT OF ENERGY AND CLIMATE CHANGE,THE COAL AUTHORITY,12/10/2015,M/W POWER COSTS,MINE WATER TREATMENT SCHEMES,ENERGY&UTILITIES-ELECTRICITY,BRITISH GAS BUSINESS,0000223500,1439.74
DEPARTMENT OF ENERGY AND CLIMATE CHANGE,THE COAL AUTHORITY,12/10/2015,M/W POWER COSTS,MINE WATER TREATMENT SCHEMES,ENERGY&UTILITIES-ELECTRICITY,BRITISH GAS BUSINESS,0000223500,798.06
DEPARTMENT OF ENERGY AND CLIMATE CHANGE,THE COAL AUTHORITY,12/10/2015,M/W POWER COSTS,MINE WATER TREATMENT SCHEMES,ENERGY&UTILITIES-ELECTRICITY,BRITISH GAS BUSINESS,0000223500,1443.87
DEPARTMENT OF ENERGY AND CLIMATE CHANGE,THE COAL AUTHORITY,12/10/2015,M/W POWER COSTS,MINE WATER TREATMENT SCHEMES,ENERGY&UTILITIES-ELECTRICITY,BRITISH GAS BUSINESS,0000223500,44.27
DEPARTMENT OF ENERGY AND CLIMATE CHANGE,THE COAL AUTHORITY,12/10/2015,M/W POWER COSTS,MINE WATER TREATMENT SCHEMES,ENERGY&UTILITIES-ELECTRICITY,BRITISH GAS BUSINESS,0000223500,360.06
DEPARTMENT OF ENERGY AND CLIMATE CHANGE,THE COAL AUTHORITY,12/10/2015,M/W POWER COSTS,MINE WATER TREATMENT SCHEMES,ENERGY&UTILITIES-ELECTRICITY,BRITISH GAS BUSINESS,0000223500,698.05
DEPARTMENT OF ENERGY AND CLIMATE CHANGE,THE COAL AUTHORITY,12/10/2015,M/W POWER COSTS,MINE WATER TREATMENT SCHEMES,ENERGY&UTILITIES-ELECTRICITY,BRITISH GAS BUSINESS,0000223500,734.83
DEPARTMENT OF ENERGY AND CLIMATE CHANGE,THE COAL AUTHORITY,12/10/2015,M/W POWER COSTS,MINE WATER TREATMENT SCHEMES,ENERGY&UTILITIES-ELECTRICITY,BRITISH GAS BUSINESS,0000223504,575.29
DEPARTMENT OF ENERGY AND CLIMATE CHANGE,THE COAL AUTHORITY,12/10/2015,M/W POWER COSTS,MINE WATER TREATMENT SCHEMES,ENERGY&UTILITIES-ELECTRICITY,BRITISH GAS BUSINESS,0000223504,61.96
DEPARTMENT OF ENERGY AND CLIMATE CHANGE,THE COAL AUTHORITY,01/10/2014,M/W POWER COSTS,MINE WATER TREATMENT SCHEMES,ENERGY&UTILITIES-ELECTRICITY,BRITISH GAS BUSINESS,0000223872,56.77
DEPARTMENT OF ENERGY AND CLIMATE CHANGE,THE COAL AUTHORITY,14/12/2014,M/W POWER COSTS,MINE WATER TREATMENT SCHEMES,ENERGY&UTILITIES-ELECTRICITY,BRITISH GAS BUSINESS,0000223873,64.32
DEPARTMENT OF ENERGY AND CLIMATE CHANGE,THE COAL AUTHORITY,06/01/2015,M/W POWER COSTS,MINE WATER TREATMENT SCHEMES,ENERGY&UTILITIES-ELECTRICITY,BRITISH GAS BUSINESS,0000223874,345.03
DEPARTMENT OF ENERGY AND CLIMATE CHANGE,THE COAL AUTHORITY,03/02/2015,M/W POWER COSTS,MINE WATER TREATMENT SCHEMES,ENERGY&UTILITIES-ELECTRICITY,BRITISH GAS BUSINESS,0000223875,381.34
DEPARTMENT OF ENERGY AND CLIMATE CHANGE,THE COAL AUTHORITY,04/03/2015,M/W POWER COSTS,MINE WATER TREATMENT SCHEMES,ENERGY&UTILITIES-ELECTRICITY,BRITISH GAS BUSINESS,0000223876,380.55
DEPARTMENT OF ENERGY AND CLIMATE CHANGE,THE COAL AUTHORITY,30/10/2015,M/W PUMPING TESTS,MINE WATER TREATMENT SCHEMES,CONSTRUCTION-MAIN CONTRACTORS,SEVERN TRENT WATER,0000223836,142.85
DEPARTMENT OF ENERGY AND CLIMATE CHANGE,THE COAL AUTHORITY,30/10/2015,M/W PUMPING TESTS,MINE WATER TREATMENT SCHEMES,CONSTRUCTION-MAIN CONTRACTORS,SEVERN TRENT WATER,0000223836,45357.94
DEPARTMENT OF ENERGY AND CLIMATE CHANGE,THE COAL AUTHORITY,06/10/2015,M/W REMEDIATION,MINE WATER TREATMENT SCHEMES,CONSTRUCTION-MAIN CONTRACTORS,BALFOUR BEATTY CIVIL ENG,0000223333,647.05
DEPARTMENT OF ENERGY AND CLIMATE CHANGE,THE COAL AUTHORITY,12/10/2015,M/W REMEDIATION,MINE WATER TREATMENT SCHEMES,CONSTRUCTION-CNSTRN SER PROVDR,CORNERSTONE  PROJECTS LTD,0000223398,58.00
DEPARTMENT OF ENERGY AND CLIMATE CHANGE,THE COAL AUTHORITY,13/10/2015,M/W REMEDIATION,MINE WATER TREATMENT SCHEMES,CONSTRUCTION-MAIN CONTRACTORS,BALFOUR BEATTY CIVIL ENG,0000223478,10053.77
DEPARTMENT OF ENERGY AND CLIMATE CHANGE,THE COAL AUTHORITY,14/10/2015,M/W REMEDIATION,MINE WATER TREATMENT SCHEMES,CONSTRUCTION-MAIN CONTRACTORS,NAL PLANT LIMITED,0000223570,38625.00
DEPARTMENT OF ENERGY AND CLIMATE CHANGE,THE COAL AUTHORITY,28/10/2015,M/W REMEDIATION,MINE WATER TREATMENT SCHEMES,CONSTRUCTION-CNSTRN SER PROVDR,CORNERSTONE  PROJECTS LTD,0000223921,58.00
DEPARTMENT OF ENERGY AND CLIMATE CHANGE,THE COAL AUTHORITY,30/10/2015,M/W REMEDIATION,MINE WATER TREATMENT SCHEMES,CONSTRUCTION-MAIN CONTRACTORS,SEVERN TRENT WATER,0000223836,130.60
DEPARTMENT OF ENERGY AND CLIMATE CHANGE,THE COAL AUTHORITY,30/10/2015,M/W REMEDIATION,MINE WATER TREATMENT SCHEMES,CONSTRUCTION-MAIN CONTRACTORS,SEVERN TRENT WATER,0000223836,104.39
DEPARTMENT OF ENERGY AND CLIMATE CHANGE,THE COAL AUTHORITY,30/10/2015,M/W REMEDIATION,MINE WATER TREATMENT SCHEMES,CONSTRUCTION-MAIN CONTRACTORS,SEVERN TRENT WATER,0000223836,71.28
DEPARTMENT OF ENERGY AND CLIMATE CHANGE,THE COAL AUTHORITY,30/10/2015,M/W REMEDIATION,MINE WATER TREATMENT SCHEMES,CONSTRUCTION-MAIN CONTRACTORS,SEVERN TRENT WATER,0000223836,299.37
DEPARTMENT OF ENERGY AND CLIMATE CHANGE,THE COAL AUTHORITY,30/10/2015,M/W REMEDIATION,MINE WATER TREATMENT SCHEMES,CONSTRUCTION-MAIN CONTRACTORS,SEVERN TRENT WATER,0000223836,22.07
DEPARTMENT OF ENERGY AND CLIMATE CHANGE,THE COAL AUTHORITY,30/10/2015,M/W REMEDIATION,MINE WATER TREATMENT SCHEMES,CONSTRUCTION-MAIN CONTRACTORS,SEVERN TRENT WATER,0000223836,33.11
DEPARTMENT OF ENERGY AND CLIMATE CHANGE,THE COAL AUTHORITY,30/10/2015,M/W REMEDIATION,MINE WATER TREATMENT SCHEMES,CONSTRUCTION-MAIN CONTRACTORS,SEVERN TRENT WATER,0000223836,71.28
DEPARTMENT OF ENERGY AND CLIMATE CHANGE,THE COAL AUTHORITY,30/10/2015,M/W REMEDIATION,MINE WATER TREATMENT SCHEMES,CONSTRUCTION-MAIN CONTRACTORS,SEVERN TRENT WATER,0000223836,22.07
DEPARTMENT OF ENERGY AND CLIMATE CHANGE,THE COAL AUTHORITY,30/10/2015,M/W REMEDIATION,MINE WATER TREATMENT SCHEMES,CONSTRUCTION-MAIN CONTRACTORS,SEVERN TRENT WATER,0000223836,60.70
DEPARTMENT OF ENERGY AND CLIMATE CHANGE,THE COAL AUTHORITY,30/10/2015,M/W REMEDIATION,MINE WATER TREATMENT SCHEMES,CONSTRUCTION-MAIN CONTRACTORS,SEVERN TRENT WATER,0000223836,28.57
DEPARTMENT OF ENERGY AND CLIMATE CHANGE,THE COAL AUTHORITY,30/10/2015,M/W REMEDIATION,MINE WATER TREATMENT SCHEMES,CONSTRUCTION-MAIN CONTRACTORS,SEVERN TRENT WATER,0000223836,220.73
DEPARTMENT OF ENERGY AND CLIMATE CHANGE,THE COAL AUTHORITY,30/10/2015,M/W REMEDIATION,MINE WATER TREATMENT SCHEMES,CONSTRUCTION-MAIN CONTRACTORS,SEVERN TRENT WATER,0000223836,386.28
DEPARTMENT OF ENERGY AND CLIMATE CHANGE,THE COAL AUTHORITY,30/10/2015,M/W REMEDIATION,MINE WATER TREATMENT SCHEMES,CONSTRUCTION-MAIN CONTRACTORS,SEVERN TRENT WATER,0000223836,110.36
DEPARTMENT OF ENERGY AND CLIMATE CHANGE,THE COAL AUTHORITY,30/10/2015,M/W REMEDIATION,MINE WATER TREATMENT SCHEMES,CONSTRUCTION-MAIN CONTRACTORS,SEVERN TRENT WATER,0000223836,44.15
DEPARTMENT OF ENERGY AND CLIMATE CHANGE,THE COAL AUTHORITY,30/10/2015,M/W REMEDIATION,MINE WATER TREATMENT SCHEMES,CONSTRUCTION-MAIN CONTRACTORS,SEVERN TRENT WATER,0000223836,71.28
DEPARTMENT OF ENERGY AND CLIMATE CHANGE,THE COAL AUTHORITY,30/10/2015,M/W REMEDIATION,MINE WATER TREATMENT SCHEMES,CONSTRUCTION-MAIN CONTRACTORS,SEVERN TRENT WATER,0000223836,45.71
DEPARTMENT OF ENERGY AND CLIMATE CHANGE,THE COAL AUTHORITY,30/10/2015,M/W REMEDIATION,MINE WATER TREATMENT SCHEMES,CONSTRUCTION-MAIN CONTRACTORS,SEVERN TRENT WATER,0000223836,55.18
DEPARTMENT OF ENERGY AND CLIMATE CHANGE,THE COAL AUTHORITY,30/10/2015,M/W REMEDIATION,MINE WATER TREATMENT SCHEMES,CONSTRUCTION-MAIN CONTRACTORS,SEVERN TRENT WATER,0000223836,44.15
DEPARTMENT OF ENERGY AND CLIMATE CHANGE,THE COAL AUTHORITY,30/10/2015,M/W REMEDIATION,MINE WATER TREATMENT SCHEMES,CONSTRUCTION-MAIN CONTRACTORS,SEVERN TRENT WATER,0000223836,55.18
DEPARTMENT OF ENERGY AND CLIMATE CHANGE,THE COAL AUTHORITY,30/10/2015,M/W REMEDIATION,MINE WATER TREATMENT SCHEMES,CONSTRUCTION-MAIN CONTRACTORS,SEVERN TRENT WATER,0000223836,19.05
DEPARTMENT OF ENERGY AND CLIMATE CHANGE,THE COAL AUTHORITY,30/10/2015,M/W REMEDIATION,MINE WATER TREATMENT SCHEMES,CONSTRUCTION-MAIN CONTRACTORS,SEVERN TRENT WATER,0000223836,286.95
DEPARTMENT OF ENERGY AND CLIMATE CHANGE,THE COAL AUTHORITY,30/10/2015,M/W REMEDIATION,MINE WATER TREATMENT SCHEMES,CONSTRUCTION-MAIN CONTRACTORS,SEVERN TRENT WATER,0000223836,26.67
DEPARTMENT OF ENERGY AND CLIMATE CHANGE,THE COAL AUTHORITY,30/10/2015,M/W REMEDIATION,MINE WATER TREATMENT SCHEMES,CONSTRUCTION-MAIN CONTRACTORS,SEVERN TRENT WATER,0000223836,28.57
DEPARTMENT OF ENERGY AND CLIMATE CHANGE,THE COAL AUTHORITY,30/10/2015,M/W REMEDIATION,MINE WATER TREATMENT SCHEMES,CONSTRUCTION-MAIN CONTRACTORS,SEVERN TRENT WATER,0000223836,34.28
DEPARTMENT OF ENERGY AND CLIMATE CHANGE,THE COAL AUTHORITY,30/10/2015,M/W REMEDIATION,MINE WATER TREATMENT SCHEMES,CONSTRUCTION-MAIN CONTRACTORS,SEVERN TRENT WATER,0000223836,17.14
DEPARTMENT OF ENERGY AND CLIMATE CHANGE,THE COAL AUTHORITY,30/10/2015,M/W REMEDIATION,MINE WATER TREATMENT SCHEMES,CONSTRUCTION-MAIN CONTRACTORS,SEVERN TRENT WATER,0000223836,44.15
DEPARTMENT OF ENERGY AND CLIMATE CHANGE,THE COAL AUTHORITY,30/10/2015,M/W REMEDIATION,MINE WATER TREATMENT SCHEMES,CONSTRUCTION-MAIN CONTRACTORS,SEVERN TRENT WATER,0000223836,198.66
DEPARTMENT OF ENERGY AND CLIMATE CHANGE,THE COAL AUTHORITY,30/10/2015,M/W REMEDIATION,MINE WATER TREATMENT SCHEMES,CONSTRUCTION-MAIN CONTRACTORS,SEVERN TRENT WATER,0000223836,33.11
DEPARTMENT OF ENERGY AND CLIMATE CHANGE,THE COAL AUTHORITY,30/10/2015,M/W REMEDIATION,MINE WATER TREATMENT SCHEMES,CONSTRUCTION-MAIN CONTRACTORS,SEVERN TRENT WATER,0000223836,60.70
DEPARTMENT OF ENERGY AND CLIMATE CHANGE,THE COAL AUTHORITY,30/10/2015,M/W REMEDIATION,MINE WATER TREATMENT SCHEMES,CONSTRUCTION-MAIN CONTRACTORS,SEVERN TRENT WATER,0000223836,151.06
DEPARTMENT OF ENERGY AND CLIMATE CHANGE,THE COAL AUTHORITY,30/10/2015,M/W REMEDIATION,MINE WATER TREATMENT SCHEMES,CONSTRUCTION-MAIN CONTRACTORS,SEVERN TRENT WATER,0000223836,51.50
DEPARTMENT OF ENERGY AND CLIMATE CHANGE,THE COAL AUTHORITY,30/10/2015,M/W REMEDIATION,MINE WATER TREATMENT SCHEMES,CONSTRUCTION-MAIN CONTRACTORS,SEVERN TRENT WATER,0000223836,27.59
DEPARTMENT OF ENERGY AND CLIMATE CHANGE,THE COAL AUTHORITY,30/10/2015,M/W REMEDIATION,MINE WATER TREATMENT SCHEMES,CONSTRUCTION-MAIN CONTRACTORS,SEVERN TRENT WATER,0000223836,38.09
DEPARTMENT OF ENERGY AND CLIMATE CHANGE,THE COAL AUTHORITY,30/10/2015,M/W REMEDIATION,MINE WATER TREATMENT SCHEMES,CONSTRUCTION-MAIN CONTRACTORS,SEVERN TRENT WATER,0000223836,16.55
DEPARTMENT OF ENERGY AND CLIMATE CHANGE,THE COAL AUTHORITY,30/10/2015,M/W REMEDIATION,MINE WATER TREATMENT SCHEMES,CONSTRUCTION-MAIN CONTRACTORS,SEVERN TRENT WATER,0000223836,4826.49
DEPARTMENT OF ENERGY AND CLIMATE CHANGE,THE COAL AUTHORITY,30/10/2015,M/W REMEDIATION,MINE WATER TREATMENT SCHEMES,CONSTRUCTION-MAIN CONTRACTORS,SEVERN TRENT WATER,0000223836,110.50
DEPARTMENT OF ENERGY AND CLIMATE CHANGE,THE COAL AUTHORITY,15/10/2015,M/W RENTS PAYABLE,MINE WATER TREATMENT SCHEMES,FACILITIES-BUILDING MANAGEMENT,RENT FOR STANLEY PIPER BO,0000223494,100.00
DEPARTMENT OF ENERGY AND CLIMATE CHANGE,THE COAL AUTHORITY,15/10/2015,M/W RENTS PAYABLE,MINE WATER TREATMENT SCHEMES,FACILITIES-BUILDING MANAGEMENT,RENT FOR OAKWOOD GRANGE P,0000223495,100.00
DEPARTMENT OF ENERGY AND CLIMATE CHANGE,THE COAL AUTHORITY,15/10/2015,M/W RENTS PAYABLE,MINE WATER TREATMENT SCHEMES,FACILITIES-BUILDING MANAGEMENT,RENT FOR NEWTON CAP BOREH,0000223496,400.00
DEPARTMENT OF ENERGY AND CLIMATE CHANGE,THE COAL AUTHORITY,15/10/2015,M/W RENTS PAYABLE,MINE WATER TREATMENT SCHEMES,FACILITIES-BUILDING MANAGEMENT,RENT FOR LAND AT SHEEPHOU,0000223497,15000.00
DEPARTMENT OF ENERGY AND CLIMATE CHANGE,THE COAL AUTHORITY,07/10/2015,M/W RENTS PAYABLE,MINE WATER TREATMENT SCHEMES,FACILITIES-BUILDING MANAGEMENT,BALGONIE ESTATES LTD,0000223512,150.00
DEPARTMENT OF ENERGY AND CLIMATE CHANGE,THE COAL AUTHORITY,20/10/2015,M/W RENTS PAYABLE,MINE WATER TREATMENT SCHEMES,FACILITIES-BUILDING MANAGEMENT,RENT ARREARS FOR HIGH MOO,0000223660,149.89
DEPARTMENT OF ENERGY AND CLIMATE CHANGE,THE COAL AUTHORITY,30/10/2015,M/W RENTS PAYABLE,MINE WATER TREATMENT SCHEMES,FACILITIES-BUILDING MANAGEMENT,KING WEST (MARKET HARBROU,0000223752,100.00
DEPARTMENT OF ENERGY AND CLIMATE CHANGE,THE COAL AUTHORITY,15/09/2015,M/W SCOPING/FEASIBILITY/CONCEP,MINE WATER TREATMENT SCHEMES,PROF SER TECH-ENGINEERING SER,ATKINS LIMITED,0000222899,22.50
DEPARTMENT OF ENERGY AND CLIMATE CHANGE,THE COAL AUTHORITY,15/09/2015,M/W SCOPING/FEASIBILITY/CONCEP,MINE WATER TREATMENT SCHEMES,PROF SER TECH-ENGINEERING SER,ATKINS LIMITED,0000222900,667.50
DEPARTMENT OF ENERGY AND CLIMATE CHANGE,THE COAL AUTHORITY,28/09/2015,M/W SCOPING/FEASIBILITY/CONCEP,MINE WATER TREATMENT SCHEMES,PROF SER TECH-ENGINEERING SER,MOUCHEL LTD,0000223187,1979.38
DEPARTMENT OF ENERGY AND CLIMATE CHANGE,THE COAL AUTHORITY,29/09/2015,M/W SCOPING/FEASIBILITY/CONCEP,MINE WATER TREATMENT SCHEMES,PROF SER TECH-ENGINEERING SER,MOUCHEL LTD,0000223247,249.48
DEPARTMENT OF ENERGY AND CLIMATE CHANGE,THE COAL AUTHORITY,26/10/2015,M/W SCOPING/FEASIBILITY/CONCEP,MINE WATER TREATMENT SCHEMES,PROF SER TECH-ENGINEERING SER,ATKINS LIMITED,0000223864,150.00
DEPARTMENT OF ENERGY AND CLIMATE CHANGE,THE COAL AUTHORITY,30/10/2015,M/W SCOPING/FEASIBILITY/CONCEP,MINE WATER TREATMENT SCHEMES,CONSTRUCTION-MAIN CONTRACTORS,SEVERN TRENT WATER,0000223836,9.89
DEPARTMENT OF ENERGY AND CLIMATE CHANGE,THE COAL AUTHORITY,30/10/2015,M/W SLUDGE DISPOSAL,MINE WATER TREATMENT SCHEMES,CONSTRUCTION-MAIN CONTRACTORS,SEVERN TRENT WATER,0000223836,17358.66
DEPARTMENT OF ENERGY AND CLIMATE CHANGE,THE COAL AUTHORITY,30/10/2015,M/W SLUDGE DISPOSAL,MINE WATER TREATMENT SCHEMES,CONSTRUCTION-MAIN CONTRACTORS,SEVERN TRENT WATER,0000223836,7352.36
DEPARTMENT OF ENERGY AND CLIMATE CHANGE,THE COAL AUTHORITY,30/10/2015,M/W SLUDGE DISPOSAL,MINE WATER TREATMENT SCHEMES,CONSTRUCTION-MAIN CONTRACTORS,SEVERN TRENT WATER,0000223836,2958.63
DEPARTMENT OF ENERGY AND CLIMATE CHANGE,THE COAL AUTHORITY,04/10/2015,M/W TELECOMS & TELEMETRY,MINE WATER TREATMENT SCHEMES,ICT-TELECOMS,BRITISH TELECOMMUNICATION,0000223433,69.84
DEPARTMENT OF ENERGY AND CLIMATE CHANGE,THE COAL AUTHORITY,02/10/2015,M/W TELECOMS & TELEMETRY,MINE WATER TREATMENT SCHEMES,ICT-TELECOMS,O2 (UK) LIMITED,0000223552,12.50
DEPARTMENT OF ENERGY AND CLIMATE CHANGE,THE COAL AUTHORITY,02/10/2015,M/W TELECOMS & TELEMETRY,MINE WATER TREATMENT SCHEMES,ENERGY&UTILITIES-WATER,O2 (UK) LIMITED,0000223553,12.50
DEPARTMENT OF ENERGY AND CLIMATE CHANGE,THE COAL AUTHORITY,02/10/2015,M/W TELECOMS & TELEMETRY,MINE WATER TREATMENT SCHEMES,ICT-TELECOMS,O2 (UK) LIMITED,0000223554,12.50
DEPARTMENT OF ENERGY AND CLIMATE CHANGE,THE COAL AUTHORITY,17/10/2015,M/W TELECOMS & TELEMETRY,MINE WATER TREATMENT SCHEMES,ICT-TELECOMS,VODAFONE LIMITED (CORPORA,0000223631,464.12
DEPARTMENT OF ENERGY AND CLIMATE CHANGE,THE COAL AUTHORITY,17/10/2015,M/W TELECOMS & TELEMETRY,MINE WATER TREATMENT SCHEMES,ICT-TELECOMS,WYLESS PLC,0000223734,50.00
DEPARTMENT OF ENERGY AND CLIMATE CHANGE,THE COAL AUTHORITY,13/08/2015,M/W WATER CHARGES,MINE WATER TREATMENT SCHEMES,ENERGY&UTILITIES-WATER,NATIONAL COAL MINING MUSE,0000222998,1357.69
DEPARTMENT OF ENERGY AND CLIMATE CHANGE,THE COAL AUTHORITY,22/10/2015,MILEAGE PAYMENTS,MINE WATER TREATMENT SCHEMES,FUELS/LUBRCNT/GAS-FUELS,STAFF EXPENSES CONTROL,0000223782,264.60
DEPARTMENT OF ENERGY AND CLIMATE CHANGE,THE COAL AUTHORITY,22/10/2015,MILEAGE PAYMENTS,MINE WATER TREATMENT SCHEMES,FUELS/LUBRCNT/GAS-FUELS,STAFF EXPENSES CONTROL,0000223790,9.90
DEPARTMENT OF ENERGY AND CLIMATE CHANGE,THE COAL AUTHORITY,22/10/2015,MILEAGE PAYMENTS,MINE WATER TREATMENT SCHEMES,FUELS/LUBRCNT/GAS-FUELS,STAFF EXPENSES CONTROL,0000223792,9.00
DEPARTMENT OF ENERGY AND CLIMATE CHANGE,THE COAL AUTHORITY,23/10/2015,MILEAGE PAYMENTS,MINE WATER TREATMENT SCHEMES,FUELS/LUBRCNT/GAS-FUELS,STAFF EXPENSES CONTROL,0000223796,298.80
DEPARTMENT OF ENERGY AND CLIMATE CHANGE,THE COAL AUTHORITY,23/10/2015,MILEAGE PAYMENTS,MINE WATER TREATMENT SCHEMES,FUELS/LUBRCNT/GAS-FUELS,STAFF EXPENSES CONTROL,0000223809,54.13
DEPARTMENT OF ENERGY AND CLIMATE CHANGE,THE COAL AUTHORITY,23/10/2015,MILEAGE PAYMENTS,MINE WATER TREATMENT SCHEMES,FUELS/LUBRCNT/GAS-FUELS,STAFF EXPENSES CONTROL,0000223811,223.98
DEPARTMENT OF ENERGY AND CLIMATE CHANGE,THE COAL AUTHORITY,28/08/2015,MNEWTR CARBON REDCTN CMMTMENTS,MINE WATER TREATMENT SCHEMES,PROF SER-ENVIRONMENTAL SRVICES,ENVIRONMENT AGENCY,0000223602,1290.00
DEPARTMENT OF ENERGY AND CLIMATE CHANGE,THE COAL AUTHORITY,30/10/2015,MONITORING & FLOW MEASUREMENT,MINE WATER TREATMENT SCHEMES,CONSTRUCTION-MAIN CONTRACTORS,SEVERN TRENT WATER,0000223836,3838.67
DEPARTMENT OF ENERGY AND CLIMATE CHANGE,THE COAL AUTHORITY,30/10/2015,MONITORING & FLOW MEASUREMENT,MINE WATER TREATMENT SCHEMES,CONSTRUCTION-MAIN CONTRACTORS,SEVERN TRENT WATER,0000223836,59.31
DEPARTMENT OF ENERGY AND CLIMATE CHANGE,THE COAL AUTHORITY,30/10/2015,MONITORING & FLOW MEASUREMENT,MINE WATER TREATMENT SCHEMES,CONSTRUCTION-MAIN CONTRACTORS,SEVERN TRENT WATER,0000223836,165.38
DEPARTMENT OF ENERGY AND CLIMATE CHANGE,THE COAL AUTHORITY,30/10/2015,MONITORING & FLOW MEASUREMENT,MINE WATER TREATMENT SCHEMES,CONSTRUCTION-MAIN CONTRACTORS,SEVERN TRENT WATER,0000223836,1573.45
DEPARTMENT OF ENERGY AND CLIMATE CHANGE,THE COAL AUTHORITY,30/10/2015,MONITORING & FLOW MEASUREMENT,MINE WATER TREATMENT SCHEMES,CONSTRUCTION-MAIN CONTRACTORS,SEVERN TRENT WATER,0000223836,1573.45
DEPARTMENT OF ENERGY AND CLIMATE CHANGE,THE COAL AUTHORITY,08/10/2015,OFFICE MACHINERY PURCHASED,MINE WATER TREATMENT SCHEMES,ENGINEERING GOODS-INDUSTRIAL,COMPANY BARCLAYCARD,0000223753,2.48
DEPARTMENT OF ENERGY AND CLIMATE CHANGE,THE COAL AUTHORITY,08/10/2015,PROFESSIONAL SUBSCRIPTIONS,MINE WATER TREATMENT SCHEMES,PERSONNEL RLTD-STAFF SUBSCRPTN,COMPANY BARCLAYCARD,0000223680,242.88
DEPARTMENT OF ENERGY AND CLIMATE CHANGE,THE COAL AUTHORITY,30/09/2015,PROJECT MANAGEMENT-BOREHOLES,MINE WATER TREATMENT SCHEMES,PROF SER CNSLTNCY-TCHNL CNSLTY,JMC ENGINEERING (UK) LTD,0000223313,1390.75
DEPARTMENT OF ENERGY AND CLIMATE CHANGE,THE COAL AUTHORITY,30/09/2015,PROJECT MANAGEMENT-BOREHOLES,MINE WATER TREATMENT SCHEMES,PROF SER TECH-ENGINEERING SER,JMC ENGINEERING (UK) LTD,0000223319,518.00
DEPARTMENT OF ENERGY AND CLIMATE CHANGE,THE COAL AUTHORITY,27/10/2015,PUBLICATIONS,MINE WATER TREATMENT SCHEMES,OPRTNL GOODS&SERV-DEVLPNG MTRL,DESIGN & PRINT 2 CASE STU,0000223849,696.00
DEPARTMENT OF ENERGY AND CLIMATE CHANGE,THE COAL AUTHORITY,30/10/2015,PUMP OVERHAULS,MINE WATER TREATMENT SCHEMES,CONSTRUCTION-MAIN CONTRACTORS,SEVERN TRENT WATER,0000223836,142.57
DEPARTMENT OF ENERGY AND CLIMATE CHANGE,THE COAL AUTHORITY,14/09/2015,R&D-EXTERNAL COSTS,MINE WATER TREATMENT SCHEMES,PROF SER TECH-FORENSIC/LAB SER,ENVIRONMENTAL SCIENTIFICS,0000222921,640.70
DEPARTMENT OF ENERGY AND CLIMATE CHANGE,THE COAL AUTHORITY,14/09/2015,R&D-EXTERNAL COSTS,MINE WATER TREATMENT SCHEMES,PROF SER TECH-FORENSIC/LAB SER,ENVIRONMENTAL SCIENTIFICS,0000222922,888.36
DEPARTMENT OF ENERGY AND CLIMATE CHANGE,THE COAL AUTHORITY,24/09/2015,R&D-EXTERNAL COSTS,MINE WATER TREATMENT SCHEMES,PROF SER TECH-FORENSIC/LAB SER,ENVIRONMENTAL SCIENTIFICS,0000223182,745.28
DEPARTMENT OF ENERGY AND CLIMATE CHANGE,THE COAL AUTHORITY,08/10/2015,SUBSISTENCE ALLOWANCES,MINE WATER TREATMENT SCHEMES,FACILITIES - FOOD,COMPANY BARCLAYCARD,0000223653,30.24
DEPARTMENT OF ENERGY AND CLIMATE CHANGE,THE COAL AUTHORITY,08/10/2015,SUBSISTENCE ALLOWANCES,MINE WATER TREATMENT SCHEMES,FACILITIES - FOOD,COMPANY BARCLAYCARD,0000223663,12.15
DEPARTMENT OF ENERGY AND CLIMATE CHANGE,THE COAL AUTHORITY,08/10/2015,SUBSISTENCE ALLOWANCES,MINE WATER TREATMENT SCHEMES,FACILITIES - FOOD,COMPANY BARCLAYCARD,0000223667,81.92
DEPARTMENT OF ENERGY AND CLIMATE CHANGE,THE COAL AUTHORITY,08/10/2015,SUBSISTENCE ALLOWANCES,MINE WATER TREATMENT SCHEMES,FACILITIES - FOOD,COMPANY BARCLAYCARD,0000223668,5.99
DEPARTMENT OF ENERGY AND CLIMATE CHANGE,THE COAL AUTHORITY,08/10/2015,SUBSISTENCE ALLOWANCES,MINE WATER TREATMENT SCHEMES,FACILITIES - FOOD,COMPANY BARCLAYCARD,0000223670,7.73
DEPARTMENT OF ENERGY AND CLIMATE CHANGE,THE COAL AUTHORITY,08/10/2015,SUBSISTENCE ALLOWANCES,MINE WATER TREATMENT SCHEMES,FACILITIES - FOOD,COMPANY BARCLAYCARD,0000223680,65.55
DEPARTMENT OF ENERGY AND CLIMATE CHANGE,THE COAL AUTHORITY,08/10/2015,SUBSISTENCE ALLOWANCES,MINE WATER TREATMENT SCHEMES,FACILITIES - FOOD,COMPANY BARCLAYCARD,0000223685,6.64
DEPARTMENT OF ENERGY AND CLIMATE CHANGE,THE COAL AUTHORITY,08/10/2015,SUBSISTENCE ALLOWANCES,MINE WATER TREATMENT SCHEMES,FACILITIES - FOOD,COMPANY BARCLAYCARD,0000223689,55.61
DEPARTMENT OF ENERGY AND CLIMATE CHANGE,THE COAL AUTHORITY,08/10/2015,SUBSISTENCE ALLOWANCES,MINE WATER TREATMENT SCHEMES,FACILITIES - FOOD,COMPANY BARCLAYCARD,0000223692,70.66
DEPARTMENT OF ENERGY AND CLIMATE CHANGE,THE COAL AUTHORITY,08/10/2015,SUBSISTENCE ALLOWANCES,MINE WATER TREATMENT SCHEMES,FACILITIES - FOOD,COMPANY BARCLAYCARD,0000223722,91.46
DEPARTMENT OF ENERGY AND CLIMATE CHANGE,THE COAL AUTHORITY,08/10/2015,SUBSISTENCE ALLOWANCES,MINE WATER TREATMENT SCHEMES,FACILITIES - FOOD,COMPANY BARCLAYCARD,0000223724,6.65
DEPARTMENT OF ENERGY AND CLIMATE CHANGE,THE COAL AUTHORITY,08/10/2015,SUBSISTENCE ALLOWANCES,MINE WATER TREATMENT SCHEMES,FACILITIES - FOOD,COMPANY BARCLAYCARD,0000223729,21.30
DEPARTMENT OF ENERGY AND CLIMATE CHANGE,THE COAL AUTHORITY,08/10/2015,SUBSISTENCE ALLOWANCES,MINE WATER TREATMENT SCHEMES,FACILITIES - FOOD,COMPANY BARCLAYCARD,0000223742,18.45
DEPARTMENT OF ENERGY AND CLIMATE CHANGE,THE COAL AUTHORITY,08/10/2015,SUBSISTENCE ALLOWANCES,MINE WATER TREATMENT SCHEMES,FACILITIES - FOOD,COMPANY BARCLAYCARD,0000223743,58.96
DEPARTMENT OF ENERGY AND CLIMATE CHANGE,THE COAL AUTHORITY,08/10/2015,SUBSISTENCE ALLOWANCES,MINE WATER TREATMENT SCHEMES,FACILITIES - FOOD,COMPANY BARCLAYCARD,0000223744,8.04
DEPARTMENT OF ENERGY AND CLIMATE CHANGE,THE COAL AUTHORITY,08/10/2015,SUBSISTENCE ALLOWANCES,MINE WATER TREATMENT SCHEMES,FACILITIES - FOOD,COMPANY BARCLAYCARD,0000223753,136.36
DEPARTMENT OF ENERGY AND CLIMATE CHANGE,THE COAL AUTHORITY,22/10/2015,SUBSISTENCE ALLOWANCES,MINE WATER TREATMENT SCHEMES,FACILITIES - FOOD,STAFF EXPENSES CONTROL,0000223785,14.48
DEPARTMENT OF ENERGY AND CLIMATE CHANGE,THE COAL AUTHORITY,22/10/2015,SUBSISTENCE ALLOWANCES,MINE WATER TREATMENT SCHEMES,FACILITIES - FOOD,STAFF EXPENSES CONTROL,0000223790,4.70
DEPARTMENT OF ENERGY AND CLIMATE CHANGE,THE COAL AUTHORITY,23/10/2015,SUBSISTENCE ALLOWANCES,MINE WATER TREATMENT SCHEMES,FACILITIES - FOOD,STAFF EXPENSES CONTROL,0000223796,23.16
DEPARTMENT OF ENERGY AND CLIMATE CHANGE,THE COAL AUTHORITY,23/10/2015,SUBSISTENCE ALLOWANCES,MINE WATER TREATMENT SCHEMES,OFFICE SOLUTIONS-REPROGRAPHICS,STAFF EXPENSES CONTROL,0000223811,44.00
DEPARTMENT OF ENERGY AND CLIMATE CHANGE,THE COAL AUTHORITY,21/09/2015,TRAINING AND EDUCATION,MINE WATER TREATMENT SCHEMES,PROF SER LRNG&DEV-STAFF TRNING,SYMMONS MADGE ASSOCIATES,0000223218,172.27
DEPARTMENT OF ENERGY AND CLIMATE CHANGE,THE COAL AUTHORITY,30/10/2015,WATER SAMPLING - OPERATIONAL,MINE WATER TREATMENT SCHEMES,CONSTRUCTION-MAIN CONTRACTORS,SEVERN TRENT WATER,0000223836,29.66
DEPARTMENT OF ENERGY AND CLIMATE CHANGE,THE COAL AUTHORITY,30/10/2015,WATER SAMPLING - OPERATIONAL,MINE WATER TREATMENT SCHEMES,CONSTRUCTION-MAIN CONTRACTORS,SEVERN TRENT WATER,0000223836,2057.07
DEPARTMENT OF ENERGY AND CLIMATE CHANGE,THE COAL AUTHORITY,30/10/2015,WATER SAMPLING - OPERATIONAL,MINE WATER TREATMENT SCHEMES,CONSTRUCTION-MAIN CONTRACTORS,SEVERN TRENT WATER,0000223836,239.83
DEPARTMENT OF ENERGY AND CLIMATE CHANGE,THE COAL AUTHORITY,30/10/2015,WATER SAMPLING - OPERATIONAL,MINE WATER TREATMENT SCHEMES,CONSTRUCTION-MAIN CONTRACTORS,SEVERN TRENT WATER,0000223836,104.12
DEPARTMENT OF ENERGY AND CLIMATE CHANGE,THE COAL AUTHORITY,30/10/2015,WATER SAMPLING - OPERATIONAL,MINE WATER TREATMENT SCHEMES,CONSTRUCTION-MAIN CONTRACTORS,SEVERN TRENT WATER,0000223836,186.03
DEPARTMENT OF ENERGY AND CLIMATE CHANGE,THE COAL AUTHORITY,30/10/2015,WATER SAMPLING - OPERATIONAL,MINE WATER TREATMENT SCHEMES,CONSTRUCTION-MAIN CONTRACTORS,SEVERN TRENT WATER,0000223836,77.23
DEPARTMENT OF ENERGY AND CLIMATE CHANGE,THE COAL AUTHORITY,30/10/2015,WATER SAMPLING - OPERATIONAL,MINE WATER TREATMENT SCHEMES,CONSTRUCTION-MAIN CONTRACTORS,SEVERN TRENT WATER,0000223836,81.91
DEPARTMENT OF ENERGY AND CLIMATE CHANGE,THE COAL AUTHORITY,30/10/2015,WATER SAMPLING - OPERATIONAL,MINE WATER TREATMENT SCHEMES,CONSTRUCTION-MAIN CONTRACTORS,SEVERN TRENT WATER,0000223836,146.55
DEPARTMENT OF ENERGY AND CLIMATE CHANGE,THE COAL AUTHORITY,30/10/2015,WATER SAMPLING - OPERATIONAL,MINE WATER TREATMENT SCHEMES,CONSTRUCTION-MAIN CONTRACTORS,SEVERN TRENT WATER,0000223836,189.50
DEPARTMENT OF ENERGY AND CLIMATE CHANGE,THE COAL AUTHORITY,30/10/2015,WATER SAMPLING - OPERATIONAL,MINE WATER TREATMENT SCHEMES,CONSTRUCTION-MAIN CONTRACTORS,SEVERN TRENT WATER,0000223836,108.81
DEPARTMENT OF ENERGY AND CLIMATE CHANGE,THE COAL AUTHORITY,30/10/2015,WATER SAMPLING - OPERATIONAL,MINE WATER TREATMENT SCHEMES,CONSTRUCTION-MAIN CONTRACTORS,SEVERN TRENT WATER,0000223836,95.97
DEPARTMENT OF ENERGY AND CLIMATE CHANGE,THE COAL AUTHORITY,30/10/2015,WATER SAMPLING - OPERATIONAL,MINE WATER TREATMENT SCHEMES,CONSTRUCTION-MAIN CONTRACTORS,SEVERN TRENT WATER,0000223836,158.84
DEPARTMENT OF ENERGY AND CLIMATE CHANGE,THE COAL AUTHORITY,30/10/2015,WATER SAMPLING - OPERATIONAL,MINE WATER TREATMENT SCHEMES,CONSTRUCTION-MAIN CONTRACTORS,SEVERN TRENT WATER,0000223836,258.99
DEPARTMENT OF ENERGY AND CLIMATE CHANGE,THE COAL AUTHORITY,30/10/2015,WATER SAMPLING - OPERATIONAL,MINE WATER TREATMENT SCHEMES,CONSTRUCTION-MAIN CONTRACTORS,SEVERN TRENT WATER,0000223836,31.58
DEPARTMENT OF ENERGY AND CLIMATE CHANGE,THE COAL AUTHORITY,30/10/2015,WATER SAMPLING - OPERATIONAL,MINE WATER TREATMENT SCHEMES,CONSTRUCTION-MAIN CONTRACTORS,SEVERN TRENT WATER,0000223836,82.28
DEPARTMENT OF ENERGY AND CLIMATE CHANGE,THE COAL AUTHORITY,30/10/2015,WATER SAMPLING - OPERATIONAL,MINE WATER TREATMENT SCHEMES,CONSTRUCTION-MAIN CONTRACTORS,SEVERN TRENT WATER,0000223836,194.19
DEPARTMENT OF ENERGY AND CLIMATE CHANGE,THE COAL AUTHORITY,30/10/2015,WATER SAMPLING - OPERATIONAL,MINE WATER TREATMENT SCHEMES,CONSTRUCTION-MAIN CONTRACTORS,SEVERN TRENT WATER,0000223836,44.22
DEPARTMENT OF ENERGY AND CLIMATE CHANGE,THE COAL AUTHORITY,30/10/2015,WATER SAMPLING - OPERATIONAL,MINE WATER TREATMENT SCHEMES,CONSTRUCTION-MAIN CONTRACTORS,SEVERN TRENT WATER,0000223836,77.23
DEPARTMENT OF ENERGY AND CLIMATE CHANGE,THE COAL AUTHORITY,30/10/2015,WATER SAMPLING - OPERATIONAL,MINE WATER TREATMENT SCHEMES,CONSTRUCTION-MAIN CONTRACTORS,SEVERN TRENT WATER,0000223836,31.58
DEPARTMENT OF ENERGY AND CLIMATE CHANGE,THE COAL AUTHORITY,30/10/2015,WATER SAMPLING - OPERATIONAL,MINE WATER TREATMENT SCHEMES,CONSTRUCTION-MAIN CONTRACTORS,SEVERN TRENT WATER,0000223836,267.83
DEPARTMENT OF ENERGY AND CLIMATE CHANGE,THE COAL AUTHORITY,30/10/2015,WATER SAMPLING - OPERATIONAL,MINE WATER TREATMENT SCHEMES,CONSTRUCTION-MAIN CONTRACTORS,SEVERN TRENT WATER,0000223836,256.16
DEPARTMENT OF ENERGY AND CLIMATE CHANGE,THE COAL AUTHORITY,30/10/2015,WATER SAMPLING - OPERATIONAL,MINE WATER TREATMENT SCHEMES,CONSTRUCTION-MAIN CONTRACTORS,SEVERN TRENT WATER,0000223836,72.54
DEPARTMENT OF ENERGY AND CLIMATE CHANGE,THE COAL AUTHORITY,30/10/2015,WATER SAMPLING - OPERATIONAL,MINE WATER TREATMENT SCHEMES,CONSTRUCTION-MAIN CONTRACTORS,SEVERN TRENT WATER,0000223836,108.81
DEPARTMENT OF ENERGY AND CLIMATE CHANGE,THE COAL AUTHORITY,30/10/2015,WATER SAMPLING - OPERATIONAL,MINE WATER TREATMENT SCHEMES,CONSTRUCTION-MAIN CONTRACTORS,SEVERN TRENT WATER,0000223836,72.54
DEPARTMENT OF ENERGY AND CLIMATE CHANGE,THE COAL AUTHORITY,30/10/2015,WATER SAMPLING - OPERATIONAL,MINE WATER TREATMENT SCHEMES,CONSTRUCTION-MAIN CONTRACTORS,SEVERN TRENT WATER,0000223836,126.34
DEPARTMENT OF ENERGY AND CLIMATE CHANGE,THE COAL AUTHORITY,30/10/2015,WATER SAMPLING - OPERATIONAL,MINE WATER TREATMENT SCHEMES,CONSTRUCTION-MAIN CONTRACTORS,SEVERN TRENT WATER,0000223836,400.60
DEPARTMENT OF ENERGY AND CLIMATE CHANGE,THE COAL AUTHORITY,30/10/2015,WATER SAMPLING - OPERATIONAL,MINE WATER TREATMENT SCHEMES,CONSTRUCTION-MAIN CONTRACTORS,SEVERN TRENT WATER,0000223836,81.91
DEPARTMENT OF ENERGY AND CLIMATE CHANGE,THE COAL AUTHORITY,30/10/2015,WATER SAMPLING - OPERATIONAL,MINE WATER TREATMENT SCHEMES,CONSTRUCTION-MAIN CONTRACTORS,SEVERN TRENT WATER,0000223836,104.12
DEPARTMENT OF ENERGY AND CLIMATE CHANGE,THE COAL AUTHORITY,30/10/2015,WATER SAMPLING - OPERATIONAL,MINE WATER TREATMENT SCHEMES,CONSTRUCTION-MAIN CONTRACTORS,SEVERN TRENT WATER,0000223836,77.23
DEPARTMENT OF ENERGY AND CLIMATE CHANGE,THE COAL AUTHORITY,30/10/2015,WATER SAMPLING - OPERATIONAL,MINE WATER TREATMENT SCHEMES,CONSTRUCTION-MAIN CONTRACTORS,SEVERN TRENT WATER,0000223836,80.12
DEPARTMENT OF ENERGY AND CLIMATE CHANGE,THE COAL AUTHORITY,30/10/2015,WATER SAMPLING - OPERATIONAL,MINE WATER TREATMENT SCHEMES,CONSTRUCTION-MAIN CONTRACTORS,SEVERN TRENT WATER,0000223836,86.60
DEPARTMENT OF ENERGY AND CLIMATE CHANGE,THE COAL AUTHORITY,30/10/2015,WATER SAMPLING - OPERATIONAL,MINE WATER TREATMENT SCHEMES,CONSTRUCTION-MAIN CONTRACTORS,SEVERN TRENT WATER,0000223836,31.58
DEPARTMENT OF ENERGY AND CLIMATE CHANGE,THE COAL AUTHORITY,30/10/2015,WATER SAMPLING - OPERATIONAL,MINE WATER TREATMENT SCHEMES,CONSTRUCTION-MAIN CONTRACTORS,SEVERN TRENT WATER,0000223836,31.58
DEPARTMENT OF ENERGY AND CLIMATE CHANGE,THE COAL AUTHORITY,30/10/2015,WATER SAMPLING - OPERATIONAL,MINE WATER TREATMENT SCHEMES,CONSTRUCTION-MAIN CONTRACTORS,SEVERN TRENT WATER,0000223836,140.39
DEPARTMENT OF ENERGY AND CLIMATE CHANGE,THE COAL AUTHORITY,30/10/2015,WATER SAMPLING - OPERATIONAL,MINE WATER TREATMENT SCHEMES,CONSTRUCTION-MAIN CONTRACTORS,SEVERN TRENT WATER,0000223836,81.91
DEPARTMENT OF ENERGY AND CLIMATE CHANGE,THE COAL AUTHORITY,30/10/2015,WATER SAMPLING - OPERATIONAL,MINE WATER TREATMENT SCHEMES,CONSTRUCTION-MAIN CONTRACTORS,SEVERN TRENT WATER,0000223836,77.23
DEPARTMENT OF ENERGY AND CLIMATE CHANGE,THE COAL AUTHORITY,30/10/2015,WATER SAMPLING - OPERATIONAL,MINE WATER TREATMENT SCHEMES,CONSTRUCTION-MAIN CONTRACTORS,SEVERN TRENT WATER,0000223836,63.17
DEPARTMENT OF ENERGY AND CLIMATE CHANGE,THE COAL AUTHORITY,30/10/2015,WATER SAMPLING - OPERATIONAL,MINE WATER TREATMENT SCHEMES,CONSTRUCTION-MAIN CONTRACTORS,SEVERN TRENT WATER,0000223836,31.58
DEPARTMENT OF ENERGY AND CLIMATE CHANGE,THE COAL AUTHORITY,30/10/2015,WATER SAMPLING - OPERATIONAL,MINE WATER TREATMENT SCHEMES,CONSTRUCTION-MAIN CONTRACTORS,SEVERN TRENT WATER,0000223836,81.91
DEPARTMENT OF ENERGY AND CLIMATE CHANGE,THE COAL AUTHORITY,30/10/2015,WATER SAMPLING - OPERATIONAL,MINE WATER TREATMENT SCHEMES,CONSTRUCTION-MAIN CONTRACTORS,SEVERN TRENT WATER,0000223836,72.54
DEPARTMENT OF ENERGY AND CLIMATE CHANGE,THE COAL AUTHORITY,30/10/2015,WATER SAMPLING - OPERATIONAL,MINE WATER TREATMENT SCHEMES,CONSTRUCTION-MAIN CONTRACTORS,SEVERN TRENT WATER,0000223836,72.54
DEPARTMENT OF ENERGY AND CLIMATE CHANGE,THE COAL AUTHORITY,30/10/2015,WATER SAMPLING - OPERATIONAL,MINE WATER TREATMENT SCHEMES,CONSTRUCTION-MAIN CONTRACTORS,SEVERN TRENT WATER,0000223836,202.37
DEPARTMENT OF ENERGY AND CLIMATE CHANGE,THE COAL AUTHORITY,30/10/2015,WATER SAMPLING - OPERATIONAL,MINE WATER TREATMENT SCHEMES,CONSTRUCTION-MAIN CONTRACTORS,SEVERN TRENT WATER,0000223836,72.54
DEPARTMENT OF ENERGY AND CLIMATE CHANGE,THE COAL AUTHORITY,30/10/2015,WATER SAMPLING - OPERATIONAL,MINE WATER TREATMENT SCHEMES,CONSTRUCTION-MAIN CONTRACTORS,SEVERN TRENT WATER,0000223836,94.75
DEPARTMENT OF ENERGY AND CLIMATE CHANGE,THE COAL AUTHORITY,30/10/2015,WATER SAMPLING - OPERATIONAL,MINE WATER TREATMENT SCHEMES,CONSTRUCTION-MAIN CONTRACTORS,SEVERN TRENT WATER,0000223836,70.38
DEPARTMENT OF ENERGY AND CLIMATE CHANGE,THE COAL AUTHORITY,30/10/2015,WATER SAMPLING - OPERATIONAL,MINE WATER TREATMENT SCHEMES,CONSTRUCTION-MAIN CONTRACTORS,SEVERN TRENT WATER,0000223836,72.54
DEPARTMENT OF ENERGY AND CLIMATE CHANGE,THE COAL AUTHORITY,30/10/2015,WATER SAMPLING - OPERATIONAL,MINE WATER TREATMENT SCHEMES,CONSTRUCTION-MAIN CONTRACTORS,SEVERN TRENT WATER,0000223836,81.91
DEPARTMENT OF ENERGY AND CLIMATE CHANGE,THE COAL AUTHORITY,30/10/2015,WATER SAMPLING - OPERATIONAL,MINE WATER TREATMENT SCHEMES,CONSTRUCTION-MAIN CONTRACTORS,SEVERN TRENT WATER,0000223836,67.85
DEPARTMENT OF ENERGY AND CLIMATE CHANGE,THE COAL AUTHORITY,30/10/2015,WATER SAMPLING - OPERATIONAL,MINE WATER TREATMENT SCHEMES,CONSTRUCTION-MAIN CONTRACTORS,SEVERN TRENT WATER,0000223836,104.12
DEPARTMENT OF ENERGY AND CLIMATE CHANGE,THE COAL AUTHORITY,30/10/2015,WATER SAMPLING - OPERATIONAL,MINE WATER TREATMENT SCHEMES,CONSTRUCTION-MAIN CONTRACTORS,SEVERN TRENT WATER,0000223836,140.39
DEPARTMENT OF ENERGY AND CLIMATE CHANGE,THE COAL AUTHORITY,30/10/2015,WATER SAMPLING - OPERATIONAL,MINE WATER TREATMENT SCHEMES,CONSTRUCTION-MAIN CONTRACTORS,SEVERN TRENT WATER,0000223836,163.27
DEPARTMENT OF ENERGY AND CLIMATE CHANGE,THE COAL AUTHORITY,30/10/2015,WATER SAMPLING - OPERATIONAL,MINE WATER TREATMENT SCHEMES,CONSTRUCTION-MAIN CONTRACTORS,SEVERN TRENT WATER,0000223836,108.81
DEPARTMENT OF ENERGY AND CLIMATE CHANGE,THE COAL AUTHORITY,30/10/2015,WATER SAMPLING - OPERATIONAL,MINE WATER TREATMENT SCHEMES,CONSTRUCTION-MAIN CONTRACTORS,SEVERN TRENT WATER,0000223836,95.97
DEPARTMENT OF ENERGY AND CLIMATE CHANGE,THE COAL AUTHORITY,30/10/2015,WATER SAMPLING - OPERATIONAL,MINE WATER TREATMENT SCHEMES,CONSTRUCTION-MAIN CONTRACTORS,SEVERN TRENT WATER,0000223836,72.54
DEPARTMENT OF ENERGY AND CLIMATE CHANGE,THE COAL AUTHORITY,30/10/2015,WATER SAMPLING - OPERATIONAL,MINE WATER TREATMENT SCHEMES,CONSTRUCTION-MAIN CONTRACTORS,SEVERN TRENT WATER,0000223836,97.28
DEPARTMENT OF ENERGY AND CLIMATE CHANGE,THE COAL AUTHORITY,30/10/2015,WATER SAMPLING - OPERATIONAL,MINE WATER TREATMENT SCHEMES,CONSTRUCTION-MAIN CONTRACTORS,SEVERN TRENT WATER,0000223836,63.17
DEPARTMENT OF ENERGY AND CLIMATE CHANGE,THE COAL AUTHORITY,30/10/2015,WATER SAMPLING - OPERATIONAL,MINE WATER TREATMENT SCHEMES,CONSTRUCTION-MAIN CONTRACTORS,SEVERN TRENT WATER,0000223836,548.59
DEPARTMENT OF ENERGY AND CLIMATE CHANGE,THE COAL AUTHORITY,30/10/2015,WATER SAMPLING - OPERATIONAL,MINE WATER TREATMENT SCHEMES,CONSTRUCTION-MAIN CONTRACTORS,SEVERN TRENT WATER,0000223836,63.17
DEPARTMENT OF ENERGY AND CLIMATE CHANGE,THE COAL AUTHORITY,30/10/2015,WATER SAMPLING - OPERATIONAL,MINE WATER TREATMENT SCHEMES,CONSTRUCTION-MAIN CONTRACTORS,SEVERN TRENT WATER,0000223836,132.65
DEPARTMENT OF ENERGY AND CLIMATE CHANGE,THE COAL AUTHORITY,30/10/2015,WATER SAMPLING - OPERATIONAL,MINE WATER TREATMENT SCHEMES,CONSTRUCTION-MAIN CONTRACTORS,SEVERN TRENT WATER,0000223836,72.54
DEPARTMENT OF ENERGY AND CLIMATE CHANGE,THE COAL AUTHORITY,30/10/2015,WATER SAMPLING - OPERATIONAL,MINE WATER TREATMENT SCHEMES,CONSTRUCTION-MAIN CONTRACTORS,SEVERN TRENT WATER,0000223836,107.18
DEPARTMENT OF ENERGY AND CLIMATE CHANGE,THE COAL AUTHORITY,30/10/2015,WATER SAMPLING - OPERATIONAL,MINE WATER TREATMENT SCHEMES,CONSTRUCTION-MAIN CONTRACTORS,SEVERN TRENT WATER,0000223836,88.43
DEPARTMENT OF ENERGY AND CLIMATE CHANGE,THE COAL AUTHORITY,30/10/2015,WATER SAMPLING - OPERATIONAL,MINE WATER TREATMENT SCHEMES,CONSTRUCTION-MAIN CONTRACTORS,SEVERN TRENT WATER,0000223836,230.46
DEPARTMENT OF ENERGY AND CLIMATE CHANGE,THE COAL AUTHORITY,30/10/2015,WATER SAMPLING - OPERATIONAL,MINE WATER TREATMENT SCHEMES,CONSTRUCTION-MAIN CONTRACTORS,SEVERN TRENT WATER,0000223836,1801.19
DEPARTMENT OF ENERGY AND CLIMATE CHANGE,THE COAL AUTHORITY,30/10/2015,WATER SAMPLING - OPERATIONAL,MINE WATER TREATMENT SCHEMES,CONSTRUCTION-MAIN CONTRACTORS,SEVERN TRENT WATER,0000223836,3351.83
DEPARTMENT OF ENERGY AND CLIMATE CHANGE,THE COAL AUTHORITY,30/10/2015,WATER SAMPLING - OPERATIONAL,MINE WATER TREATMENT SCHEMES,CONSTRUCTION-MAIN CONTRACTORS,SEVERN TRENT WATER,0000223836,6507.95
DEPARTMENT OF ENERGY AND CLIMATE CHANGE,THE COAL AUTHORITY,29/09/2015,APPRENTICE COSTS,MINING INFORMATION COMMERCIAL,PROF SER TMP STFF-TEMP WRKERS,FUTURES ADVICE SKILLS & E,0000223209,1191.34
DEPARTMENT OF ENERGY AND CLIMATE CHANGE,THE COAL AUTHORITY,07/10/2015,CHESHIRE BRINE SEARCH SERVICES,MINING INFORMATION COMMERCIAL,PSPES NOT APPLICABLE,CHESHIRE BRINE SUBSIDENCE,0000223415,21850.00
DEPARTMENT OF ENERGY AND CLIMATE CHANGE,THE COAL AUTHORITY,07/10/2015,CHESHIRE BRINE SEARCH SERVICES,MINING INFORMATION COMMERCIAL,PSPES NOT APPLICABLE,CHESHIRE BRINE SUBSIDENCE,0000223416,4313.00
DEPARTMENT OF ENERGY AND CLIMATE CHANGE,THE COAL AUTHORITY,01/10/2015,COMMISSION CHARGES-E-COMMERCE,MINING INFORMATION COMMERCIAL,PROF SER FNCL-BANKING&INVSTMNT,WORLDPAY LIMITED,0000223285,780.89
DEPARTMENT OF ENERGY AND CLIMATE CHANGE,THE COAL AUTHORITY,01/10/2015,COMMISSION CHARGES-E-COMMERCE,MINING INFORMATION COMMERCIAL,PROF SER FNCL-BANKING&INVSTMNT,WORLDPAY,0000223431,1469.67
DEPARTMENT OF ENERGY AND CLIMATE CHANGE,THE COAL AUTHORITY,01/10/2015,COURIER SERVICES,MINING INFORMATION COMMERCIAL,FACILITIES - SECURITY,SECURITY PLUS LIMITED,0000223250,51.75
DEPARTMENT OF ENERGY AND CLIMATE CHANGE,THE COAL AUTHORITY,01/10/2015,INSURANCE PREMIUMS,MINING INFORMATION COMMERCIAL,PSPES NOT APPLICABLE,AVIVA,0000223420,77074.70
DEPARTMENT OF ENERGY AND CLIMATE CHANGE,THE COAL AUTHORITY,07/09/2015,IT-APPLICATIONS MANAGEMENT,MINING INFORMATION COMMERCIAL,ICT-SYSTEMS DELIVERY,SCISYS UK LTD,0000222877,1276.23
DEPARTMENT OF ENERGY AND CLIMATE CHANGE,THE COAL AUTHORITY,09/09/2015,IT-APPLICATIONS MANAGEMENT,MINING INFORMATION COMMERCIAL,ICT-SYSTEMS DELIVERY,SCISYS UK LTD,0000222878,1621.55
DEPARTMENT OF ENERGY AND CLIMATE CHANGE,THE COAL AUTHORITY,23/09/2015,IT-APPLICATIONS MANAGEMENT,MINING INFORMATION COMMERCIAL,ENERGY&UTILITIES-WATER,SCISYS UK LTD,0000223184,7600.38
DEPARTMENT OF ENERGY AND CLIMATE CHANGE,THE COAL AUTHORITY,08/10/2015,IT-APPLICATIONS MANAGEMENT,MINING INFORMATION COMMERCIAL,ICT-SYSTEMS DELIVERY,SCISYS UK LTD,0000223428,1101.75
DEPARTMENT OF ENERGY AND CLIMATE CHANGE,THE COAL AUTHORITY,08/10/2015,IT-APPLICATIONS MANAGEMENT,MINING INFORMATION COMMERCIAL,ICT-SYSTEMS DELIVERY,SCISYS UK LTD,0000223429,1635.08
DEPARTMENT OF ENERGY AND CLIMATE CHANGE,THE COAL AUTHORITY,08/10/2015,IT-APPLICATIONS MANAGEMENT,MINING INFORMATION COMMERCIAL,ICT-SYSTEMS DELIVERY,SCISYS UK LTD,0000223524,52.34
DEPARTMENT OF ENERGY AND CLIMATE CHANGE,THE COAL AUTHORITY,01/10/2015,IT-APPLICATIONS MANAGEMENT,MINING INFORMATION COMMERCIAL,ICT-MAINTENANCE & SUPPORT,ORDNANCE SURVEY,0000223624,3318.00
DEPARTMENT OF ENERGY AND CLIMATE CHANGE,THE COAL AUTHORITY,05/10/2015,LEGAL COSTS,MINING INFORMATION COMMERCIAL,PROF SER-LEGAL SERVICES,DLA PIPER UK LLP,0000223419,182.00
DEPARTMENT OF ENERGY AND CLIMATE CHANGE,THE COAL AUTHORITY,16/10/2015,LEGAL COSTS,MINING INFORMATION COMMERCIAL,PROF SER-OPERATIONAL SERVICES,LAND REGISTRY,0000223592,18.00
DEPARTMENT OF ENERGY AND CLIMATE CHANGE,THE COAL AUTHORITY,30/09/2015,LIBRARY SERVICES,MINING INFORMATION COMMERCIAL,PSPES NOT APPLICABLE,GROUNDSURE LIMITED,0000223254,60012.20
DEPARTMENT OF ENERGY AND CLIMATE CHANGE,THE COAL AUTHORITY,07/10/2015,ORDANCE SURVEY MAPS,MINING INFORMATION COMMERCIAL,ICT-SOFTWARE,ORDNANCE SURVEY,0000223414,20351.41
DEPARTMENT OF ENERGY AND CLIMATE CHANGE,THE COAL AUTHORITY,25/09/2015,PAYMENTS TO AGENCIES FOR TEMPS,MINING INFORMATION COMMERCIAL,PROF SER TMP STFF-TEMP WRKERS,KEY PERSONNEL SOLUTIONS L,0000223196,867.21
DEPARTMENT OF ENERGY AND CLIMATE CHANGE,THE COAL AUTHORITY,02/10/2015,PAYMENTS TO AGENCIES FOR TEMPS,MINING INFORMATION COMMERCIAL,PROF SER TMP STFF-TEMP WRKERS,KEY PERSONNEL SOLUTIONS L,0000223358,502.32
DEPARTMENT OF ENERGY AND CLIMATE CHANGE,THE COAL AUTHORITY,16/10/2015,PAYMENTS TO AGENCIES FOR TEMPS,MINING INFORMATION COMMERCIAL,PROF SER TMP STFF-TEMP WRKERS,KEY PERSONNEL SOLUTIONS L,0000223645,852.27
DEPARTMENT OF ENERGY AND CLIMATE CHANGE,THE COAL AUTHORITY,23/10/2015,PAYMENTS TO AGENCIES FOR TEMPS,MINING INFORMATION COMMERCIAL,PROF SER TMP STFF-TEMP WRKERS,KEY PERSONNEL SOLUTIONS L,0000223846,486.22
DEPARTMENT OF ENERGY AND CLIMATE CHANGE,THE COAL AUTHORITY,07/10/2015,ROYALTIES,MINING INFORMATION COMMERCIAL,PSPES NOT APPLICABLE,NERC,0000223406,12766.50
DEPARTMENT OF ENERGY AND CLIMATE CHANGE,THE COAL AUTHORITY,01/10/2015,CHILDCARE VOUCHERS,MINING INFORMATION WHOLESALE,PERSONNEL RLTD-STAFF CHILDCARE,FIDELITI LIMITED,0000223287,200.00
DEPARTMENT OF ENERGY AND CLIMATE CHANGE,THE COAL AUTHORITY,30/09/2015,FARES - RAIL,MINING INFORMATION WHOLESALE,TRAVEL&EVENTS-RAIL,REDFERN TRAVEL LTD,0000223444,206.52
DEPARTMENT OF ENERGY AND CLIMATE CHANGE,THE COAL AUTHORITY,30/09/2015,HOTEL ACCOMMODATION,MINING INFORMATION WHOLESALE,TRAVEL&EVENTS-HOTELS,REDFERN TRAVEL LTD,0000223446,290.11
DEPARTMENT OF ENERGY AND CLIMATE CHANGE,THE COAL AUTHORITY,22/10/2015,INCIDENTALS,MINING INFORMATION WHOLESALE,VEHICLES-FLEET MANAGEMENT,STAFF EXPENSES CONTROL,0000223786,17.50
DEPARTMENT OF ENERGY AND CLIMATE CHANGE,THE COAL AUTHORITY,07/09/2015,IT-APPLICATIONS MANAGEMENT,MINING INFORMATION WHOLESALE,ICT-SYSTEMS DELIVERY,SCISYS UK LTD,0000222877,1276.23
DEPARTMENT OF ENERGY AND CLIMATE CHANGE,THE COAL AUTHORITY,09/09/2015,IT-APPLICATIONS MANAGEMENT,MINING INFORMATION WHOLESALE,ICT-SYSTEMS DELIVERY,SCISYS UK LTD,0000222878,1621.55
DEPARTMENT OF ENERGY AND CLIMATE CHANGE,THE COAL AUTHORITY,23/09/2015,IT-APPLICATIONS MANAGEMENT,MINING INFORMATION WHOLESALE,ENERGY&UTILITIES-WATER,SCISYS UK LTD,0000223184,15200.76
DEPARTMENT OF ENERGY AND CLIMATE CHANGE,THE COAL AUTHORITY,30/09/2015,IT-APPLICATIONS MANAGEMENT,MINING INFORMATION WHOLESALE,ICT-MAINTENANCE & SUPPORT,1SPATIAL GROUP LTD,0000223282,2020.00
DEPARTMENT OF ENERGY AND CLIMATE CHANGE,THE COAL AUTHORITY,08/10/2015,IT-APPLICATIONS MANAGEMENT,MINING INFORMATION WHOLESALE,ICT-SYSTEMS DELIVERY,SCISYS UK LTD,0000223428,1101.75
DEPARTMENT OF ENERGY AND CLIMATE CHANGE,THE COAL AUTHORITY,08/10/2015,IT-APPLICATIONS MANAGEMENT,MINING INFORMATION WHOLESALE,ICT-SYSTEMS DELIVERY,SCISYS UK LTD,0000223429,1635.08
DEPARTMENT OF ENERGY AND CLIMATE CHANGE,THE COAL AUTHORITY,08/10/2015,IT-APPLICATIONS MANAGEMENT,MINING INFORMATION WHOLESALE,ICT-SYSTEMS DELIVERY,SCISYS UK LTD,0000223524,52.33
DEPARTMENT OF ENERGY AND CLIMATE CHANGE,THE COAL AUTHORITY,01/10/2015,IT-APPLICATIONS MANAGEMENT,MINING INFORMATION WHOLESALE,ICT-MAINTENANCE & SUPPORT,ORDNANCE SURVEY,0000223624,3318.00
DEPARTMENT OF ENERGY AND CLIMATE CHANGE,THE COAL AUTHORITY,05/10/2015,LEGAL COSTS,MINING INFORMATION WHOLESALE,PROF SER-LEGAL SERVICES,DLA PIPER UK LLP,0000223419,2651.50
DEPARTMENT OF ENERGY AND CLIMATE CHANGE,THE COAL AUTHORITY,22/10/2015,MILEAGE PAYMENTS,MINING INFORMATION WHOLESALE,FUELS/LUBRCNT/GAS-FUELS,STAFF EXPENSES CONTROL,0000223786,11.70
DEPARTMENT OF ENERGY AND CLIMATE CHANGE,THE COAL AUTHORITY,23/10/2015,MILEAGE PAYMENTS,MINING INFORMATION WHOLESALE,FUELS/LUBRCNT/GAS-FUELS,STAFF EXPENSES CONTROL,0000223798,30.15
DEPARTMENT OF ENERGY AND CLIMATE CHANGE,THE COAL AUTHORITY,22/10/2015,SUBSISTENCE ALLOWANCES,MINING INFORMATION WHOLESALE,FACILITIES - FOOD,STAFF EXPENSES CONTROL,0000223786,7.00
DEPARTMENT OF ENERGY AND CLIMATE CHANGE,THE COAL AUTHORITY,01/10/2015,CHILDCARE VOUCHERS,PERMISSIONS,PERSONNEL RLTD-STAFF CHILDCARE,FIDELITI LIMITED,0000223287,243.00
DEPARTMENT OF ENERGY AND CLIMATE CHANGE,THE COAL AUTHORITY,01/10/2015,COMMISSION CHARGES-E-COMMERCE,PERMISSIONS,PROF SER FNCL-BANKING&INVSTMNT,WORLDPAY LIMITED,0000223284,28.80
DEPARTMENT OF ENERGY AND CLIMATE CHANGE,THE COAL AUTHORITY,01/10/2015,COMMISSION CHARGES-E-COMMERCE,PERMISSIONS,PROF SER FNCL-BANKING&INVSTMNT,WORLDPAY,0000223431,714.45
DEPARTMENT OF ENERGY AND CLIMATE CHANGE,THE COAL AUTHORITY,28/09/2015,CONSULTANCY,PERMISSIONS,PROF SER TMP STFF-SPCLST CNTRT,WYG ENV PLANNING TRANSPOR,0000223283,3078.00
DEPARTMENT OF ENERGY AND CLIMATE CHANGE,THE COAL AUTHORITY,30/09/2015,CONSULTANCY,PERMISSIONS,PROF SER CNSLTNCY-PROP/CNSTRCN,JMC ENGINEERING (UK) LTD,0000223315,3915.10
DEPARTMENT OF ENERGY AND CLIMATE CHANGE,THE COAL AUTHORITY,07/10/2015,CONSULTANCY,PERMISSIONS,PROF SER CNSLTNCY-PROP/CNSTRCN,ANTHONY NORTHCOTE PLANNIN,0000223434,5632.90
DEPARTMENT OF ENERGY AND CLIMATE CHANGE,THE COAL AUTHORITY,23/10/2015,FARES - RAIL,PERMISSIONS,TRAVEL&EVENTS-RAIL,STAFF EXPENSES CONTROL,0000223799,14.90
DEPARTMENT OF ENERGY AND CLIMATE CHANGE,THE COAL AUTHORITY,23/10/2015,INCIDENTALS,PERMISSIONS,VEHICLES-FLEET MANAGEMENT,STAFF EXPENSES CONTROL,0000223799,4.00
DEPARTMENT OF ENERGY AND CLIMATE CHANGE,THE COAL AUTHORITY,23/10/2015,MILEAGE PAYMENTS,PERMISSIONS,FUELS/LUBRCNT/GAS-FUELS,STAFF EXPENSES CONTROL,0000223799,150.30
DEPARTMENT OF ENERGY AND CLIMATE CHANGE,THE COAL AUTHORITY,23/10/2015,SUBSISTENCE ALLOWANCES,PERMISSIONS,FACILITIES - FOOD,STAFF EXPENSES CONTROL,0000223799,5.95
DEPARTMENT OF ENERGY AND CLIMATE CHANGE,THE COAL AUTHORITY,07/10/2015,CONSULTANCY,PLANNING & LOCAL AUTH LIAISON,PROF SER CNSLTNCY-PROP/CNSTRCN,ANTHONY NORTHCOTE PLANNIN,0000223435,2011.75
DEPARTMENT OF ENERGY AND CLIMATE CHANGE,THE COAL AUTHORITY,30/09/2015,FARES - RAIL,PLANNING & LOCAL AUTH LIAISON,TRAVEL&EVENTS-RAIL,REDFERN TRAVEL LTD,0000223444,87.74
DEPARTMENT OF ENERGY AND CLIMATE CHANGE,THE COAL AUTHORITY,08/10/2015,INCIDENTALS,PLANNING & LOCAL AUTH LIAISON,VEHICLES-FLEET MANAGEMENT,COMPANY BARCLAYCARD,0000223669,9.58
DEPARTMENT OF ENERGY AND CLIMATE CHANGE,THE COAL AUTHORITY,23/10/2015,INCIDENTALS,PLANNING & LOCAL AUTH LIAISON,VEHICLES-FLEET MANAGEMENT,STAFF EXPENSES CONTROL,0000223830,3.75
DEPARTMENT OF ENERGY AND CLIMATE CHANGE,THE COAL AUTHORITY,26/10/2015,INCIDENTALS,PLANNING & LOCAL AUTH LIAISON,VEHICLES-FLEET MANAGEMENT,STAFF EXPENSES CONTROL,0000223835,3.90
DEPARTMENT OF ENERGY AND CLIMATE CHANGE,THE COAL AUTHORITY,07/09/2015,IT-APPLICATIONS MANAGEMENT,PLANNING & LOCAL AUTH LIAISON,ICT-SYSTEMS DELIVERY,SCISYS UK LTD,0000222877,255.25
DEPARTMENT OF ENERGY AND CLIMATE CHANGE,THE COAL AUTHORITY,09/09/2015,IT-APPLICATIONS MANAGEMENT,PLANNING & LOCAL AUTH LIAISON,ICT-SYSTEMS DELIVERY,SCISYS UK LTD,0000222878,324.31
DEPARTMENT OF ENERGY AND CLIMATE CHANGE,THE COAL AUTHORITY,23/09/2015,IT-APPLICATIONS MANAGEMENT,PLANNING & LOCAL AUTH LIAISON,ENERGY&UTILITIES-WATER,SCISYS UK LTD,0000223184,1900.09
DEPARTMENT OF ENERGY AND CLIMATE CHANGE,THE COAL AUTHORITY,08/10/2015,IT-APPLICATIONS MANAGEMENT,PLANNING & LOCAL AUTH LIAISON,ICT-SYSTEMS DELIVERY,SCISYS UK LTD,0000223428,220.35
DEPARTMENT OF ENERGY AND CLIMATE CHANGE,THE COAL AUTHORITY,08/10/2015,IT-APPLICATIONS MANAGEMENT,PLANNING & LOCAL AUTH LIAISON,ICT-SYSTEMS DELIVERY,SCISYS UK LTD,0000223429,327.02
DEPARTMENT OF ENERGY AND CLIMATE CHANGE,THE COAL AUTHORITY,23/10/2015,MILEAGE PAYMENTS,PLANNING & LOCAL AUTH LIAISON,FUELS/LUBRCNT/GAS-FUELS,STAFF EXPENSES CONTROL,0000223830,10.80
DEPARTMENT OF ENERGY AND CLIMATE CHANGE,THE COAL AUTHORITY,26/10/2015,MILEAGE PAYMENTS,PLANNING & LOCAL AUTH LIAISON,FUELS/LUBRCNT/GAS-FUELS,STAFF EXPENSES CONTROL,0000223835,44.10
DEPARTMENT OF ENERGY AND CLIMATE CHANGE,THE COAL AUTHORITY,08/10/2015,SUBSISTENCE ALLOWANCES,PLANNING & LOCAL AUTH LIAISON,FACILITIES - FOOD,COMPANY BARCLAYCARD,0000223669,3.29
DEPARTMENT OF ENERGY AND CLIMATE CHANGE,THE COAL AUTHORITY,23/10/2015,SUBSISTENCE ALLOWANCES,PLANNING & LOCAL AUTH LIAISON,FACILITIES - FOOD,STAFF EXPENSES CONTROL,0000223830,2.12
DEPARTMENT OF ENERGY AND CLIMATE CHANGE,THE COAL AUTHORITY,30/09/2015,FARES - RAIL,PROCUREMENT,TRAVEL&EVENTS-RAIL,REDFERN TRAVEL LTD,0000223444,142.52
DEPARTMENT OF ENERGY AND CLIMATE CHANGE,THE COAL AUTHORITY,30/09/2015,HOTEL ACCOMMODATION,PROCUREMENT,TRAVEL&EVENTS-HOTELS,REDFERN TRAVEL LTD,0000223446,81.71
DEPARTMENT OF ENERGY AND CLIMATE CHANGE,THE COAL AUTHORITY,06/10/2015,PAYMENTS TO AGENCIES FOR TEMPS,PROCUREMENT,PROF SER TMP STFF-SPCLST CNTRT,ULTIMATE INVOICE FINANCE,0000223356,1925.00
DEPARTMENT OF ENERGY AND CLIMATE CHANGE,THE COAL AUTHORITY,06/10/2015,PAYMENTS TO AGENCIES FOR TEMPS,PROCUREMENT,PROF SER TMP STFF-SPCLST CNTRT,ULTIMATE INVOICE FINANCE,0000223357,1732.50
DEPARTMENT OF ENERGY AND CLIMATE CHANGE,THE COAL AUTHORITY,13/10/2015,PAYMENTS TO AGENCIES FOR TEMPS,PROCUREMENT,PROF SER TMP STFF-SPCLST CNTRT,ULTIMATE INVOICE FINANCE,0000223513,1540.00
DEPARTMENT OF ENERGY AND CLIMATE CHANGE,THE COAL AUTHORITY,27/10/2015,PAYMENTS TO AGENCIES FOR TEMPS,PROCUREMENT,PROF SER TMP STFF-SPCLST CNTRT,ULTIMATE INVOICE FINANCE,0000223946,1925.00
DEPARTMENT OF ENERGY AND CLIMATE CHANGE,THE COAL AUTHORITY,05/10/2015,LEGAL FEES - SALES,PROPERTY MANAGEMENT & SALES,PROF SER-LEGAL SERVICES,DLA PIPER UK LLP,0000223419,176.00
DEPARTMENT OF ENERGY AND CLIMATE CHANGE,THE COAL AUTHORITY,30/09/2015,OTHER CONTRACTOR COSTS,PROPERTY MANAGEMENT & SALES,PROF SER CNSLTNCY-PPM CNSLTNCY,JMC ENGINEERING (UK) LTD,0000223314,901.60
DEPARTMENT OF ENERGY AND CLIMATE CHANGE,THE COAL AUTHORITY,30/09/2015,OUTSOURCED MGT- PROP SALES,PROPERTY MANAGEMENT & SALES,PROF SER TECH-ENGINEERING SER,MARK N CAREY LIMITED,0000223546,136.50
DEPARTMENT OF ENERGY AND CLIMATE CHANGE,THE COAL AUTHORITY,01/10/2015,OUTSOURCED MGT- PROP SALES,PROPERTY MANAGEMENT & SALES,PROF SER CNSLTNCY-PROP/CNSTRCN,D M HALL,0000223607,400.00
DEPARTMENT OF ENERGY AND CLIMATE CHANGE,THE COAL AUTHORITY,01/10/2015,PROPERTY /TIP MAINTENANCE,PROPERTY MANAGEMENT & SALES,FACILITIES - SECURITY,ASGS SECURITY SERVICES LT,0000223584,260.00
DEPARTMENT OF ENERGY AND CLIMATE CHANGE,THE COAL AUTHORITY,14/10/2015,PROPERTY /TIP MAINTENANCE,PROPERTY MANAGEMENT & SALES,CONSTRUCTION-MAIN CONTRACTORS,NAL PLANT LIMITED,0000223617,457.03
DEPARTMENT OF ENERGY AND CLIMATE CHANGE,THE COAL AUTHORITY,30/10/2015,PROPERTY /TIP MAINTENANCE,PROPERTY MANAGEMENT & SALES,CONSTRUCTION-MAIN CONTRACTORS,SEVERN TRENT WATER,0000223836,55.18
DEPARTMENT OF ENERGY AND CLIMATE CHANGE,THE COAL AUTHORITY,30/10/2015,PROPERTY /TIP MAINTENANCE,PROPERTY MANAGEMENT & SALES,CONSTRUCTION-MAIN CONTRACTORS,SEVERN TRENT WATER,0000223836,58.86
DEPARTMENT OF ENERGY AND CLIMATE CHANGE,THE COAL AUTHORITY,02/10/2015,PROPERTY RATES PAYABLE,PROPERTY MANAGEMENT & SALES,ENERGY&UTILITIES-ELECTRICITY,BRITISH GAS BUSINESS,0000223443,32.58
DEPARTMENT OF ENERGY AND CLIMATE CHANGE,THE COAL AUTHORITY,15/10/2015,RESTRTN CLSED CLLRY STE-PROP,PROPERTY MANAGEMENT & SALES,WASTE MANAGEMENT-WSTE MNGT SER,M T S CLEANSING SERVICES,0000223618,381.69
DEPARTMENT OF ENERGY AND CLIMATE CHANGE,THE COAL AUTHORITY,30/09/2015,RESTRTN CLSED CLLRY STE-PROP,PROPERTY MANAGEMENT & SALES,FACILITIES - SECURITY,CRIMEFIGHTER ALARMS LTD,0000223639,1765.44
DEPARTMENT OF ENERGY AND CLIMATE CHANGE,THE COAL AUTHORITY,01/10/2015,COMMISSION CHARGES-E-COMMERCE,RECORDS STORAGE,PROF SER FNCL-BANKING&INVSTMNT,WORLDPAY,0000223431,31.30
DEPARTMENT OF ENERGY AND CLIMATE CHANGE,THE COAL AUTHORITY,01/09/2015,IT-APPLICATIONS MANAGEMENT,RECORDS STORAGE,ICT-MAINTENANCE & SUPPORT,DAISY COMMUNICATIONS LTD,0000222889,6250.00
DEPARTMENT OF ENERGY AND CLIMATE CHANGE,THE COAL AUTHORITY,25/09/2015,PAYMENTS TO AGENCIES FOR TEMPS,RECORDS STORAGE,PROF SER TMP STFF-TEMP WRKERS,KEY PERSONNEL SOLUTIONS L,0000223196,495.23
DEPARTMENT OF ENERGY AND CLIMATE CHANGE,THE COAL AUTHORITY,02/10/2015,PAYMENTS TO AGENCIES FOR TEMPS,RECORDS STORAGE,PROF SER TMP STFF-TEMP WRKERS,KEY PERSONNEL SOLUTIONS L,0000223358,303.41
DEPARTMENT OF ENERGY AND CLIMATE CHANGE,THE COAL AUTHORITY,16/10/2015,PAYMENTS TO AGENCIES FOR TEMPS,RECORDS STORAGE,PROF SER TMP STFF-TEMP WRKERS,KEY PERSONNEL SOLUTIONS L,0000223645,285.97
DEPARTMENT OF ENERGY AND CLIMATE CHANGE,THE COAL AUTHORITY,23/10/2015,PAYMENTS TO AGENCIES FOR TEMPS,RECORDS STORAGE,PROF SER TMP STFF-TEMP WRKERS,KEY PERSONNEL SOLUTIONS L,0000223846,380.14
DEPARTMENT OF ENERGY AND CLIMATE CHANGE,THE COAL AUTHORITY,30/09/2015,HOTEL ACCOMMODATION,RESEARCH & DEVELOPMENT,TRAVEL&EVENTS-HOTELS,REDFERN TRAVEL LTD,0000223446,208.97
DEPARTMENT OF ENERGY AND CLIMATE CHANGE,THE COAL AUTHORITY,08/10/2015,HOTEL ACCOMMODATION,RESEARCH & DEVELOPMENT,TRAVEL&EVENTS-HOTELS,COMPANY BARCLAYCARD,0000223751,372.12
DEPARTMENT OF ENERGY AND CLIMATE CHANGE,THE COAL AUTHORITY,08/10/2015,INCIDENTALS,RESEARCH & DEVELOPMENT,VEHICLES-FLEET MANAGEMENT,COMPANY BARCLAYCARD,0000223721,46.00
DEPARTMENT OF ENERGY AND CLIMATE CHANGE,THE COAL AUTHORITY,08/10/2015,SUBSISTENCE ALLOWANCES,RESEARCH & DEVELOPMENT,FACILITIES - FOOD,COMPANY BARCLAYCARD,0000223667,5.47
DEPARTMENT OF ENERGY AND CLIMATE CHANGE,THE COAL AUTHORITY,08/10/2015,SUBSISTENCE ALLOWANCES,RESEARCH & DEVELOPMENT,FACILITIES - FOOD,COMPANY BARCLAYCARD,0000223680,23.22
DEPARTMENT OF ENERGY AND CLIMATE CHANGE,THE COAL AUTHORITY,08/10/2015,SUBSISTENCE ALLOWANCES,RESEARCH & DEVELOPMENT,FACILITIES - FOOD,COMPANY BARCLAYCARD,0000223721,53.19
DEPARTMENT OF ENERGY AND CLIMATE CHANGE,THE COAL AUTHORITY,12/10/2015,CENTRAL TRAINING BUDGET,SHE,PROF SER LRNG&DEV-STAFF TRNING,DEVELOP TRAINING LIMITED,0000223595,258.00
DEPARTMENT OF ENERGY AND CLIMATE CHANGE,THE COAL AUTHORITY,21/10/2015,CENTRAL TRAINING BUDGET,SHE,PROF SER LRNG&DEV-STAFF TRNING,RISK & SAFETY MANAGEMENT,0000223731,489.25
DEPARTMENT OF ENERGY AND CLIMATE CHANGE,THE COAL AUTHORITY,22/10/2015,CENTRAL TRAINING BUDGET,SHE,PROF SER LRNG&DEV-STAFF TRNING,RISK & SAFETY MANAGEMENT,0000223817,660.00
DEPARTMENT OF ENERGY AND CLIMATE CHANGE,THE COAL AUTHORITY,27/10/2015,CENTRAL TRAINING BUDGET,SHE,PROF SER LRNG&DEV-STAFF TRNING,MINES RESCUE SERVICE LIMI,0000223858,194.00
DEPARTMENT OF ENERGY AND CLIMATE CHANGE,THE COAL AUTHORITY,26/10/2015,CENTRAL TRAINING BUDGET,SHE,PROF SER LRNG&DEV-STAFF TRNING,RMVE 223731 PAID BY GPC,36001292,-489.25
DEPARTMENT OF ENERGY AND CLIMATE CHANGE,THE COAL AUTHORITY,05/10/2015,CONSULTANCY,SHE,PROF SER CNSLTNCY-TCHNL CNSLTY,ALPHABET (UK) FLEET MAN L,0000223517,550.00
DEPARTMENT OF ENERGY AND CLIMATE CHANGE,THE COAL AUTHORITY,30/09/2015,CONSULTANCY,SHE,PERSONNEL RLTD-STAFF H&S,MORTON HODSON MAN CONS,0000223623,895.50
DEPARTMENT OF ENERGY AND CLIMATE CHANGE,THE COAL AUTHORITY,08/10/2015,FUEL (VEHICLE),SHE,FUELS/LUBRCNT/GAS-FUELS,COMPANY BARCLAYCARD,0000223834,65.33
DEPARTMENT OF ENERGY AND CLIMATE CHANGE,THE COAL AUTHORITY,30/09/2015,HOTEL ACCOMMODATION,SHE,TRAVEL&EVENTS-HOTELS,REDFERN TRAVEL LTD,0000223446,81.71
DEPARTMENT OF ENERGY AND CLIMATE CHANGE,THE COAL AUTHORITY,08/10/2015,INCIDENTALS,SHE,VEHICLES-FLEET MANAGEMENT,COMPANY BARCLAYCARD,0000223834,10.42
DEPARTMENT OF ENERGY AND CLIMATE CHANGE,THE COAL AUTHORITY,23/10/2015,MILEAGE PAYMENTS,SHE,FUELS/LUBRCNT/GAS-FUELS,STAFF EXPENSES CONTROL,0000223800,7.82
DEPARTMENT OF ENERGY AND CLIMATE CHANGE,THE COAL AUTHORITY,08/10/2015,SAFETY CLOTHING,SHE,OPRTNL GOODS&SERV-CLOTHING,COMPANY BARCLAYCARD,0000223657,24.70
DEPARTMENT OF ENERGY AND CLIMATE CHANGE,THE COAL AUTHORITY,12/10/2015,SAFETY CLOTHING,SHE,OPRTNL GOODS&SERV-CLOTHING,ARCO LIMITED,0000223716,221.99
DEPARTMENT OF ENERGY AND CLIMATE CHANGE,THE COAL AUTHORITY,13/10/2015,SAFETY CLOTHING,SHE,OPRTNL GOODS&SERV-CLOTHING,ARCO LIMITED,0000223717,9.13
DEPARTMENT OF ENERGY AND CLIMATE CHANGE,THE COAL AUTHORITY,08/10/2015,SAFETY CLOTHING,SHE,OPRTNL GOODS&SERV-CLOTHING,COMPANY BARCLAYCARD,0000223726,6.71
DEPARTMENT OF ENERGY AND CLIMATE CHANGE,THE COAL AUTHORITY,19/10/2015,SAFETY CLOTHING,SHE,OPRTNL GOODS&SERV-CLOTHING,ARCO LIMITED,0000223822,817.46
DEPARTMENT OF ENERGY AND CLIMATE CHANGE,THE COAL AUTHORITY,19/10/2015,SAFETY CLOTHING,SHE,OPRTNL GOODS&SERV-CLOTHING,ARCO LIMITED,0000223823,291.44
DEPARTMENT OF ENERGY AND CLIMATE CHANGE,THE COAL AUTHORITY,19/10/2015,SAFETY CLOTHING,SHE,OPRTNL GOODS&SERV-CLOTHING,ARCO LIMITED,0000223824,65.58
DEPARTMENT OF ENERGY AND CLIMATE CHANGE,THE COAL AUTHORITY,16/10/2015,SAFETY CLOTHING,SHE,OPRTNL GOODS&SERV-CLOTHING,ARCO LIMITED,0000223825,6.85
DEPARTMENT OF ENERGY AND CLIMATE CHANGE,THE COAL AUTHORITY,15/10/2015,SAFETY CLOTHING,SHE,OPRTNL GOODS&SERV-CLOTHING,ARCO LIMITED,0000223826,54.52
DEPARTMENT OF ENERGY AND CLIMATE CHANGE,THE COAL AUTHORITY,20/10/2015,SAFETY CLOTHING,SHE,OPRTNL GOODS&SERV-CLOTHING,ARCO LIMITED,0000223845,225.00
DEPARTMENT OF ENERGY AND CLIMATE CHANGE,THE COAL AUTHORITY,22/10/2015,SAFETY CLOTHING,SHE,OPRTNL GOODS&SERV-CLOTHING,ARCO LIMITED,0000223903,39.61
DEPARTMENT OF ENERGY AND CLIMATE CHANGE,THE COAL AUTHORITY,21/10/2015,SAFETY CLOTHING,SHE,OPRTNL GOODS&SERV-CLOTHING,ARCO LIMITED,0000223904,10.59
DEPARTMENT OF ENERGY AND CLIMATE CHANGE,THE COAL AUTHORITY,21/10/2015,SAFETY CLOTHING,SHE,OPRTNL GOODS&SERV-CLOTHING,ARCO LIMITED,0000223905,39.61
DEPARTMENT OF ENERGY AND CLIMATE CHANGE,THE COAL AUTHORITY,21/10/2015,SAFETY CLOTHING,SHE,OPRTNL GOODS&SERV-CLOTHING,ARCO LIMITED,0000223906,39.61
DEPARTMENT OF ENERGY AND CLIMATE CHANGE,THE COAL AUTHORITY,08/10/2015,SUBSISTENCE ALLOWANCES,SHE,FACILITIES - FOOD,COMPANY BARCLAYCARD,0000223657,10.20
DEPARTMENT OF ENERGY AND CLIMATE CHANGE,THE COAL AUTHORITY,08/10/2015,SUBSISTENCE ALLOWANCES,SHE,FACILITIES - FOOD,COMPANY BARCLAYCARD,0000223664,84.49
DEPARTMENT OF ENERGY AND CLIMATE CHANGE,THE COAL AUTHORITY,08/10/2015,SUBSISTENCE ALLOWANCES,SHE,FACILITIES - FOOD,COMPANY BARCLAYCARD,0000223727,151.44
DEPARTMENT OF ENERGY AND CLIMATE CHANGE,THE COAL AUTHORITY,23/10/2015,SUBSISTENCE ALLOWANCES,SHE,FACILITIES - FOOD,STAFF EXPENSES CONTROL,0000223810,6.25
DEPARTMENT OF ENERGY AND CLIMATE CHANGE,THE COAL AUTHORITY,08/10/2015,SUBSISTENCE ALLOWANCES,SHE,FACILITIES - FOOD,COMPANY BARCLAYCARD,0000223834,35.40
DEPARTMENT OF ENERGY AND CLIMATE CHANGE,THE COAL AUTHORITY,08/10/2015,CNTRCTR & CLAIM CSTS-BRDGEWATR,SUBSIDENCE,CONSTRUCTION-MAIN CONTRACTORS,THE BRIDGEWATER CANAL CO,0000223465,24330.16
DEPARTMENT OF ENERGY AND CLIMATE CHANGE,THE COAL AUTHORITY,08/10/2015,CNTRCTR & CLAIM CSTS-BRDGEWATR,SUBSIDENCE,CONSTRUCTION-MAIN CONTRACTORS,THE BRIDGEWATER CANAL CO,0000223466,520.67
DEPARTMENT OF ENERGY AND CLIMATE CHANGE,THE COAL AUTHORITY,14/10/2015,CNTRCTR & CLAIM CSTS-BRDGEWATR,SUBSIDENCE,CONSTRUCTION-MAIN CONTRACTORS,THE BRIDGEWATER CANAL CO,0000223508,5043.09
DEPARTMENT OF ENERGY AND CLIMATE CHANGE,THE COAL AUTHORITY,27/08/2015,CONTRACTORS AND CLAIM COSTS,SUBSIDENCE,ENERGY&UTILITIES-ELECTRICITY,BRITISH GAS TRADING LTD,0000222627,177.46
DEPARTMENT OF ENERGY AND CLIMATE CHANGE,THE COAL AUTHORITY,30/09/2015,CONTRACTORS AND CLAIM COSTS,SUBSIDENCE,"CONSTRUCTION-BLD,REPR&MAINTNCE",WORKS AT HIGH STONE CHEST,0000223204,4000.00
DEPARTMENT OF ENERGY AND CLIMATE CHANGE,THE COAL AUTHORITY,29/09/2015,CONTRACTORS AND CLAIM COSTS,SUBSIDENCE,CONSTRUCTION-CNSTRN SER PROVDR,CORNERSTONE  PROJECTS LTD,0000223230,217.90
DEPARTMENT OF ENERGY AND CLIMATE CHANGE,THE COAL AUTHORITY,02/10/2015,CONTRACTORS AND CLAIM COSTS,SUBSIDENCE,"CONSTRUCTION-BLD,REPR&MAINTNCE",LOSS OF GRAZING,0000223276,1570.76
DEPARTMENT OF ENERGY AND CLIMATE CHANGE,THE COAL AUTHORITY,29/09/2015,CONTRACTORS AND CLAIM COSTS,SUBSIDENCE,PROF SER-LEGAL SERVICES,WARDELL ARMSTRONG LLP,0000223291,2160.00
DEPARTMENT OF ENERGY AND CLIMATE CHANGE,THE COAL AUTHORITY,29/09/2015,CONTRACTORS AND CLAIM COSTS,SUBSIDENCE,CONSTRUCTION-MAIN CONTRACTORS,NAL PLANT LIMITED,0000223295,548.87
DEPARTMENT OF ENERGY AND CLIMATE CHANGE,THE COAL AUTHORITY,29/09/2015,CONTRACTORS AND CLAIM COSTS,SUBSIDENCE,CONSTRUCTION-MAIN CONTRACTORS,NAL PLANT LIMITED,0000223296,504.00
DEPARTMENT OF ENERGY AND CLIMATE CHANGE,THE COAL AUTHORITY,29/09/2015,CONTRACTORS AND CLAIM COSTS,SUBSIDENCE,CONSTRUCTION-MAIN CONTRACTORS,NAL PLANT LIMITED,0000223297,3762.00
DEPARTMENT OF ENERGY AND CLIMATE CHANGE,THE COAL AUTHORITY,12/10/2015,CONTRACTORS AND CLAIM COSTS,SUBSIDENCE,PROF SER-OPERATIONAL SERVICES,VALUATION FEE,0000223300,1440.00
DEPARTMENT OF ENERGY AND CLIMATE CHANGE,THE COAL AUTHORITY,12/10/2015,CONTRACTORS AND CLAIM COSTS,SUBSIDENCE,PROF SER-OPERATIONAL SERVICES,ADMIN FEE FOR RE-HOUSING,0000223301,500.00
DEPARTMENT OF ENERGY AND CLIMATE CHANGE,THE COAL AUTHORITY,12/10/2015,CONTRACTORS AND CLAIM COSTS,SUBSIDENCE,FACILITIES-ACCOMDTN SERVICES,RENT FOR 25 MILLER STREET,0000223301,455.00
DEPARTMENT OF ENERGY AND CLIMATE CHANGE,THE COAL AUTHORITY,12/10/2015,CONTRACTORS AND CLAIM COSTS,SUBSIDENCE,PROF SER-OPERATIONAL SERVICES,ADMIN FEE RE-HOUSING J ER,0000223302,500.00
DEPARTMENT OF ENERGY AND CLIMATE CHANGE,THE COAL AUTHORITY,12/10/2015,CONTRACTORS AND CLAIM COSTS,SUBSIDENCE,FACILITIES-ACCOMDTN SERVICES,RENT FOR ALTERNATIVE ACCO,0000223302,650.00
DEPARTMENT OF ENERGY AND CLIMATE CHANGE,THE COAL AUTHORITY,12/10/2015,CONTRACTORS AND CLAIM COSTS,SUBSIDENCE,FACILITIES - FOOD,TOP UP ELECTRIC 25 MILLER,0000223308,30.00
DEPARTMENT OF ENERGY AND CLIMATE CHANGE,THE COAL AUTHORITY,12/10/2015,CONTRACTORS AND CLAIM COSTS,SUBSIDENCE,FACILITIES-ACCOMDTN SERVICES,STORAGE OF HOUSE CONTENTS,0000223310,146.64
DEPARTMENT OF ENERGY AND CLIMATE CHANGE,THE COAL AUTHORITY,12/10/2015,CONTRACTORS AND CLAIM COSTS,SUBSIDENCE,CONSTRUCTION-CNSTRN SER PROVDR,CORNERSTONE  PROJECTS LTD,0000223396,98.00
DEPARTMENT OF ENERGY AND CLIMATE CHANGE,THE COAL AUTHORITY,12/10/2015,CONTRACTORS AND CLAIM COSTS,SUBSIDENCE,CONSTRUCTION-CNSTRN SER PROVDR,COMPANY BARCLAYCARD,0000223399,58.00
DEPARTMENT OF ENERGY AND CLIMATE CHANGE,THE COAL AUTHORITY,12/10/2015,CONTRACTORS AND CLAIM COSTS,SUBSIDENCE,CONSTRUCTION-CNSTRN SER PROVDR,CORNERSTONE  PROJECTS LTD,0000223400,58.00
DEPARTMENT OF ENERGY AND CLIMATE CHANGE,THE COAL AUTHORITY,13/10/2015,CONTRACTORS AND CLAIM COSTS,SUBSIDENCE,"CONSTRUCTION-BLD,REPR&MAINTNCE",RE-IMBURSE INCENTIVE RAPE,0000223430,178.00
DEPARTMENT OF ENERGY AND CLIMATE CHANGE,THE COAL AUTHORITY,30/09/2015,CONTRACTORS AND CLAIM COSTS,SUBSIDENCE,CONSTRUCTION-MAIN CONTRACTORS,NAL PLANT LIMITED,0000223453,803.82
DEPARTMENT OF ENERGY AND CLIMATE CHANGE,THE COAL AUTHORITY,06/10/2015,CONTRACTORS AND CLAIM COSTS,SUBSIDENCE,CONSTRUCTION-MAIN CONTRACTORS,LLETTYSHENKIN CONS CO LTD,0000223459,76.00
DEPARTMENT OF ENERGY AND CLIMATE CHANGE,THE COAL AUTHORITY,08/10/2015,CONTRACTORS AND CLAIM COSTS,SUBSIDENCE,CONSTRUCTION-MAIN CONTRACTORS,GEOL-CONSULTANTS LTD,0000223473,1330.00
DEPARTMENT OF ENERGY AND CLIMATE CHANGE,THE COAL AUTHORITY,08/10/2015,CONTRACTORS AND CLAIM COSTS,SUBSIDENCE,CONSTRUCTION-MAIN CONTRACTORS,GEOL-CONSULTANTS LTD,0000223475,1330.00
DEPARTMENT OF ENERGY AND CLIMATE CHANGE,THE COAL AUTHORITY,15/10/2015,CONTRACTORS AND CLAIM COSTS,SUBSIDENCE,PROF SER-OPERATIONAL SERVICES,AGENTS FEES LAND WEST OF,0000223491,875.17
DEPARTMENT OF ENERGY AND CLIMATE CHANGE,THE COAL AUTHORITY,15/10/2015,CONTRACTORS AND CLAIM COSTS,SUBSIDENCE,PROF SER-OPERATIONAL SERVICES,AGENTS FEES LAND EAST OF,0000223491,879.16
DEPARTMENT OF ENERGY AND CLIMATE CHANGE,THE COAL AUTHORITY,15/10/2015,CONTRACTORS AND CLAIM COSTS,SUBSIDENCE,PROF SER-OPERATIONAL SERVICES,AGENTS FEES,0000223492,883.68
DEPARTMENT OF ENERGY AND CLIMATE CHANGE,THE COAL AUTHORITY,15/10/2015,CONTRACTORS AND CLAIM COSTS,SUBSIDENCE,"CONSTRUCTION-BLD,REPR&MAINTNCE",ADVANCE PAYMENT FOR WORKS,0000223493,6900.00
DEPARTMENT OF ENERGY AND CLIMATE CHANGE,THE COAL AUTHORITY,14/10/2015,CONTRACTORS AND CLAIM COSTS,SUBSIDENCE,CONSTRUCTION-MAIN CONTRACTORS,NAL PLANT LIMITED,0000223568,1193.71
DEPARTMENT OF ENERGY AND CLIMATE CHANGE,THE COAL AUTHORITY,14/10/2015,CONTRACTORS AND CLAIM COSTS,SUBSIDENCE,CONSTRUCTION-MAIN CONTRACTORS,NAL PLANT LIMITED,0000223569,180.81
DEPARTMENT OF ENERGY AND CLIMATE CHANGE,THE COAL AUTHORITY,16/10/2015,CONTRACTORS AND CLAIM COSTS,SUBSIDENCE,PROF SER-OPERATIONAL SERVICES,AGENTS FEES,0000223573,330.38
DEPARTMENT OF ENERGY AND CLIMATE CHANGE,THE COAL AUTHORITY,16/10/2015,CONTRACTORS AND CLAIM COSTS,SUBSIDENCE,PROF SER-OPERATIONAL SERVICES,AGENTS FEES,0000223574,333.45
DEPARTMENT OF ENERGY AND CLIMATE CHANGE,THE COAL AUTHORITY,07/10/2015,CONTRACTORS AND CLAIM COSTS,SUBSIDENCE,CONSTRUCTION-MAIN CONTRACTORS,JIM DAVIES CIVIL ENGINEER,0000223620,3316.76
DEPARTMENT OF ENERGY AND CLIMATE CHANGE,THE COAL AUTHORITY,20/10/2015,CONTRACTORS AND CLAIM COSTS,SUBSIDENCE,"CONSTRUCTION-BLD,REPR&MAINTNCE",FENCING OF COLLAPSE,0000223648,100.00
DEPARTMENT OF ENERGY AND CLIMATE CHANGE,THE COAL AUTHORITY,08/10/2015,CONTRACTORS AND CLAIM COSTS,SUBSIDENCE,FACILITIES-ACCOMDTN SERVICES,COMPANY BARCLAYCARD,0000223651,643.44
DEPARTMENT OF ENERGY AND CLIMATE CHANGE,THE COAL AUTHORITY,08/10/2015,CONTRACTORS AND CLAIM COSTS,SUBSIDENCE,OPRTNL GOODS&SERV-ELEC MNTRING,COMPANY BARCLAYCARD,0000223691,100.80
DEPARTMENT OF ENERGY AND CLIMATE CHANGE,THE COAL AUTHORITY,20/10/2015,CONTRACTORS AND CLAIM COSTS,SUBSIDENCE,CONSTRUCTION-MAIN CONTRACTORS,ALLIANCE GROUP SOLUTIONS,0000223704,234.37
DEPARTMENT OF ENERGY AND CLIMATE CHANGE,THE COAL AUTHORITY,20/10/2015,CONTRACTORS AND CLAIM COSTS,SUBSIDENCE,CONSTRUCTION-MAIN CONTRACTORS,NAL PLANT LIMITED,0000223736,357.51
DEPARTMENT OF ENERGY AND CLIMATE CHANGE,THE COAL AUTHORITY,27/10/2015,CONTRACTORS AND CLAIM COSTS,SUBSIDENCE,"CONSTRUCTION-BLD,REPR&MAINTNCE",INTERIM SECTION 8 PAYMENT,0000223838,6500.00
DEPARTMENT OF ENERGY AND CLIMATE CHANGE,THE COAL AUTHORITY,27/10/2015,CONTRACTORS AND CLAIM COSTS,SUBSIDENCE,"CONSTRUCTION-BLD,REPR&MAINTNCE",INTERIM SECTION 8 PAYMENT,0000223839,1000.00
DEPARTMENT OF ENERGY AND CLIMATE CHANGE,THE COAL AUTHORITY,23/10/2015,CONTRACTORS AND CLAIM COSTS,SUBSIDENCE,CONSTRUCTION-MAIN CONTRACTORS,ALLIANCE GROUP SOLUTIONS,0000223850,417.00
DEPARTMENT OF ENERGY AND CLIMATE CHANGE,THE COAL AUTHORITY,23/10/2015,CONTRACTORS AND CLAIM COSTS,SUBSIDENCE,CONSTRUCTION-MAIN CONTRACTORS,ALLIANCE GROUP SOLUTIONS,0000223856,417.00
DEPARTMENT OF ENERGY AND CLIMATE CHANGE,THE COAL AUTHORITY,28/10/2015,CONTRACTORS AND CLAIM COSTS,SUBSIDENCE,"CONSTRUCTION-BLD,REPR&MAINTNCE",PAYMENT FOR UNDISCHARGED,0000223913,471.88
DEPARTMENT OF ENERGY AND CLIMATE CHANGE,THE COAL AUTHORITY,28/10/2015,CONTRACTORS AND CLAIM COSTS,SUBSIDENCE,CONSTRUCTION-CNSTRN SER PROVDR,CORNERSTONE  PROJECTS LTD,0000223930,121.00
DEPARTMENT OF ENERGY AND CLIMATE CHANGE,THE COAL AUTHORITY,13/10/2015,CONTRACTORS AND CLAIM COSTS,SUBSIDENCE,CONSTRUCTION-CNSTRN SER PROVDR,RMVE 223399 POST ERROR,36001244,-69.60
DEPARTMENT OF ENERGY AND CLIMATE CHANGE,THE COAL AUTHORITY,27/10/2015,CONTRACTORS AND CLAIM COSTS,SUBSIDENCE,ENERGY&UTILITIES-ELECTRICITY,RMV DC 222627 RE-ISSUE BG,36001306,-177.46
DEPARTMENT OF ENERGY AND CLIMATE CHANGE,THE COAL AUTHORITY,02/09/2015,LEGAL COSTS,SUBSIDENCE,PROF SER-LEGAL SERVICES,WALKER MORRIS,0000223212,-2880.35
DEPARTMENT OF ENERGY AND CLIMATE CHANGE,THE COAL AUTHORITY,09/09/2015,LEGAL COSTS,SUBSIDENCE,PROF SER-LEGAL SERVICES,WALKER MORRIS,0000223213,2630.90
DEPARTMENT OF ENERGY AND CLIMATE CHANGE,THE COAL AUTHORITY,02/09/2015,LEGAL COSTS,SUBSIDENCE,PROF SER-LEGAL SERVICES,WALKER MORRIS,0000223214,2880.35
DEPARTMENT OF ENERGY AND CLIMATE CHANGE,THE COAL AUTHORITY,05/10/2015,LEGAL COSTS,SUBSIDENCE,PROF SER-LEGAL SERVICES,DLA PIPER UK LLP,0000223419,3982.50
DEPARTMENT OF ENERGY AND CLIMATE CHANGE,THE COAL AUTHORITY,16/10/2015,CURR YR ADDNS SUBS PMPNG STNS,SUBSIDENCE PUMPING STATIONS,FUELS/LUBRCNT/GAS-FUELS,EXPENSES TO ATTEND MEETIN,0000223599,280.80
DEPARTMENT OF ENERGY AND CLIMATE CHANGE,THE COAL AUTHORITY,16/10/2015,SUB PUMP STTN MAINTENANCE-OTHR,SUBSIDENCE PUMPING STATIONS,PROF SER FNCL-INSURANCE SRVCE,DANVM DRAINAGE COMMISSION,0000223640,87.59
DEPARTMENT OF ENERGY AND CLIMATE CHANGE,THE COAL AUTHORITY,16/10/2015,SUB PUMP STTN MAINTENANCE-OTHR,SUBSIDENCE PUMPING STATIONS,PROF SER FNCL-INSURANCE SRVCE,DANVM DRAINAGE COMMISSION,0000223640,197.07
DEPARTMENT OF ENERGY AND CLIMATE CHANGE,THE COAL AUTHORITY,16/10/2015,SUB PUMP STTN MAINTENANCE-OTHR,SUBSIDENCE PUMPING STATIONS,PROF SER FNCL-INSURANCE SRVCE,DANVM DRAINAGE COMMISSION,0000223640,131.39
DEPARTMENT OF ENERGY AND CLIMATE CHANGE,THE COAL AUTHORITY,16/10/2015,SUB PUMP STTN MAINTENANCE-OTHR,SUBSIDENCE PUMPING STATIONS,PROF SER FNCL-INSURANCE SRVCE,DANVM DRAINAGE COMMISSION,0000223640,131.38
DEPARTMENT OF ENERGY AND CLIMATE CHANGE,THE COAL AUTHORITY,16/10/2015,SUB PUMP STTN MAINTENANCE-OTHR,SUBSIDENCE PUMPING STATIONS,PROF SER FNCL-INSURANCE SRVCE,DANVM DRAINAGE COMMISSION,0000223640,232.55
DEPARTMENT OF ENERGY AND CLIMATE CHANGE,THE COAL AUTHORITY,16/10/2015,SUB PUMP STTN MAINTENANCE-OTHR,SUBSIDENCE PUMPING STATIONS,PROF SER FNCL-INSURANCE SRVCE,DANVM DRAINAGE COMMISSION,0000223640,197.08
DEPARTMENT OF ENERGY AND CLIMATE CHANGE,THE COAL AUTHORITY,16/10/2015,SUB PUMP STTN MAINTENANCE-OTHR,SUBSIDENCE PUMPING STATIONS,PROF SER FNCL-INSURANCE SRVCE,DANVM DRAINAGE COMMISSION,0000223640,197.08
DEPARTMENT OF ENERGY AND CLIMATE CHANGE,THE COAL AUTHORITY,16/10/2015,SUB PUMP STTN MAINTENANCE-OTHR,SUBSIDENCE PUMPING STATIONS,ENERGY&UTILITIES-WATER,DANVM DRAINAGE COMMISSION,0000223640,37.50
DEPARTMENT OF ENERGY AND CLIMATE CHANGE,THE COAL AUTHORITY,16/10/2015,SUB PUMP STTN MAINTENANCE-OTHR,SUBSIDENCE PUMPING STATIONS,ENERGY&UTILITIES-WATER,DANVM DRAINAGE COMMISSION,0000223640,2162.00
DEPARTMENT OF ENERGY AND CLIMATE CHANGE,THE COAL AUTHORITY,16/10/2015,SUB PUMP STTN MAINTENANCE-OTHR,SUBSIDENCE PUMPING STATIONS,ENERGY&UTILITIES-WATER,DANVM DRAINAGE COMMISSION,0000223640,37.50
DEPARTMENT OF ENERGY AND CLIMATE CHANGE,THE COAL AUTHORITY,16/10/2015,SUB PUMP STTN MAINTENANCE-OTHR,SUBSIDENCE PUMPING STATIONS,ENERGY&UTILITIES-WATER,DANVM DRAINAGE COMMISSION,0000223640,75.00
DEPARTMENT OF ENERGY AND CLIMATE CHANGE,THE COAL AUTHORITY,16/10/2015,SUB PUMP STTN MAINTENANCE-OTHR,SUBSIDENCE PUMPING STATIONS,ENERGY&UTILITIES-WATER,DANVM DRAINAGE COMMISSION,0000223640,25.00
DEPARTMENT OF ENERGY AND CLIMATE CHANGE,THE COAL AUTHORITY,16/10/2015,SUB PUMP STTN MAINTENANCE-OTHR,SUBSIDENCE PUMPING STATIONS,ICT-TELECOMS,DANVM DRAINAGE COMMISSION,0000223640,354.17
DEPARTMENT OF ENERGY AND CLIMATE CHANGE,THE COAL AUTHORITY,16/10/2015,SUB PUMP STTN MAINTENANCE-OTHR,SUBSIDENCE PUMPING STATIONS,ICT-TELECOMS,DANVM DRAINAGE COMMISSION,0000223640,473.45
DEPARTMENT OF ENERGY AND CLIMATE CHANGE,THE COAL AUTHORITY,16/10/2015,SUB PUMP STTN MAINTENANCE-OTHR,SUBSIDENCE PUMPING STATIONS,ICT-TELECOMS,DANVM DRAINAGE COMMISSION,0000223640,399.30
DEPARTMENT OF ENERGY AND CLIMATE CHANGE,THE COAL AUTHORITY,16/10/2015,SUB PUMP STTN MAINTENANCE-OTHR,SUBSIDENCE PUMPING STATIONS,ICT-TELECOMS,DANVM DRAINAGE COMMISSION,0000223640,406.80
DEPARTMENT OF ENERGY AND CLIMATE CHANGE,THE COAL AUTHORITY,16/10/2015,SUB PUMP STTN MAINTENANCE-OTHR,SUBSIDENCE PUMPING STATIONS,ICT-TELECOMS,DANVM DRAINAGE COMMISSION,0000223640,202.95
DEPARTMENT OF ENERGY AND CLIMATE CHANGE,THE COAL AUTHORITY,16/10/2015,SUB PUMP STTN MAINTENANCE-OTHR,SUBSIDENCE PUMPING STATIONS,ICT-TELECOMS,DANVM DRAINAGE COMMISSION,0000223640,401.40
DEPARTMENT OF ENERGY AND CLIMATE CHANGE,THE COAL AUTHORITY,16/10/2015,SUB PUMP STTN MAINTENANCE-OTHR,SUBSIDENCE PUMPING STATIONS,ICT-TELECOMS,DANVM DRAINAGE COMMISSION,0000223640,399.45
DEPARTMENT OF ENERGY AND CLIMATE CHANGE,THE COAL AUTHORITY,16/10/2015,SUB PUMP STTN MAINTENANCE-OTHR,SUBSIDENCE PUMPING STATIONS,ICT-TELECOMS,DANVM DRAINAGE COMMISSION,0000223640,133.03
DEPARTMENT OF ENERGY AND CLIMATE CHANGE,THE COAL AUTHORITY,16/10/2015,SUB PUMP STTN MAINTENANCE-OTHR,SUBSIDENCE PUMPING STATIONS,ICT-TELECOMS,DANVM DRAINAGE COMMISSION,0000223640,467.63
DEPARTMENT OF ENERGY AND CLIMATE CHANGE,THE COAL AUTHORITY,16/10/2015,SUB PUMP STTN MAINTENANCE-OTHR,SUBSIDENCE PUMPING STATIONS,ICT-TELECOMS,DANVM DRAINAGE COMMISSION,0000223640,399.90
DEPARTMENT OF ENERGY AND CLIMATE CHANGE,THE COAL AUTHORITY,16/10/2015,SUB PUMP STTN MAINTENANCE-OTHR,SUBSIDENCE PUMPING STATIONS,ICT-TELECOMS,DANVM DRAINAGE COMMISSION,0000223640,399.00
DEPARTMENT OF ENERGY AND CLIMATE CHANGE,THE COAL AUTHORITY,16/10/2015,SUB PUMP STTN MAINTENANCE-OTHR,SUBSIDENCE PUMPING STATIONS,ICT-TELECOMS,DANVM DRAINAGE COMMISSION,0000223640,476.47
DEPARTMENT OF ENERGY AND CLIMATE CHANGE,THE COAL AUTHORITY,16/10/2015,SUB PUMP STTN MAINTENANCE-OTHR,SUBSIDENCE PUMPING STATIONS,ICT-TELECOMS,DANVM DRAINAGE COMMISSION,0000223640,489.84
DEPARTMENT OF ENERGY AND CLIMATE CHANGE,THE COAL AUTHORITY,16/10/2015,SUB PUMP STTN MAINTENANCE-OTHR,SUBSIDENCE PUMPING STATIONS,ICT-TELECOMS,DANVM DRAINAGE COMMISSION,0000223640,299.73
DEPARTMENT OF ENERGY AND CLIMATE CHANGE,THE COAL AUTHORITY,16/10/2015,SUB PUMP STTN MAINTENANCE-OTHR,SUBSIDENCE PUMPING STATIONS,ICT-TELECOMS,DANVM DRAINAGE COMMISSION,0000223640,399.00
DEPARTMENT OF ENERGY AND CLIMATE CHANGE,THE COAL AUTHORITY,16/10/2015,SUB PUMP STTN MAINTENANCE-OTHR,SUBSIDENCE PUMPING STATIONS,ICT-TELECOMS,DANVM DRAINAGE COMMISSION,0000223640,283.44
DEPARTMENT OF ENERGY AND CLIMATE CHANGE,THE COAL AUTHORITY,16/10/2015,SUB PUMP STTN MAINTENANCE-OTHR,SUBSIDENCE PUMPING STATIONS,ICT-TELECOMS,DANVM DRAINAGE COMMISSION,0000223640,411.90
DEPARTMENT OF ENERGY AND CLIMATE CHANGE,THE COAL AUTHORITY,16/10/2015,SUB PUMP STTN MAINTENANCE-OTHR,SUBSIDENCE PUMPING STATIONS,ICT-TELECOMS,DANVM DRAINAGE COMMISSION,0000223640,399.90
DEPARTMENT OF ENERGY AND CLIMATE CHANGE,THE COAL AUTHORITY,16/10/2015,SUB PUMP STTN MAINTENANCE-OTHR,SUBSIDENCE PUMPING STATIONS,ICT-TELECOMS,DANVM DRAINAGE COMMISSION,0000223640,399.00
DEPARTMENT OF ENERGY AND CLIMATE CHANGE,THE COAL AUTHORITY,16/10/2015,SUB PUMP STTN MAINTENANCE-OTHR,SUBSIDENCE PUMPING STATIONS,ICT-TELECOMS,DANVM DRAINAGE COMMISSION,0000223640,400.20
DEPARTMENT OF ENERGY AND CLIMATE CHANGE,THE COAL AUTHORITY,16/10/2015,SUB PUMP STTN MAINTENANCE-OTHR,SUBSIDENCE PUMPING STATIONS,ICT-TELECOMS,DANVM DRAINAGE COMMISSION,0000223640,399.15
DEPARTMENT OF ENERGY AND CLIMATE CHANGE,THE COAL AUTHORITY,16/10/2015,SUB PUMP STTN MAINTENANCE-OTHR,SUBSIDENCE PUMPING STATIONS,ICT-TELECOMS,DANVM DRAINAGE COMMISSION,0000223640,403.20
DEPARTMENT OF ENERGY AND CLIMATE CHANGE,THE COAL AUTHORITY,16/10/2015,SUB PUMP STTN MAINTENANCE-OTHR,SUBSIDENCE PUMPING STATIONS,ICT-TELECOMS,DANVM DRAINAGE COMMISSION,0000223640,399.30
DEPARTMENT OF ENERGY AND CLIMATE CHANGE,THE COAL AUTHORITY,16/10/2015,SUB PUMP STTN MAINTENANCE-OTHR,SUBSIDENCE PUMPING STATIONS,ICT-TELECOMS,DANVM DRAINAGE COMMISSION,0000223640,199.95
DEPARTMENT OF ENERGY AND CLIMATE CHANGE,THE COAL AUTHORITY,16/10/2015,SUB PUMP STTN MAINTENANCE-OTHR,SUBSIDENCE PUMPING STATIONS,ICT-TELECOMS,DANVM DRAINAGE COMMISSION,0000223640,300.16
DEPARTMENT OF ENERGY AND CLIMATE CHANGE,THE COAL AUTHORITY,16/10/2015,SUB PUMP STTN MAINTENANCE-OTHR,SUBSIDENCE PUMPING STATIONS,ICT-TELECOMS,DANVM DRAINAGE COMMISSION,0000223640,440.30
DEPARTMENT OF ENERGY AND CLIMATE CHANGE,THE COAL AUTHORITY,16/10/2015,SUB PUMP STTN MAINTENANCE-OTHR,SUBSIDENCE PUMPING STATIONS,ICT-TELECOMS,DANVM DRAINAGE COMMISSION,0000223640,301.52
DEPARTMENT OF ENERGY AND CLIMATE CHANGE,THE COAL AUTHORITY,16/10/2015,SUB PUMP STTN MAINTENANCE-OTHR,SUBSIDENCE PUMPING STATIONS,"CONSTRUCTION-BLD,REPR&MAINTNCE",DANVM DRAINAGE COMMISSION,0000223640,2244.00
DEPARTMENT OF ENERGY AND CLIMATE CHANGE,THE COAL AUTHORITY,16/10/2015,SUB PUMP STTN MAINTENANCE-OTHR,SUBSIDENCE PUMPING STATIONS,"CONSTRUCTION-BLD,REPR&MAINTNCE",DANVM DRAINAGE COMMISSION,0000223640,738.00
DEPARTMENT OF ENERGY AND CLIMATE CHANGE,THE COAL AUTHORITY,16/10/2015,SUB PUMP STTN MAINTENANCE-OTHR,SUBSIDENCE PUMPING STATIONS,"CONSTRUCTION-BLD,REPR&MAINTNCE",DANVM DRAINAGE COMMISSION,0000223640,3410.00
DEPARTMENT OF ENERGY AND CLIMATE CHANGE,THE COAL AUTHORITY,16/10/2015,SUB PUMP STTN MAINTENANCE-OTHR,SUBSIDENCE PUMPING STATIONS,"CONSTRUCTION-BLD,REPR&MAINTNCE",DANVM DRAINAGE COMMISSION,0000223640,341.00
DEPARTMENT OF ENERGY AND CLIMATE CHANGE,THE COAL AUTHORITY,16/10/2015,SUB PUMP STTN MAINTENANCE-OTHR,SUBSIDENCE PUMPING STATIONS,"CONSTRUCTION-BLD,REPR&MAINTNCE",DANVM DRAINAGE COMMISSION,0000223640,5505.43
DEPARTMENT OF ENERGY AND CLIMATE CHANGE,THE COAL AUTHORITY,16/10/2015,SUB PUMP STTN MAINTENANCE-OTHR,SUBSIDENCE PUMPING STATIONS,"CONSTRUCTION-BLD,REPR&MAINTNCE",DANVM DRAINAGE COMMISSION,0000223640,840.00
DEPARTMENT OF ENERGY AND CLIMATE CHANGE,THE COAL AUTHORITY,16/10/2015,SUB PUMP STTN MAINTENANCE-OTHR,SUBSIDENCE PUMPING STATIONS,"CONSTRUCTION-BLD,REPR&MAINTNCE",DANVM DRAINAGE COMMISSION,0000223640,876.00
DEPARTMENT OF ENERGY AND CLIMATE CHANGE,THE COAL AUTHORITY,16/10/2015,SUB PUMP STTN MAINTENANCE-OTHR,SUBSIDENCE PUMPING STATIONS,"CONSTRUCTION-BLD,REPR&MAINTNCE",DANVM DRAINAGE COMMISSION,0000223640,175.00
DEPARTMENT OF ENERGY AND CLIMATE CHANGE,THE COAL AUTHORITY,16/10/2015,SUB PUMP STTN MAINTENANCE-OTHR,SUBSIDENCE PUMPING STATIONS,"CONSTRUCTION-BLD,REPR&MAINTNCE",DANVM DRAINAGE COMMISSION,0000223640,1320.00
DEPARTMENT OF ENERGY AND CLIMATE CHANGE,THE COAL AUTHORITY,14/10/2015,SUB PUMP STTN MAINTENANCE-OTHR,SUBSIDENCE PUMPING STATIONS,"CONSTRUCTION-BLD,REPR&MAINTNCE",DONCASTER EAST I D B,0000223641,2390.00
DEPARTMENT OF ENERGY AND CLIMATE CHANGE,THE COAL AUTHORITY,14/10/2015,SUB PUMP STTN MAINTENANCE-OTHR,SUBSIDENCE PUMPING STATIONS,"CONSTRUCTION-BLD,REPR&MAINTNCE",DONCASTER EAST I D B,0000223641,1484.00
DEPARTMENT OF ENERGY AND CLIMATE CHANGE,THE COAL AUTHORITY,14/10/2015,SUB PUMP STTN MAINTENANCE-OTHR,SUBSIDENCE PUMPING STATIONS,"CONSTRUCTION-BLD,REPR&MAINTNCE",DONCASTER EAST I D B,0000223641,2875.86
DEPARTMENT OF ENERGY AND CLIMATE CHANGE,THE COAL AUTHORITY,14/10/2015,SUB PUMP STTN MAINTENANCE-OTHR,SUBSIDENCE PUMPING STATIONS,"CONSTRUCTION-BLD,REPR&MAINTNCE",DONCASTER EAST I D B,0000223641,24.80
DEPARTMENT OF ENERGY AND CLIMATE CHANGE,THE COAL AUTHORITY,14/10/2015,SUB PUMP STTN MAINTENANCE-OTHR,SUBSIDENCE PUMPING STATIONS,TRAVEL&EVENTS-VEHICLE HIRE,DONCASTER EAST I D B,0000223641,1431.42
DEPARTMENT OF ENERGY AND CLIMATE CHANGE,THE COAL AUTHORITY,14/10/2015,SUB PUMP STTN MAINTENANCE-OTHR,SUBSIDENCE PUMPING STATIONS,VEHICLES-VEHICLE MAINTENANCE,DONCASTER EAST I D B,0000223641,154.20
DEPARTMENT OF ENERGY AND CLIMATE CHANGE,THE COAL AUTHORITY,14/10/2015,SUB PUMP STTN MAINTENANCE-OTHR,SUBSIDENCE PUMPING STATIONS,ICT-TELECOMS,DONCASTER EAST I D B,0000223641,1.98
DEPARTMENT OF ENERGY AND CLIMATE CHANGE,THE COAL AUTHORITY,14/10/2015,SUB PUMP STTN MAINTENANCE-OTHR,SUBSIDENCE PUMPING STATIONS,ICT-TELECOMS,DONCASTER EAST I D B,0000223641,239.85
DEPARTMENT OF ENERGY AND CLIMATE CHANGE,THE COAL AUTHORITY,14/10/2015,SUB PUMP STTN MAINTENANCE-OTHR,SUBSIDENCE PUMPING STATIONS,ICT-TELECOMS,DONCASTER EAST I D B,0000223641,400.35
DEPARTMENT OF ENERGY AND CLIMATE CHANGE,THE COAL AUTHORITY,14/10/2015,SUB PUMP STTN MAINTENANCE-OTHR,SUBSIDENCE PUMPING STATIONS,ICT-TELECOMS,DONCASTER EAST I D B,0000223641,400.05
DEPARTMENT OF ENERGY AND CLIMATE CHANGE,THE COAL AUTHORITY,14/10/2015,SUB PUMP STTN MAINTENANCE-OTHR,SUBSIDENCE PUMPING STATIONS,ICT-TELECOMS,DONCASTER EAST I D B,0000223641,124.90
DEPARTMENT OF ENERGY AND CLIMATE CHANGE,THE COAL AUTHORITY,14/10/2015,SUB PUMP STTN MAINTENANCE-OTHR,SUBSIDENCE PUMPING STATIONS,ICT-TELECOMS,DONCASTER EAST I D B,0000223641,1.98
DEPARTMENT OF ENERGY AND CLIMATE CHANGE,THE COAL AUTHORITY,14/10/2015,SUB PUMP STTN MAINTENANCE-OTHR,SUBSIDENCE PUMPING STATIONS,ICT-TELECOMS,DONCASTER EAST I D B,0000223641,399.00
DEPARTMENT OF ENERGY AND CLIMATE CHANGE,THE COAL AUTHORITY,14/10/2015,SUB PUMP STTN MAINTENANCE-OTHR,SUBSIDENCE PUMPING STATIONS,ICT-TELECOMS,DONCASTER EAST I D B,0000223641,30.49
